{"text_format":"1","workbook":"xlsx","n_sheets":9,"sheets":["Tarifa","1.telephely","2.telephely","3.telephely","4.telephely","5.telephely","Adatfelvétel","Díjkalkuláció nyomtatása","Előzetes díjkalk.+adatközlő"],"not_rendered":{"charts":0,"images":16,"macros":1,"external_links":1,"defined_names":3,"comments":0,"pivot_tables":0},"unopened":[],"bounds":{"document_bytes":16777216,"sheet_cells":100000,"rows_first":2000,"rows_last":500,"rows_between":2000,"halvings":0,"cell_chars":16384,"cell_head_chars":4096},"cells_cut":0,"cells_raw":0,"read":"whole","date_system":"1900"}

{"sheet":"Tarifa","index":0,"n_rows":788,"n_cols":48,"rows_kept":788,"cut":false,"hidden":true,"merged":[[5,33,5,39],[6,33,6,39],[0,5,1,5],[0,0,1,0],[0,1,1,1],[0,2,1,2],[0,3,1,3],[0,4,1,4],[0,12,1,12],[0,13,1,13],[0,6,1,6],[0,7,1,7],[0,8,1,8],[0,9,1,9],[0,10,1,10],[0,11,1,11]]}
[null,null,null,null,"Tűz és elemi károk","Betöréses lopás és rablás","Üzemszünet","Általános felelősség","Munkaadói felelősség","Bérlői felelősség","Termékfelelősség","Szolgáltatói felelősség","Környezetszennyezési","Bérbeadói"]
[null,null,null,null,null,null,null,null,null,null,null,null,null,null,null,null,null,null,"Felelősség limitek",null,null,null,null,null,null,3,"díjfiz ütem",null,null,"díjfiz mód",null,1]
[1,"011","Nem évelő növény termesztése",null,3,1,2,2,3,2,1,1,2,2,{"$f":"VLOOKUP(O11,C259:E500,3,FALSE)","v":1},{"$f":"VLOOKUP(O3,$A$3:$C$247,2)","v":"011"},{"$f":"VLOOKUP(O3,$A$3:$C$247,3,FALSE)","v":"Nem évelő növény termesztése"},1,0,0,0,null,null,null,null,1,"éves",0.9,0.1,"postai utalás",1,0,null,null,null,null,null,null,"lejárat","2021-10-31"]
[2,"012","Évelő növény termesztése",null,3,1,2,2,3,2,1,1,2,2,{"$f":"VLOOKUP(O16,C259:E500,3,FALSE)","v":1},{"$f":"VLOOKUP(O4,$A$3:$C$247,2)","v":"011"},{"$f":"VLOOKUP(O4,$A$3:$C$247,3,FALSE)","v":"Nem évelő növény termesztése"},2,"5 millió Ft","5 millió Ft","5 millió Ft",null,null,null,null,2,"féléves",0.94,0.06,"banki átutalás",0.97,0.03]
[3,"013","Növényi szaporítóanyag termesztése",null,3,1,2,2,3,2,1,1,2,2,{"$f":"VLOOKUP(O21,C259:E500,3,FALSE)","v":1},{"$f":"VLOOKUP(O5,$A$3:$C$247,2)","v":"011"},{"$f":"VLOOKUP(O5,$A$3:$C$247,3,FALSE)","v":"Nem évelő növény termesztése"},3,"25 millió Ft","15 millió Ft","15 millió Ft",null,null,null,null,3,"negyedéves",0.98,0.02,"csoportos beszedés",0.97,0.03]
[4,"014","Állattenyésztés",null,4,2,3,3,3,2,1,1,2,2,{"$f":"VLOOKUP(O26,C259:E500,3,FALSE)","v":1},{"$f":"VLOOKUP(O6,$A$3:$C$247,2)","v":"011"},{"$f":"VLOOKUP(O6,$A$3:$C$247,3,FALSE)","v":"Nem évelő növény termesztése"},4,"50 millió Ft","25 millió Ft",null,null,null,null,null,4,"havi",1,0,"csoportos beszedés K&H Banknál vezetett bankszámláról",0.95,0.05,null,"Biztosított vagyontárgyak biztosítási összege az 5 telephelyen összesen (e ft):",null,null,null,null,null,null,{"$f":"SUM('1.telephely'!B24,'2.telephely'!B21,'3.telephely'!B21,'4.telephely'!B21,'5.telephely'!B21)","v":0}]
[5,"015","Vegyes gazdálkodás",null,3,2,2,2,3,2,2,1,2,2,{"$f":"VLOOKUP(O30,C259:E500,3,FALSE)","v":1},{"$f":"VLOOKUP(O7,$A$3:$C$247,2)","v":"011"},{"$f":"VLOOKUP(O7,$A$3:$C$247,3,FALSE)","v":"Nem évelő növény termesztése"},null,null,null,null,null,null,null,null,null,null,{"$f":"VLOOKUP(Z2,Z3:AB6,3,FALSE)","v":0.98},{"$f":"VLOOKUP(Z2,Z3:AC6,4,FALSE)","v":0.02},null,{"$f":"VLOOKUP(AF2,Z3:AE6,6,FALSE)","v":1},{"$f":"VLOOKUP(AF2,Z3:AF6,7,FALSE)","v":0},null,"Éves árbevétel az 5 telephelyen összesen (e ft):",null,null,null,null,null,null,{"$f":"SUM('1.telephely'!B10,'2.telephely'!B7,'3.telephely'!B7,'4.telephely'!B7,'5.telephely'!B7)","v":0}]
[6,"016","Mezőgazdasági, betakarítást követő szolgáltatás",null,3,2,2,2,3,2,2,1,2,2,null,null,null,"Tűz",{"$f":"VLOOKUP(O3,$A$3:$L$247,5)","v":3},{"$f":"VLOOKUP(O4,$A$3:$L$247,5)","v":3},{"$f":"VLOOKUP(O5,$A$3:$L$247,5)","v":3},{"$f":"VLOOKUP(O6,$A$3:$L$247,5)","v":3},{"$f":"VLOOKUP(O7,$A$3:$L$247,5)","v":3},null,null,{"$f":"1-((1-AB7)+(1-IF(AB7<1,AE7,1)))","v":0.98},{"$f":"AC7+AF7","v":0.02},null,{"$f":"VLOOKUP(Z2,Z3:AB6,2,FALSE)","v":"negyedéves"},null,{"$f":"VLOOKUP(AF2,Z3:AE6,5,FALSE)","v":"postai utalás"}]
[7,"017","Vadgazdálkodás, vadgazdálkodási szolgáltatás",null,3,2,2,2,3,2,2,1,2,2,null,null,null,null,{"$f":"HLOOKUP(S8,S10:X11,2)","v":1.95},{"$f":"HLOOKUP(T8,S10:X11,2)","v":1.95},{"$f":"HLOOKUP(U8,$S$10:$X$11,2)","v":1.95},{"$f":"HLOOKUP(V8,$S$10:$X$11,2)","v":1.95},{"$f":"HLOOKUP(W8,$S$10:$X$11,2)","v":1.95}]
[8,"021","Erdészeti, egyéb erdőgazdálkodási tevékenység",null,4,2,2,3,4,3,1,1,2,3,"1. telephely",null,null,null,1,2,3,4,5,6]
[9,"022","Fakitermelés",null,4,2,2,3,4,3,1,1,2,3,"Nem évelő növény termesztése",null,null,null,1.71,1.8,1.95,2.4300000000000002,2.7,3.06,null,null,"DES",{"$f":"'1.telephely'!C60","v":1},{"$f":"1-AB11","v":0},null,null,null,null,null,null,null,"lojalitás+DES max. 20%",null,null,{"$f":"1-AO11","v":0},{"$f":"AA15*AB11","v":1},{"$f":"IF(AO11<0.8,\"0,8\",AO11)","v":1}]
[10,"023","Vadon termő egyéb erdei termék gyűjtése",null,4,2,2,3,4,3,1,1,2,3,"011",null,null,null,null,null,null,null,null,null,null,null,"Közp. DES",{"$f":"'1.telephely'!C61","v":1},{"$f":"1-AB12","v":0},null,null,null,null,null,null,null,"volumen+csomag+lojalitás+DES max. 50%",null,null,{"$f":"1-AO12","v":0},{"$f":"AP11*AE15*AF31","v":1},{"$f":"IF(AO12<0.5,\"0,5\",AO12)","v":1}]
[11,"024","Erdészeti szolgáltatás",null,4,2,2,3,4,3,1,1,2,3,null,null,null,null,{"$f":"IF(U110=FALSE,\"Bp\",IF('1.telephely'!F5<2000,\"Bp\",\"Vidék\"))","v":"Bp"},{"$f":"IF(U111=FALSE,\"Bp\",IF('2.telephely'!F2<2000,\"Bp\",\"Vidék\"))","v":"Bp"},{"$f":"IF(U112=FALSE,\"Bp\",IF('3.telephely'!F2<2000,\"Bp\",\"Vidék\"))","v":"Bp"},{"$f":"IF(U113=FALSE,\"Bp\",IF('4.telephely'!F2<2000,\"Bp\",\"Vidék\"))","v":"Bp"},{"$f":"IF(U114=FALSE,\"Bp\",IF('5.telephely'!F2<2000,\"Bp\",\"Vidék\"))","v":"Bp"}]
[12,"031","Halászat",null,1,1,3,2,1,2,2,1,2,2,null,null,null,null,{"$f":"IF(S13=\"Bp\",1,Y17)","v":1},{"$f":"IF(T13=\"Bp\",1,Y17)","v":1},{"$f":"IF(U13=\"Bp\",1,Y17)","v":1},{"$f":"IF(V13=\"Bp\",1,Y17)","v":1},{"$f":"IF(W13=\"Bp\",1,Y17)","v":1}]
[13,"032","Halgazdálkodás",null,1,1,3,2,1,2,2,1,2,2,"2. telephely",null,null,null,{"$f":"VLOOKUP(O3,$A$3:$L$247,6)","v":1},{"$f":"VLOOKUP(O4,$A$3:$L$247,6)","v":1},{"$f":"VLOOKUP(O5,$A$3:$L$247,6)","v":1},{"$f":"VLOOKUP(O6,$A$3:$L$247,6)","v":1},{"$f":"VLOOKUP(O7,$A$3:$L$247,6)","v":1},null,null,null,{"$f":"VLOOKUP(AC15,AA16:AC18,3,FALSE)","v":1},"lojalitás",1,{"$f":"VLOOKUP(AC15,AA16:AD18,4,FALSE)","v":"Nincs"},{"$f":"IF(AE16=1,AH16,IF(AE17=1,AH17,IF(AE18=1,AH18)))","v":1},"csomag",{"$f":"1-AE15","v":0}]
[14,"101","Húsfeldolgozás, -tartósítás, húskészítmény gyártása",null,3,2,3,2,4,3,3,0,3,3,"Nem évelő növény termesztése",null,null,"Betlop",{"$f":"HLOOKUP(S15,S17:X18,2)","v":2.5},{"$f":"HLOOKUP(T15,S17:X18,2)","v":2.5},{"$f":"HLOOKUP(U15,$S$17:$X$18,2)","v":2.5},{"$f":"HLOOKUP(V15,$S$17:$X$18,2)","v":2.5},{"$f":"HLOOKUP(W15,$S$17:$X$18,2)","v":2.5},null,"Vidéki eng.",null,1,"Nincs",1,"Nincs",{"$f":"IF(AND($AV$29>=AF16,$AV$29<=AG16),1,0)","v":1},0,3,1,"Nincs"]
[15,"102","Halfeldolgozás, -tartósítás",null,3,2,3,3,3,3,3,0,3,3,"011",null,null,null,1,2,3,4,5,6,0.8,null,2,"K&H Banknál vezetett vállalkozói bankszámlával rendelkezik",0.98,0.02,{"$f":"IF(AND($AV$29>=AF17,$AV$29<=AG17),1,0)","v":0},4,5,0.95,0.05]
[16,"103","Gyümölcs-, zöldségfeldolgozás, -tartósítás",null,2,2,2,2,2,2,3,0,3,2,null,null,null,null,2.5,3.1,4,4.2,5.2,11.2,null,null,3,"K&H Banknál felvett vállalkozói hitellel rendelkezik",0.95,0.05,{"$f":"IF(AND($AV$29>=AF18,$AV$29<=AG18),1,0)","v":0},6,20,0.9,0.1]
[17,"104","Növényi, állati olaj gyártása",null,3,1,3,2,2,2,2,0,3,2]
[18,"105","Tejfeldolgozás",null,3,1,3,2,3,2,2,0,3,2,"3. telephely",null,null,null,null,null,null,null,null,null,null,null,"irodai",4,null,"vakolat",0.5,null,"vandalizmus",9]
[19,"106","Malomipari termék, keményítő gyártása",null,3,2,3,2,2,2,2,0,3,2,"Nem évelő növény termesztése",null,null,null,null,{"$f":"VLOOKUP(O3,$A$3:$N$247,7)","v":2},{"$f":"VLOOKUP(O4,$A$3:$L$247,7)","v":2},{"$f":"VLOOKUP(O5,$A$3:$L$247,7)","v":2},{"$f":"VLOOKUP(O6,$A$3:$L$247,7)","v":2},{"$f":"VLOOKUP(O7,$A$3:$L$247,7)","v":2},null,null,"szállítmány",50,null,"tetőbeázás",0.08,null,"kül.üveg",50]
[20,"107","Pékáru, tésztafélék gyártása",null,3,2,3,2,3,2,3,0,3,2,"011",null,null,"Üzemsz",null,{"$f":"HLOOKUP(T21,$S$23:$Y$24,2)","v":0.6},{"$f":"HLOOKUP(U21,$S$23:$Y$24,2)","v":0.6},{"$f":"HLOOKUP(V21,$S$23:$Y$24,2)","v":0.6},{"$f":"HLOOKUP(W21,$S$23:$Y$24,2)","v":0.6},{"$f":"HLOOKUP(X21,$S$23:$Y$24,2)","v":0.6}]
[21,"108","Egyéb élelmiszer gyártása",null,3,2,3,2,3,2,4,1,3,2,null,null,null,null,0,1,2,3,4,5,6,null,"csomag","betlop","irodai","üzemszü","száll","vakolat","tetőbeázás","vandalizmus","kül.üveg","áltfel","munkfel","termfel","bérlfel","szolgfel","bérbeadói","környezet","szálloda","gépjármű","eredetiség","szolg.tárgy","tanuló"]
[22,"109","Takarmány gyártása",null,3,1,3,2,3,2,4,0,3,2,null,null,null,null,0,0.4,0.6,0.8,1.05,1.2,1.4,null,"1 telephely",{"$f":"IF('1.telephely'!$C$26=0,0,1)","v":0},{"$f":"IF('1.telephely'!$C$28=0,0,1)","v":0},{"$f":"IF('1.telephely'!$C$30=0,0,1)","v":0},{"$f":"IF('1.telephely'!$C$32=0,0,1)","v":0},{"$f":"IF('1.telephely'!$C$34=0,0,1)","v":0},{"$f":"IF('1.telephely'!$C$36=0,0,1)","v":0},{"$f":"IF('1.telephely'!$C$38=0,0,1)","v":0},{"$f":"IF('1.telephely'!$C$40=0,0,1)","v":0},{"$f":"IF('1.telephely'!$C$42=0,0,1)","v":0},{"$f":"IF('1.telephely'!$C$44=0,0,1)","v":0},{"$f":"IF('1.telephely'!$C$45=0,0,1)","v":0},{"$f":"IF('1.telephely'!$C$46=0,0,1)","v":0},{"$f":"IF('1.telephely'!$C$47=0,0,1)","v":0},{"$f":"IF('1.telephely'!$C$52=0,0,1)","v":0},{"$f":"IF('1.telephely'!$C$53=0,0,1)","v":0},{"$f":"IF('1.telephely'!$C$48=0,0,1)","v":0},{"$f":"IF('1.telephely'!$C$49=0,0,1)","v":0},{"$f":"IF('1.telephely'!$C$50=0,0,1)","v":0},{"$f":"IF('1.telephely'!$C$51=0,0,1)","v":0},{"$f":"IF('1.telephely'!$C$43=0,0,1)","v":0}]
[23,"110","Italgyártás",null,3,3,3,3,4,3,3,1,3,3,"4. telephely",null,null,null,null,null,null,null,null,null,null,null,"2 telephely",{"$f":"IF('2.telephely'!$C$23=0,0,1)","v":0},{"$f":"IF('2.telephely'!$C$25=0,0,1)","v":0},{"$f":"IF('2.telephely'!$C$27=0,0,1)","v":0},{"$f":"IF('2.telephely'!$C$29=0,0,1)","v":0},{"$f":"IF('2.telephely'!$C$31=0,0,1)","v":0},{"$f":"IF('2.telephely'!$C$41=0,0,1)","v":0},{"$f":"IF('2.telephely'!$C$43=0,0,1)","v":0},{"$f":"IF('2.telephely'!$C$45=0,0,1)","v":0},{"$f":"IF('2.telephely'!$C$39=0,0,1)","v":0},{"$f":"IF('2.telephely'!$C$41=0,0,1)","v":0},{"$f":"IF('2.telephely'!$C$42=0,0,1)","v":0},{"$f":"IF('2.telephely'!$C$43=0,0,1)","v":0},{"$f":"IF('2.telephely'!$C$44=0,0,1)","v":0},{"$f":"IF('2.telephely'!$C$49=0,0,1)","v":0},{"$f":"IF('2.telephely'!$C$50=0,0,1)","v":0},{"$f":"IF('2.telephely'!$C$45=0,0,1)","v":0},{"$f":"IF('2.telephely'!$C$46=0,0,1)","v":0},{"$f":"IF('2.telephely'!$C$47=0,0,1)","v":0},{"$f":"IF('2.telephely'!$C$48=0,0,1)","v":0},{"$f":"IF('2.telephely'!$C$40=0,0,1)","v":0}]
[24,"131","Textilszálak fonása",null,5,1,3,2,2,1,2,0,3,2,"Nem évelő növény termesztése",null,null,null,{"$f":"VLOOKUP(S28,$X$31:$Y$34,2,FALSE)","v":"5 millió Ft"},{"$f":"VLOOKUP(T28,$X$31:$Y$34,2,FALSE)","v":"5 millió Ft"},{"$f":"VLOOKUP(U28,$X$31:$Y$34,2,FALSE)","v":"5 millió Ft"},{"$f":"VLOOKUP(V28,$X$31:$Y$34,2,FALSE)","v":"5 millió Ft"},{"$f":"VLOOKUP(W28,$X$31:$Y$34,2,FALSE)","v":"5 millió Ft"},null,null,null,"3 telephely",{"$f":"IF('3.telephely'!$C$23=0,0,1)","v":0},{"$f":"IF('3.telephely'!$C$25=0,0,1)","v":0},{"$f":"IF('3.telephely'!$C$27=0,0,1)","v":0},{"$f":"IF('3.telephely'!$C$29=0,0,1)","v":0},{"$f":"IF('3.telephely'!$C$31=0,0,1)","v":0},{"$f":"IF('3.telephely'!$C$41=0,0,1)","v":0},{"$f":"IF('3.telephely'!$C$43=0,0,1)","v":0},{"$f":"IF('3.telephely'!$C$45=0,0,1)","v":0},{"$f":"IF('3.telephely'!$C$39=0,0,1)","v":0},{"$f":"IF('3.telephely'!$C$41=0,0,1)","v":0},{"$f":"IF('3.telephely'!$C$42=0,0,1)","v":0},{"$f":"IF('3.telephely'!$C$43=0,0,1)","v":0},{"$f":"IF('3.telephely'!$C$44=0,0,1)","v":0},{"$f":"IF('3.telephely'!$C$49=0,0,1)","v":0},{"$f":"IF('3.telephely'!$C$50=0,0,1)","v":0},{"$f":"IF('3.telephely'!$C$45=0,0,1)","v":0},{"$f":"IF('3.telephely'!$C$46=0,0,1)","v":0},{"$f":"IF('3.telephely'!$C$47=0,0,1)","v":0},{"$f":"IF('3.telephely'!$C$48=0,0,1)","v":0},{"$f":"IF('3.telephely'!$C$40=0,0,1)","v":0}]
[25,"132","Textilszövés",null,5,1,3,2,2,1,2,0,3,2,"011",null,null,null,{"$f":"VLOOKUP(O3,$A$3:$L$247,8)","v":2},{"$f":"VLOOKUP(O4,$A$3:$L$247,8)","v":2},{"$f":"VLOOKUP(O5,$A$3:$L$247,8)","v":2},{"$f":"VLOOKUP(O6,$A$3:$L$247,8)","v":2},{"$f":"VLOOKUP(O7,$A$3:$L$247,8)","v":2},null,null,null,"4 telephely",{"$f":"IF('4.telephely'!$C$23=0,0,1)","v":0},{"$f":"IF('4.telephely'!$C$25=0,0,1)","v":0},{"$f":"IF('4.telephely'!$C$27=0,0,1)","v":0},{"$f":"IF('4.telephely'!$C$29=0,0,1)","v":0},{"$f":"IF('4.telephely'!$C$31=0,0,1)","v":0},{"$f":"IF('4.telephely'!$C$41=0,0,1)","v":0},{"$f":"IF('4.telephely'!$C$43=0,0,1)","v":0},{"$f":"IF('4.telephely'!$C$45=0,0,1)","v":0},{"$f":"IF('4.telephely'!$C$39=0,0,1)","v":0},{"$f":"IF('4.telephely'!$C$41=0,0,1)","v":0},{"$f":"IF('4.telephely'!$C$42=0,0,1)","v":0},{"$f":"IF('4.telephely'!$C$43=0,0,1)","v":0},{"$f":"IF('4.telephely'!$C$44=0,0,1)","v":0},{"$f":"IF('4.telephely'!$C$49=0,0,1)","v":0},{"$f":"IF('4.telephely'!$C$50=0,0,1)","v":0},{"$f":"IF('4.telephely'!$C$45=0,0,1)","v":0},{"$f":"IF('4.telephely'!$C$46=0,0,1)","v":0},{"$f":"IF('4.telephely'!$C$47=0,0,1)","v":0},{"$f":"IF('4.telephely'!$C$48=0,0,1)","v":0},{"$f":"IF('4.telephely'!$C$40=0,0,1)","v":0}]
[26,"133","Textilkikészítés",null,5,1,4,2,2,2,2,0,3,2,null,null,null,null,2,2,2,2,2,null,null,null,"5 telephely",{"$f":"IF('5.telephely'!$C$23=0,0,1)","v":0},{"$f":"IF('5.telephely'!$C$25=0,0,1)","v":0},{"$f":"IF('5.telephely'!$C$27=0,0,1)","v":0},{"$f":"IF('5.telephely'!$C$29=0,0,1)","v":0},{"$f":"IF('5.telephely'!$C$31=0,0,1)","v":0},{"$f":"IF('5.telephely'!$C$41=0,0,1)","v":0},{"$f":"IF('5.telephely'!$C$43=0,0,1)","v":0},{"$f":"IF('5.telephely'!$C$45=0,0,1)","v":0},{"$f":"IF('5.telephely'!$C$39=0,0,1)","v":0},{"$f":"IF('5.telephely'!$C$41=0,0,1)","v":0},{"$f":"IF('5.telephely'!$C$42=0,0,1)","v":0},{"$f":"IF('5.telephely'!$C$43=0,0,1)","v":0},{"$f":"IF('5.telephely'!$C$44=0,0,1)","v":0},{"$f":"IF('5.telephely'!$C$49=0,0,1)","v":0},{"$f":"IF('5.telephely'!$C$50=0,0,1)","v":0},{"$f":"IF('5.telephely'!$C$45=0,0,1)","v":0},{"$f":"IF('5.telephely'!$C$46=0,0,1)","v":0},{"$f":"IF('5.telephely'!$C$47=0,0,1)","v":0},{"$f":"IF('5.telephely'!$C$48=0,0,1)","v":0},{"$f":"IF('5.telephely'!$C$40=0,0,1)","v":0}]
[27,"139","Egyéb textiláru gyártása",null,5,1,3,2,4,2,2,1,3,2,"5. telephely",null,null,null,{"$f":"HLOOKUP(S28,S30:W35,S27+1,FALSE)","v":1067},{"$f":"HLOOKUP(T28,S30:W35,T27+1,FALSE)","v":1067},{"$f":"HLOOKUP(U28,$S$30:$W$35,U27+1,FALSE)","v":1067},{"$f":"HLOOKUP(V28,$S$30:$W$35,V27+1,FALSE)","v":1067},{"$f":"HLOOKUP(W28,$S$30:$W$35,W27+1,FALSE)","v":1067},null,null,null,"össz:",{"$f":"IF(AB$24=1,1,IF(AB$25=1,1,IF(AB$26=1,1,IF(AB$27=1,1,IF(AB$28=1,1,0)))))","v":0},0,0,0,0,0,0,0,0,0,0,0,0,0,0,0,0,0,0,0,{"$f":"SUM(AB29:AU29)","v":0}]
[28,"141","Ruházat gyártása (kivéve: szőrmeruházat)",null,4,2,4,2,2,2,2,0,3,2,"Nem évelő növény termesztése",null,null,null,"Ált fel.",1,2,3,4]
[29,"142","Szőrmecikk gyártása",null,3,3,3,2,2,1,2,0,3,2,"011",null,null,null,1,0,531,816,1062,1,0,null,{"$f":"IF(AND(('1.telephely'!$B$24+'2.telephely'!$B$21+'3.telephely'!$B$21+'4.telephely'!$B$21+'5.telephely'!$B$21)>=AB31,('1.telephely'!$B$24+'2.telephely'!$B$21+'3.telephely'!$B$21+'4.telephely'!$B$21+'5.telephely'!$B$21)<=AC31),1,0)","v":1},0,20000,1,"Nincs",{"$f":"IF(AA31=1,AD31,IF(AA32=1,AD32,IF(AA33=1,AD33,IF(AA34=1,AD34,IF(AA35=1,AD35,IF(AA36=1,AD36))))))","v":1},"volumen"]
[30,"143","Kötött, hurkolt cikk gyártása",null,5,1,4,2,2,2,2,0,3,2,null,null,null,null,2,0,1067,1639,2133,2,"5 millió Ft",null,{"$f":"IF(AND(('1.telephely'!$B$24+'2.telephely'!$B$21+'3.telephely'!$B$21+'4.telephely'!$B$21+'5.telephely'!$B$21)>=AB32,('1.telephely'!$B$24+'2.telephely'!$B$21+'3.telephely'!$B$21+'4.telephely'!$B$21+'5.telephely'!$B$21)<=AC32),1,0)","v":0},20000.001,50000,0.9,0.1,{"$f":"1-AF31","v":0}]
[31,"151","Bőr, szőrme kikészítése",null,3,3,3,2,2,2,2,0,3,2,null,null,null,null,3,0,1593,2449,3186,3,"25 millió Ft",null,{"$f":"IF(AND(('1.telephely'!$B$24+'2.telephely'!$B$21+'3.telephely'!$B$21+'4.telephely'!$B$21+'5.telephely'!$B$21)>=AB33,('1.telephely'!$B$24+'2.telephely'!$B$21+'3.telephely'!$B$21+'4.telephely'!$B$21+'5.telephely'!$B$21)<=AC33),1,0)","v":0},50000.000999999997,75000,0.8,0.2]
[32,"152","Lábbeligyártás",null,4,1,4,1,2,1,3,0,3,2,null,null,null,null,4,0,2390,3673,4779,4,"50 millió Ft",null,{"$f":"IF(AND(('1.telephely'!$B$24+'2.telephely'!$B$21+'3.telephely'!$B$21+'4.telephely'!$B$21+'5.telephely'!$B$21)>=AB34,('1.telephely'!$B$24+'2.telephely'!$B$21+'3.telephely'!$B$21+'4.telephely'!$B$21+'5.telephely'!$B$21)<=AC34),1,0)","v":0},75000.001000000004,150000,0.7,0.3]
[33,"161","Fűrészárugyártás",null,6,2,4,2,5,2,1,0,3,4,null,null,null,null,5,0,3204,4925,6408,null,null,null,{"$f":"IF(AND(('1.telephely'!$B$24+'2.telephely'!$B$21+'3.telephely'!$B$21+'4.telephely'!$B$21+'5.telephely'!$B$21)>=AB35,('1.telephely'!$B$24+'2.telephely'!$B$21+'3.telephely'!$B$21+'4.telephely'!$B$21+'5.telephely'!$B$21)<=AC35),1,0)","v":0},150000.00099999999,300000,0.6,0.4]
[34,"162","Fa-, parafatermék, fonottáru gyártása",null,6,2,5,4,5,4,3,1,3,4,null,null,null,null,null,null,null,null,null,null,null,null,{"$f":"IF(AND(('1.telephely'!$B$24+'2.telephely'!$B$21+'3.telephely'!$B$21+'4.telephely'!$B$21+'5.telephely'!$B$21)>=AB36,('1.telephely'!$B$24+'2.telephely'!$B$21+'3.telephely'!$B$21+'4.telephely'!$B$21+'5.telephely'!$B$21)<=AC36),1,0)","v":0},300000.00099999999,500000,0.5,0.5]
[35,"181","Nyomdai tevékenység",null,3,1,3,2,2,2,2,2,3,2,null,null,null,null,{"$f":"VLOOKUP(S39,$X$31:$Y$34,2,FALSE)","v":"5 millió Ft"},{"$f":"VLOOKUP(T39,$X$31:$Y$34,2,FALSE)","v":"5 millió Ft"},{"$f":"VLOOKUP(U39,$X$31:$Y$34,2,FALSE)","v":"5 millió Ft"},{"$f":"VLOOKUP(V39,$X$31:$Y$34,2,FALSE)","v":"5 millió Ft"},{"$f":"VLOOKUP(W39,$X$31:$Y$34,2,FALSE)","v":"5 millió Ft"}]
[36,"182","Egyéb sokszorosítás",null,3,1,3,2,2,2,2,2,3,2,null,null,null,null,{"$f":"VLOOKUP(O3,$A$3:$L$247,9)","v":3},{"$f":"VLOOKUP(O4,$A$3:$L$247,9)","v":3},{"$f":"VLOOKUP(O5,$A$3:$L$247,9)","v":3},{"$f":"VLOOKUP(O6,$A$3:$L$247,9)","v":3},{"$f":"VLOOKUP(O7,$A$3:$L$247,9)","v":3}]
[37,"202","Mezőgazdasági vegyi termék gyártása",null,4,2,4,4,4,4,4,0,5,4,null,null,null,null,2,2,2,2,2,null,null,null,{"$f":"S27","v":2},{"$f":"T27","v":2},{"$f":"U27","v":2},{"$f":"V27","v":2},{"$f":"W27","v":2},null,{"$f":"S38","v":3},{"$f":"T38","v":3},{"$f":"U38","v":3},{"$f":"V38","v":3},{"$f":"W38","v":3}]
[38,"203","Festék, bevonóanyag gyártása",null,6,1,4,4,4,4,4,0,5,4,null,null,null,null,{"$f":"HLOOKUP(S39,S41:W46,S38+1,FALSE)","v":2650},{"$f":"HLOOKUP(T39,S41:W46,T38+1,FALSE)","v":2650},{"$f":"HLOOKUP(U39,$S$41:$W$46,U38+1,FALSE)","v":2650},{"$f":"HLOOKUP(V39,$S$41:$W$46,V38+1,FALSE)","v":2650},{"$f":"HLOOKUP(W39,$S$41:$W$46,W38+1,FALSE)","v":2650},null,null,null,{"$f":"VLOOKUP(AA39,AA43:AC48,3)","v":747},{"$f":"VLOOKUP(AB39,AA43:AC48,3)","v":747},{"$f":"VLOOKUP(AC39,AA43:AC48,3)","v":747},{"$f":"VLOOKUP(AD39,AA43:AC48,3)","v":747},{"$f":"VLOOKUP(AE39,AA43:AC48,3)","v":747},null,{"$f":"VLOOKUP(AG39,AG43:AI48,3)","v":1302},{"$f":"VLOOKUP(AH39,AG43:AI48,3)","v":1302},{"$f":"VLOOKUP(AI39,AG43:AI48,3)","v":1302},{"$f":"VLOOKUP(AJ39,AG43:AI48,3)","v":1302},{"$f":"VLOOKUP(AK39,AG43:AI48,3)","v":1302}]
[39,"204","Tisztítószer, testápolási cikk gyártása",null,4,2,4,2,4,2,4,0,5,4,null,null,null,null,"Munkált.",1,2,3,4,null,null,null,{"$f":"'1.telephely'!B43*Tarifa!AA40","v":0},{"$f":"'2.telephely'!B40*Tarifa!AB40","v":0},{"$f":"'3.telephely'!B40*Tarifa!AC40","v":0},{"$f":"'4.telephely'!B40*Tarifa!AD40","v":0},{"$f":"'5.telephely'!B40*Tarifa!AE40","v":0},null,{"$f":"'1.telephely'!B43*AG40","v":0},{"$f":"'2.telephely'!B40*AH40","v":0},{"$f":"'3.telephely'!B41*Tarifa!AI40","v":0},{"$f":"'4.telephely'!B40*Tarifa!AJ40","v":0},{"$f":"'5.telephely'!B40*Tarifa!AK40","v":0}]
[40,"205","Egyéb vegyi termék gyártása",null,5,2,5,4,5,4,5,0,5,4,null,null,null,null,1,0,890,1368,1780,null,null,null,"Tanuló ált",1,2,null,null,null,"Tanuló munk.",1,2]
[41,"206","Vegyi szál gyártása",null,5,2,5,4,5,4,5,0,5,4,null,null,null,null,2,0,1775,2729,3550,null,null,null,0,0,0,null,"Össz:",null,0,0,0]
[42,"221","Gumitermék gyártása",null,5,2,3,3,4,3,3,0,5,3,null,null,null,null,3,0,2650,4074,5300,null,null,null,1,0,372,null,{"$f":"IF(OR(AA41=0,AG41=0),0,AA41+AG41)","v":0},null,1,0,434]
[43,"222","Műanyag termék gyártása",null,5,2,5,3,4,3,2,0,5,3,null,null,null,null,4,0,3985,6126,7970,null,null,null,2,0,747,null,{"$f":"IF(OR(AB41=0,AH41=0),0,AB41+AH41)","v":0},null,2,0,1057]
[44,"231","Üveg, üvegtermék gyártása",null,3,1,3,2,3,2,2,0,3,3,null,null,null,null,5,0,5340,8209,10680,null,null,null,3,0,1115,null,{"$f":"IF(OR(AC41=0,AI41=0),0,AC41+AI41)","v":0},null,3,0,1302]
[45,"233","Kerámia, agyag építőanyag gyártása",null,3,2,3,3,3,3,2,0,3,3,null,null,null,null,null,null,null,null,null,null,null,null,4,0,1673,null,{"$f":"IF(OR(AD41=0,AJ41=0),0,AD41+AJ41)","v":0},null,4,0,2163]
[46,"234","Porcelán, kerámiatermék gyártása",null,3,2,3,2,3,2,3,0,3,3,null,null,null,null,{"$f":"VLOOKUP(S50,$X$31:$Y$34,2,FALSE)","v":"5 millió Ft"},{"$f":"VLOOKUP(T50,$X$31:$Y$34,2,FALSE)","v":"5 millió Ft"},{"$f":"VLOOKUP(U50,$X$31:$Y$34,2,FALSE)","v":"5 millió Ft"},{"$f":"VLOOKUP(V50,$X$31:$Y$34,2,FALSE)","v":"5 millió Ft"},{"$f":"VLOOKUP(W50,$X$31:$Y$34,2,FALSE)","v":"5 millió Ft"},null,null,null,5,0,2243,null,{"$f":"IF(OR(AE41=0,AK41=0),0,AE41+AK41)","v":0},null,5,0,2884]
[47,"236","Beton-, gipsz-, cementtermék gyártása",null,2,1,3,2,3,2,2,0,4,2,null,null,null,null,{"$f":"VLOOKUP(O3,$A$3:$L$247,11)","v":1},{"$f":"VLOOKUP(O4,$A$3:$L$247,11)","v":1},{"$f":"VLOOKUP($O5,$A$3:$L$247,11)","v":1},{"$f":"VLOOKUP($O6,$A$3:$L$247,11)","v":1},{"$f":"VLOOKUP($O7,$A$3:$L$247,11)","v":1}]
[48,"237","Kőmegmunkálás",null,2,1,1,1,5,1,1,0,3,2,null,null,null,null,2,2,2,2,2]
[49,"251","Fémszerkezet, -épületelem gyártása",null,4,2,2,2,5,2,2,0,3,3,null,null,null,null,{"$f":"HLOOKUP(S50,S52:W58,S49+2,FALSE)","v":205},{"$f":"HLOOKUP(T50,S52:W58,T49+2,FALSE)","v":205},{"$f":"HLOOKUP(U50,$S$52:$W$58,U49+2,FALSE)","v":205},{"$f":"HLOOKUP(V50,$S$52:$W$58,V49+2,FALSE)","v":205},{"$f":"HLOOKUP(W50,$S$52:$W$58,W49+2,FALSE)","v":205},null,null,null,"Eredetiségvizsgálók",50000]
[50,"252","Fűtési kazán, radiátor, fémtartály gyártása",null,4,1,2,4,4,5,2,0,3,3,null,null,null,null,"Termék",1,2,3,4]
[51,"253","Gőzkazán gyártása",null,4,1,2,4,4,5,2,0,3,3,null,null,null,null,0,0,0,0,0,null,null,null,{"$f":"VLOOKUP(AA54,$AF$54:$AG$56,2,FALSE)","v":"5 millió Ft"},{"$f":"VLOOKUP(AB54,$AF$54:$AG$56,2,FALSE)","v":"5 millió Ft"},{"$f":"VLOOKUP(AC54,$AF$54:$AG$56,2,FALSE)","v":"5 millió Ft"},{"$f":"VLOOKUP(AD54,$AF$54:$AG$56,2,FALSE)","v":"5 millió Ft"},{"$f":"VLOOKUP(AE54,$AF$54:$AG$56,2,FALSE)","v":"5 millió Ft"}]
[52,"256","Fém felületkezelése, megmunkálása",null,4,1,4,2,2,4,2,0,3,3,null,null,null,null,1,0,205,411,499,null,null,null,2,2,2,2,2,1,0]
[53,"257","Evőeszköz, szerszám, általános fémáru gyártása",null,4,2,2,2,2,2,2,0,3,3,null,null,null,null,2,0,411,822,999,null,null,null,{"$f":"IF(AA54=1,0,IF(AA54=2,'1.telephely'!B49*Tarifa!AB57,IF(Tarifa!AA54=3,'1.telephely'!B49*Tarifa!AB58,0)))","v":0},{"$f":"IF(AB54=1,0,IF(AB54=2,'2.telephely'!B46*Tarifa!AB57,IF(Tarifa!AB54=3,'2.telephely'!B46*Tarifa!AB58,0)))","v":0},{"$f":"IF(AC54=1,0,IF(AC54=2,'3.telephely'!B46*Tarifa!AB57,IF(Tarifa!AC54=3,'3.telephely'!B46*Tarifa!AB58,0)))","v":0},{"$f":"IF(AD54=1,0,IF(AD54=2,'4.telephely'!B46*Tarifa!AB57,IF(Tarifa!AD54=3,'4.telephely'!B46*Tarifa!AB58,0)))","v":0},{"$f":"IF(AE54=1,0,IF(AE54=2,'5.telephely'!B46*Tarifa!AB57,IF(Tarifa!AE54=3,'5.telephely'!B46*Tarifa!AB58,0)))","v":0},2,"5 millió Ft"]
[54,"259","Egyéb fémfeldolgozási termék gyártása",null,4,2,2,2,4,2,2,0,3,3,null,null,null,null,3,0,616,1233,1498,null,null,null,"Gépjármű javítók",null,null,null,null,3,"15 millió Ft"]
[55,"261","Elektronikai alkatrész, áramköri kártya gyártása",null,3,3,3,1,1,2,2,0,4,2,null,null,null,null,4,0,890,1781,2164,null,null,null,"5 millió Ft",0.35]
[56,"262","Számítógép, perifériás egység gyártása",null,3,3,3,2,2,2,2,0,4,2,null,null,null,null,5,0,1223,2446,2973,null,null,null,"15 millió Ft",0.45]
[57,"263","Híradás-technikai berendezés gyártása",null,3,2,3,2,2,2,2,0,4,2]
[58,"264","Elektronikus fogyasztási cikk gyártása",null,3,2,3,2,2,2,2,0,4,2,null,null,null,null,{"$f":"VLOOKUP(S62,$X$31:$Y$34,2,FALSE)","v":"5 millió Ft"},{"$f":"VLOOKUP(T62,$X$31:$Y$34,2,FALSE)","v":"5 millió Ft"},{"$f":"VLOOKUP(U62,$X$31:$Y$34,2,FALSE)","v":"5 millió Ft"},{"$f":"VLOOKUP(V62,$X$31:$Y$34,2,FALSE)","v":"5 millió Ft"},{"$f":"VLOOKUP(W62,$X$31:$Y$34,2,FALSE)","v":"5 millió Ft"},null,null,null,"Szállodai"]
[59,"265","Műszer-, óragyártás",null,3,3,2,2,2,2,2,0,3,2,null,null,null,null,{"$f":"VLOOKUP($O3,$A$3:$N$247,10)","v":2},{"$f":"VLOOKUP(O4,$A$3:$L$247,10)","v":2},{"$f":"VLOOKUP(O5,$A$3:$L$247,10)","v":2},{"$f":"VLOOKUP(O6,$A$3:$L$247,10)","v":2},{"$f":"VLOOKUP(O7,$A$3:$L$247,10)","v":2},null,null,null,2,2,2,2,2]
[60,"267","Optikai eszköz gyártása",null,3,1,2,2,2,3,2,0,3,2,null,null,null,null,2,2,2,2,2,null,null,null,{"$f":"VLOOKUP(AA61,$AF$54:$AG$56,2,FALSE)","v":"5 millió Ft"},{"$f":"VLOOKUP(AB61,$AF$54:$AG$56,2,FALSE)","v":"5 millió Ft"},{"$f":"VLOOKUP(AC61,$AF$54:$AG$56,2,FALSE)","v":"5 millió Ft"},{"$f":"VLOOKUP(AD61,$AF$54:$AG$56,2,FALSE)","v":"5 millió Ft"},{"$f":"VLOOKUP(AE61,$AF$54:$AG$56,2,FALSE)","v":"5 millió Ft"}]
[61,"268","Mágneses, optikai információhordozó gyártása",null,3,3,3,2,2,1,2,0,3,2,null,null,null,null,{"$f":"HLOOKUP(S62,S64:W70,S61+2,FALSE)","v":1195},{"$f":"HLOOKUP(T62,S64:W70,T61+2,FALSE)","v":1195},{"$f":"HLOOKUP(U62,$S$64:$W$70,U61+2,FALSE)","v":1195},{"$f":"HLOOKUP(V62,$S$64:$W$70,V61+2,FALSE)","v":1195},{"$f":"HLOOKUP(W62,$S$64:$W$70,W61+2,FALSE)","v":1195}]
[62,"271","Villamos motor, áramfejlesztő, áramelosztó, -szabályozó készülék gyártása",null,4,4,2,2,2,2,2,0,4,2,null,null,null,null,"Bérlői",1,2,3,4]
[63,"273","Vezeték, kábel, szerelvény gyártása",null,3,1,3,2,2,3,2,0,4,2,null,null,null,null,0,0,0,0,0]
[64,"274","Villamos világítóeszköz gyártása",null,4,2,3,2,2,2,2,0,4,2,null,null,null,null,1,0,591,1183,1437]
[65,"275","Háztartási készülék gyártása",null,3,1,3,2,2,2,2,0,4,2,null,null,null,null,2,0,1195,2390,2905]
[66,"279","Egyéb villamos berendezés gyártása",null,3,1,3,2,2,2,2,0,4,2,null,null,null,null,3,0,1787,3573,4343]
[67,"281","Általános rendeltetésű gép gyártása",null,3,2,3,2,2,3,3,0,4,3,null,null,null,null,4,0,2692,5385,6544]
[68,"282","Egyéb általános rendeltetésű gép gyártása",null,3,2,3,2,2,3,3,0,4,3,null,null,null,null,5,0,3586,7171,8716]
[69,"283","Mezőgazdasági, erdészeti gép gyártása",null,3,1,3,2,2,2,2,0,4,3]
[70,"284","Szerszámgépgyártás",null,3,1,3,2,2,2,2,0,4,3,null,null,null,null,{"$f":"VLOOKUP(S74,$X$75:$Y$78,2,FALSE)","v":"5 millió Ft"},{"$f":"VLOOKUP(T74,$X$75:$Y$78,2,FALSE)","v":"5 millió Ft"},{"$f":"VLOOKUP(U74,$X$75:$Y$78,2,FALSE)","v":"5 millió Ft"},{"$f":"VLOOKUP(V74,$X$75:$Y$78,2,FALSE)","v":"5 millió Ft"},{"$f":"VLOOKUP(W74,$X$75:$Y$78,2,FALSE)","v":"5 millió Ft"}]
[71,"289","Egyéb speciális rendeltetésű gép gyártása",null,3,1,3,2,2,3,3,0,4,3,null,null,null,null,{"$f":"VLOOKUP(O3,$A$3:$N$247,12)","v":1},{"$f":"VLOOKUP(O4,$A$3:$N$247,12)","v":1},{"$f":"VLOOKUP(O5,$A$3:$N$247,12)","v":1},{"$f":"VLOOKUP(O6,$A$3:$N$247,12)","v":1},{"$f":"VLOOKUP(O7,$A$3:$N$247,12)","v":1}]
[72,"291","Közúti gépjármű gyártása",null,4,2,3,2,2,4,0,0,4,3,null,null,null,null,2,2,2,2,2,null,null,null,"Értékelés módja"]
[73,"292","Gépjármű-karosszéria, pótkocsi gyártása",null,4,2,3,2,2,4,0,0,4,3,null,null,null,null,{"$f":"HLOOKUP(S74,$S$76:$W$82,S73+2,FALSE)","v":430},{"$f":"HLOOKUP(T74,$S$76:$W$82,T73+2,FALSE)","v":430},{"$f":"HLOOKUP(U74,$S$76:$W$82,U73+2,FALSE)","v":430},{"$f":"HLOOKUP(V74,$S$76:$W$82,V73+2,FALSE)","v":430},{"$f":"HLOOKUP(W74,$S$76:$W$82,W73+2,FALSE)","v":430},1,0,null,"1.telephely",2]
[74,"293","Közúti jármű alkatrészeinek gyártása",null,4,2,4,2,2,3,0,0,4,3,null,null,null,null,"Szolg.",1,2,3,4,2,"5 millió Ft",null,"2. telephely",1]
[75,"310","Bútorgyártás",null,5,2,5,2,4,2,4,1,3,3,null,null,null,null,0,0,0,0,0,3,"15 millió Ft",null,"3. telephely",2]
[76,"321","Ékszergyártás",null,2,2,2,2,2,2,0,0,2,2,null,null,null,null,1,0,430,635,731,4,"25 millió Ft",null,"4. telephely",2]
[77,"322","Hangszergyártás",null,4,2,4,2,3,2,4,0,2,2,null,null,null,null,2,0,620,916,1053,null,null,null,"5. telephely",2]
[78,"323","Sportszergyártás",null,4,2,3,2,3,2,4,0,2,2,null,null,null,null,3,0,760,1123,1291]
[79,"324","Játékgyártás",null,3,1,3,2,2,2,4,0,2,2,null,null,null,null,4,0,1060,1566,1801]
[80,"325","Orvosi eszköz gyártása",null,3,2,3,2,2,3,0,0,3,2,null,null,null,null,5,0,1620,2393,2752]
[81,"329","M.n.s. egyéb feldolgozóipari tevékenység",null,4,2,3,2,2,1,4,0,2,2]
[82,"331","Ipari gép, berendezés, eszköz javítása",null,3,2,1,3,4,3,4,4,4,3,null,null,null,null,{"$f":"VLOOKUP(S86,$X$31:$Y$34,2,FALSE)","v":"5 millió Ft"},{"$f":"VLOOKUP(T86,$X$31:$Y$34,2,FALSE)","v":"5 millió Ft"},{"$f":"VLOOKUP(U86,$X$31:$Y$34,2,FALSE)","v":"5 millió Ft"},{"$f":"VLOOKUP(V86,$X$31:$Y$34,2,FALSE)","v":"5 millió Ft"},{"$f":"VLOOKUP(W86,$X$31:$Y$34,2,FALSE)","v":"5 millió Ft"}]
[83,"332","Ipari gép, berendezés üzembe helyezése",null,3,2,2,3,4,3,4,4,4,3,null,null,null,null,{"$f":"VLOOKUP(O3,$A$3:$N$247,14)","v":2},{"$f":"VLOOKUP(O4,$A$3:$N$247,14)","v":2},{"$f":"VLOOKUP(O5,$A$3:$N$247,14)","v":2},{"$f":"VLOOKUP(O6,$A$3:$N$247,14)","v":2},{"$f":"VLOOKUP(O7,$A$3:$N$247,14)","v":2}]
[84,"360","Víztermelés, -kezelés, -ellátás",null,3,1,0,4,4,4,0,0,0,4,null,null,null,null,2,2,2,2,2]
[85,"370","Szennyvíz gyűjtése, kezelése",null,2,2,4,2,2,2,0,0,0,4,null,null,null,null,{"$f":"HLOOKUP(S86,$S$88:$W$94,S85+2,FALSE)","v":558},{"$f":"HLOOKUP(T86,$S$88:$W$94,T85+2,FALSE)","v":558},{"$f":"HLOOKUP(U86,$S$88:$W$94,U85+2,FALSE)","v":558},{"$f":"HLOOKUP(V86,$S$88:$W$94,V85+2,FALSE)","v":558},{"$f":"HLOOKUP(W86,$S$88:$W$94,W85+2,FALSE)","v":558}]
[86,"411","Épületépítési projekt szervezése",null,4,3,2,2,2,5,0,3,4,2,null,null,null,null,"Bérbeadói",1,2,3,4]
[87,"412","Lakó- és nem lakó épület építése",null,3,3,1,5,5,4,4,0,4,2,null,null,null,null,0,0,0,0,0]
[88,"422","Közműépítés",null,2,3,1,5,4,3,4,5,4,3,null,null,null,null,1,0,258,439,516]
[89,"429","M.n.s. egyéb építmény építése",null,2,2,2,5,4,4,5,3,4,3,null,null,null,null,2,0,558,949,1116]
[90,"431","Bontás, építési terület előkészítése",null,3,3,3,2,2,0,0,4,4,3,null,null,null,null,3,0,684,1163,1368]
[91,"432","Épületgépészeti szerelés",null,3,3,2,4,4,4,4,4,4,3,null,null,null,null,4,0,1060,1802,2120]
[92,"433","Befejező építés",null,2,3,2,5,4,5,5,1,4,3,null,null,null,null,5,0,1620,2754,3240]
[93,"439","Egyéb speciális szaképítés",null,4,1,2,2,2,1,4,4,4,3]
[94,"451","Gépjármű-kereskedelem",null,3,3,2,2,2,2,0,2,2,2,null,null,null,null,{"$f":"VLOOKUP(S98,$X$75:$Y$78,2,FALSE)","v":"5 millió Ft"},{"$f":"VLOOKUP(T98,$X$75:$Y$78,2,FALSE)","v":"5 millió Ft"},{"$f":"VLOOKUP(U98,$X$75:$Y$78,2,FALSE)","v":"5 millió Ft"},{"$f":"VLOOKUP(V98,$X$75:$Y$78,2,FALSE)","v":"5 millió Ft"},{"$f":"VLOOKUP(W98,$X$75:$Y$78,2,FALSE)","v":"5 millió Ft"}]
[95,"452","Gépjárműjavítás, -karbantartás",null,3,2,2,2,2,2,0,2,2,2,null,null,null,null,{"$f":"VLOOKUP(O3,$A$3:$N$247,13)","v":2},{"$f":"VLOOKUP(O4,$A$3:$N$247,13)","v":2},{"$f":"VLOOKUP(O5,$A$3:$N$247,13)","v":2},{"$f":"VLOOKUP(O6,$A$3:$N$247,13)","v":2},{"$f":"VLOOKUP(O7,$A$3:$N$247,13)","v":2}]
[96,"453","Gépjárműalkatrész-kereskedelem",null,2,3,1,2,1,2,3,0,2,2,null,null,null,null,2,2,2,2,2]
[97,"454","Motorkerékpár, -alkatrész kereskedelme, javítása",null,3,2,2,2,2,2,2,2,2,2,null,null,null,null,{"$f":"HLOOKUP(S98,$S$100:$W$106,S97+2,FALSE)","v":120},{"$f":"HLOOKUP(T98,$S$100:$W$106,T97+2,FALSE)","v":120},{"$f":"HLOOKUP(U98,$S$100:$W$106,U97+2,FALSE)","v":120},{"$f":"HLOOKUP(V98,$S$100:$W$106,V97+2,FALSE)","v":120},{"$f":"HLOOKUP(W98,$S$100:$W$106,W97+2,FALSE)","v":120}]
[98,"461","Ügynöki nagykereskedelem",null,3,3,3,2,2,2,2,0,3,2,null,null,null,null,"Környezet",1,2,3,4]
[99,"462","Mezőgazdasági nyersanyag, élőállat nagykereskedelme",null,3,2,2,2,2,3,3,0,3,3,null,null,null,null,0,0,0,0,0]
[100,"463","Élelmiszer, ital, dohányáru nagykereskedelme",null,4,3,4,2,1,2,2,0,3,2,null,null,null,null,1,0,60,89,102]
[101,"464","Háztartási cikk nagykereskedelme",null,3,2,2,3,3,3,3,0,3,3,null,null,null,null,2,0,120,178,204]
[102,"465","Információtechnológiai, híradás-technikai termék nagykereskedelme",null,3,3,2,2,2,1,2,0,3,2,null,null,null,null,3,0,150,222,255]
[103,"467","Egyéb szakosodott nagykereskedelem",null,3,2,3,3,3,3,3,0,3,3,null,null,null,null,4,0,170,252,289]
[104,"469","Vegyes termékkörű nagykereskedelem",null,4,3,3,3,1,3,2,0,3,3,null,null,null,null,5,0,190,281,323]
[105,"471","Nem szakosodott bolti vegyes kiskereskedelem",null,3,2,2,3,3,3,3,0,2,3]
[106,"4719","Iparcikk jellegű bolti vegyes kiskereskedelem",null,3,2,3,3,3,3,3,0,2,3]
[107,"472","Élelmiszer, ital, dohányáru kiskereskedelme",null,4,2,2,2,3,2,2,0,2,3,null,null,null,null,"Megyei jogú város"]
[108,"4726","Dohányáru kiskereskedelem",null,4,6,2,2,3,2,2,0,2,3,null,null,null,null,5600,{"$f":"VLOOKUP('1.telephely'!$F$5,$S$110:$S$245,1,FALSE)","v":{"$error":"#N/A"}},{"$f":"ISNA(T110)","v":true}]
[109,"473","Gépjárműüzemanyag-kiskereskedelem",null,4,4,2,4,4,4,4,0,5,3,null,null,null,null,9400,{"$f":"VLOOKUP('2.telephely'!$F$2,$S$110:$S$245,1,FALSE)","v":{"$error":"#N/A"}},{"$f":"ISNA(T111)","v":true}]
[110,"474","Információs, híradás-technikai termék kiskereskedelme",null,3,3,2,2,2,1,2,0,3,2,null,null,null,null,2400,{"$f":"VLOOKUP('3.telephely'!$F$2,$S$110:$S$245,1,FALSE)","v":{"$error":"#N/A"}},{"$f":"ISNA(T112)","v":true}]
[111,"4741","Számítógép, periféria, szoftver kiskereskedelme",null,3,3,2,3,2,2,1,0,3,2,null,null,null,null,3300,{"$f":"VLOOKUP('4.telephely'!$F$2,$S$110:$S$245,1,FALSE)","v":{"$error":"#N/A"}},{"$f":"ISNA(T113)","v":true}]
[112,"4743","Audio-, videoberendezés kiskereskedelme",null,2,2,2,2,2,2,1,0,3,2,null,null,null,null,2030,{"$f":"VLOOKUP('5.telephely'!$F$2,$S$110:$S$245,1,FALSE)","v":{"$error":"#N/A"}},{"$f":"ISNA(T114)","v":true}]
[113,"475","Egyéb háztartási cikk kiskereskedelme",null,3,2,2,3,3,3,3,0,3,2,null,null,null,null,6800]
[114,"4751","Textil-kiskereskedelem",null,3,2,2,3,2,3,1,0,3,2,null,null,null,null,7400]
[115,"4752","Vasáru-, festék-, üveg-kiskereskedelem",null,4,2,2,4,2,4,4,0,3,3,null,null,null,null,6000]
[116,"475203","Építőanyag- és szaniteráru-kereskedelem",null,4,3,3,3,3,3,3,0,3,3,null,null,null,null,8800]
[117,"475205","Épületfa-kiskereskedelem",null,4,1,2,2,3,2,2,0,3,3,null,null,null,null,4400]
[118,"475206","Mezőgazdasági eszközök, kiskereskedelme",null,3,3,3,3,3,3,3,0,3,3,null,null,null,null,3100]
[119,"4753","Takaró, szőnyeg, fal-, padlóburkoló kiskereskedelme",null,2,1,2,3,3,3,2,0,3,3,null,null,null,null,7100]
[120,"4759","Bútor, világítási eszköz, egyéb háztartási cikk kiskereskedelme",null,4,3,2,3,3,3,2,0,3,3,null,null,null,null,8000]
[121,"475909","Hangszer-kiskereskedelem",null,2,2,2,3,3,3,1,0,2,2,null,null,null,null,5000]
[122,"476","Kulturális, szabadidős cikk bolti kiskereskedelme",null,3,3,3,3,3,3,2,0,2,2,null,null,null,null,9700]
[123,"4761","Könyv-kiskereskedelem",null,2,2,2,2,2,2,1,0,3,2,null,null,null,null,2800]
[124,"4762","Újság-, papíráru-kiskereskedelem",null,3,3,2,3,2,3,2,0,3,2,null,null,null,null,8200]
[125,"4764","Sportszer-kiskereskedelem",null,3,3,3,3,2,3,2,0,2,2,null,null,null,null,8900]
[126,"4765","Játék-kiskereskedelem",null,3,3,3,3,2,3,3,0,3,2,null,null,null,null,4000]
[127,"477","Egyéb m.n.s. áru kiskereskedelme",null,3,3,3,3,2,3,2,0,3,3,null,null,null,null,4002]
[128,"4771","Ruházat kiskereskedelem",null,4,4,3,4,3,4,4,0,3,3,null,null,null,null,4024]
[129,"4772","Lábbeli-, bőráru-kiskereskedelem",null,2,3,2,2,2,2,2,0,3,3,null,null,null,null,4025]
[130,"4773","Gyógyszer-kiskereskedelem",null,3,4,2,4,2,3,3,0,3,3,null,null,null,null,4026]
[131,"4775","Illatszer-kiskereskedelem",null,4,2,3,3,3,3,3,0,3,3,null,null,null,null,4027]
[132,"4776","Dísznövény, vetőmag, műtrágya, hobbiállat-eledel kiskereskedelme",null,3,2,2,3,2,3,2,0,3,3,null,null,null,null,4028]
[133,"477808","Fotó-,optikai cikk- kiskereskedelem",null,2,2,2,2,2,2,1,0,3,3,null,null,null,null,4029]
[134,"477813","Ajándéktárgy-kiskereskedelem",null,3,2,2,3,2,3,3,0,3,3,null,null,null,null,4030]
[135,"477814","Mutatványoskellékáru-kiskereskedelem",null,3,2,3,2,2,2,1,0,3,3,null,null,null,null,4031]
[136,"477816","Díszállat- és díszhal-kiskereskedelem",null,2,1,2,3,2,4,1,0,2,3,null,null,null,null,4032]
[137,"479","Nem bolti, piaci kiskereskedelem",null,2,3,2,2,2,2,2,0,2,2,null,null,null,null,4033]
[138,"4942","Költöztetés",null,4,2,3,3,4,3,0,4,3,3,null,null,null,null,4034]
[139,"521","Raktározás, tárolás",null,4,4,3,2,3,2,1,1,3,3,null,null,null,null,9000]
[140,"531","Postai tevékenység (egyetemes kötelezettséggel)",null,2,2,1,2,4,2,0,1,3,3,null,null,null,null,9021]
[141,"532","Egyéb postai, futárpostai tevékenység",null,2,2,1,2,4,2,0,1,3,3,null,null,null,null,9022]
[142,"551","Szállodai szolgáltatás",null,2,2,2,2,2,2,2,1,2,2,null,null,null,null,9023]
[143,"551002","Panzió szolgáltatás",null,2,3,2,2,2,2,2,1,2,2,null,null,null,null,9024]
[144,"552","Üdülési, egyéb átmeneti szálláshely-szolgáltatás",null,3,3,3,2,2,2,2,2,2,2,null,null,null,null,9025]
[145,"553","Kempingszolgáltatás",null,3,2,3,3,1,3,2,2,3,2,null,null,null,null,9026]
[146,"559","Egyéb szálláshely-szolgáltatás",null,3,2,3,3,1,3,2,2,2,2,null,null,null,null,9027]
[147,"561","Éttermi, mozgó vendéglátás",null,2,2,2,2,2,3,3,1,2,2,null,null,null,null,9028]
[148,"561001","Éttermi, cukrászdai szolgáltatás",null,2,2,2,2,2,3,4,0,2,3,null,null,null,null,9029]
[149,"562","Rendezvényi étkeztetés és egyéb vendéglátás",null,4,4,4,5,4,5,5,0,3,3,null,null,null,null,9030]
[150,"563","Italszolgáltatás",null,2,3,2,2,2,3,3,1,2,2,null,null,null,null,9011]
[151,"581","Kiadói tevékenység",null,4,2,1,2,2,2,0,0,3,3,null,null,null,null,9012]
[152,"582","Szoftverkiadás",null,2,1,2,2,1,2,3,3,3,3,null,null,null,null,9019]
[153,"591","Film-, video-, televízióműsor-gyártás",null,3,2,4,4,4,0,0,4,3,0,null,null,null,null,5623]
[154,"5914","Filmvetítés",null,3,2,3,3,2,3,0,1,2,3,null,null,null,null,5671]
[155,"592","Hangfelvétel készítése, kiadása",null,3,2,2,2,2,2,0,3,2,3,null,null,null,null,4063]
[156,"601","Rádióműsor-szolgáltatás",null,3,2,2,2,2,2,0,3,2,2,null,null,null,null,4078]
[157,"602","Televízióműsor összeállítása, szolgáltatása",null,3,2,4,4,2,4,0,4,2,4,null,null,null,null,4079]
[158,"611","Vezetékes távközlés",null,2,4,2,4,5,4,4,1,4,3,null,null,null,null,4225]
[159,"620","Információ-technológiai szolgáltatás",null,3,2,4,2,2,2,2,0,3,3,null,null,null,null,2407]
[160,"631","Adatfeldolgozás, web-hoszting, világháló-portál szolgáltatás",null,3,2,4,2,2,2,2,0,2,3,null,null,null,null,3304]
[161,"639","Egyéb információs szolgáltatás",null,3,2,4,2,2,2,2,0,2,3,null,null,null,null,6806]
[162,"641","Monetáris közvetítés",null,2,2,1,2,2,2,0,0,2,3,null,null,null,null,6008]
[163,"642","Vagyonkezelés (holding)",null,2,2,1,2,2,2,0,0,2,3,null,null,null,null,6044]
[164,"643","Befektetési alapok és hasonlók",null,2,2,1,2,2,2,0,0,2,3,null,null,null,null,3500]
[165,"649","Egyéb pénzügyi közvetítés",null,2,2,1,2,2,2,0,0,2,3,null,null,null,null,3501]
[166,"661","Pénzügyi kiegészítő tevékenység (kivéve: biztosítás, nyugdíjalap)",null,3,5,2,1,1,1,0,0,2,2,null,null,null,null,3508]
[167,"662","Biztosítást, nyugdíjalapot kiegészítő tevékenység",null,2,2,2,2,2,2,0,0,2,2,null,null,null,null,3510]
[168,"663","Alapkezelés",null,3,5,2,1,1,1,0,0,2,2,null,null,null,null,3515]
[169,"681","Saját tulajdonú ingatlan adásvétele",null,2,2,2,3,3,3,0,0,2,2,null,null,null,null,3516]
[170,"682","Saját tulajdonú, bérelt ingatlan bérbeadása, üzemeltetése",null,2,2,2,3,2,3,0,3,2,2,null,null,null,null,3517]
[171,"683","Ingatlanügynöki, -kezelési szolgáltatás",null,2,3,1,2,3,2,4,1,2,2,null,null,null,null,3518]
[172,"691","Jogi tevékenység",null,2,3,2,2,2,2,0,5,2,3,null,null,null,null,3519]
[173,"692","Számviteli, könyvvizsgálói, adószakértői tevékenység",null,2,2,2,1,2,1,0,4,2,3,null,null,null,null,3521]
[174,"701","Üzletvezetés",null,2,2,2,2,2,2,0,4,2,3,null,null,null,null,3524]
[175,"702","Üzletviteli tanácsadás",null,2,2,2,2,2,2,0,4,2,3,null,null,null,null,3525]
[176,"711","Építészmérnöki tevékenység",null,4,2,2,4,4,4,0,0,4,4,null,null,null,null,3526]
[177,"712","Műszaki vizsgálat, elemzés",null,2,2,2,2,2,2,0,3,3,3,null,null,null,null,3527]
[178,"721","Természettudományi, műszaki kutatás, fejlesztés",null,4,2,3,3,3,4,0,0,3,3,null,null,null,null,3528]
[179,"722","Társadalomtudományi, humán kutatás, fejlesztés",null,2,2,2,2,2,2,0,0,3,3,null,null,null,null,3529]
[180,"731","Reklám",null,4,4,2,3,3,3,0,3,3,3,null,null,null,null,3530]
[181,"732","Piac-, közvélemény-kutatás",null,2,1,2,2,2,2,0,3,3,3,null,null,null,null,3531]
[182,"741","Divat-, formatervezés",null,2,2,1,2,2,2,1,4,3,3,null,null,null,null,3532]
[183,"742","Fényképészet",null,2,1,2,3,2,3,0,2,3,3,null,null,null,null,3533]
[184,"743","Fordítás, tolmácsolás",null,4,1,3,1,3,1,2,1,2,3,null,null,null,null,3534]
[185,"749","M.n.s. egyéb szakmai, tudományos, műszaki tevékenység",null,4,2,3,2,2,2,0,0,3,3,null,null,null,null,3535]
[186,"750","Állat-egészségügyi ellátás",null,4,2,3,3,4,3,0,4,4,3,null,null,null,null,8808]
[187,"772903","Esküvői ruha, jelmez, egyéb ruházati termék kölcsönzése",null,3,2,2,2,2,2,1,1,3,3,null,null,null,null,8809]
[188,"781","Munkaközvetítés",null,2,1,2,2,2,2,0,4,3,3,null,null,null,null,8831]
[189,"782","Munkaerőkölcsönzés",null,2,1,2,2,2,2,0,4,3,3,null,null,null,null,4246]
[190,"783","Egyéb emberierőforrás-ellátás, -gazdálkodás",null,2,1,2,2,2,2,0,4,3,3,null,null,null,null,4405]
[191,"811","Építményüzemeltetés",null,2,2,3,3,4,3,0,2,3,3,null,null,null,null,4412]
[192,"812","Takarítás",null,2,1,1,2,3,2,0,2,4,3,null,null,null,null,4431]
[193,"821","Adminisztratív, kiegészítő szolgáltatás",null,4,4,2,3,3,2,0,2,2,3,null,null,null,null,4432]
[194,"822","Telefoninformáció",null,4,4,2,3,3,2,0,2,2,3,null,null,null,null,4433]
[195,"823","Konferencia, kereskedelmi bemutató szervezése",null,4,1,2,2,2,2,0,2,2,3,null,null,null,null,4481]
[196,"829","Egyéb kiegészítő gazdasági tevékenység",null,3,4,0,5,5,2,0,0,2,3,null,null,null,null,4551]
[197,"841","Közigazgatás",null,4,2,4,4,4,4,2,5,4,3,null,null,null,null,7621]
[198,"842","Társadalmi közszolgáltatás",null,2,2,3,4,4,4,0,5,3,3,null,null,null,null,7622]
[199,"851","Iskolai előkészítő oktatás",null,3,4,4,4,4,4,2,4,3,4,null,null,null,null,7623]
[200,"852","Alapfokú oktatás",null,4,3,4,3,3,3,2,4,3,4,null,null,null,null,7624]
[201,"853","Középfokú oktatás",null,4,4,4,4,4,4,3,1,3,4,null,null,null,null,7625]
[202,"854","Felső szintű oktatás",null,4,4,4,4,4,4,4,4,3,4,null,null,null,null,7626]
[203,"855","Egyéb oktatás",null,4,4,4,4,4,4,3,1,3,4,null,null,null,null,7627]
[204,"855203","Táncoktatás",null,3,1,2,4,3,4,0,4,3,4,null,null,null,null,7628]
[205,"8553","Járművezető-oktatás",null,3,1,2,2,4,2,0,1,3,4,null,null,null,null,7629]
[206,"856","Oktatást kiegészítő tevékenység",null,3,4,4,4,4,4,2,4,3,4,null,null,null,null,7630]
[207,"861","Fekvőbeteg-ellátás",null,3,3,4,5,5,3,0,0,5,3,null,null,null,null,7631]
[208,"8621","Általános járóbeteg-ellátás",null,4,2,3,3,3,3,0,0,5,3,null,null,null,null,7632]
[209,"8622","Szakorvosi járóbeteg-ellátás",null,2,1,2,3,3,3,0,0,5,3,null,null,null,null,7633]
[210,"8623","Fogorvosi járóbeteg-ellátás",null,2,1,2,2,2,2,0,0,5,3,null,null,null,null,7634]
[211,"869","Egyéb humán-egészségügyi ellátás",null,2,1,2,2,1,2,0,0,5,3,null,null,null,null,7635]
[212,"869005","Természetgyógyászati ellátás",null,2,2,2,2,2,2,2,0,5,3,null,null,null,null,7636]
[213,"872","Mentális, szenvedélybeteg bentlakásos ellátása",null,5,2,4,4,5,4,0,5,3,4,null,null,null,null,7691]
[214,"873","Idősek, fogyatékosok bentlakásos ellátása",null,2,2,2,4,4,4,0,3,3,4,null,null,null,null,7693]
[215,"879","Egyéb bentlakásos ellátás",null,2,2,2,4,4,4,0,3,3,4,null,null,null,null,3102]
[216,"881","Idősek, fogyatékosok szociális ellátása bentlakás nélkül",null,2,1,4,3,3,3,3,3,3,3,null,null,null,null,3104]
[217,"889","Egyéb szociális ellátás bentlakás nélkül",null,2,1,4,3,3,3,3,3,3,3,null,null,null,null,3109]
[218,"900","Alkotó-, művészeti, szórakoztató tevékenység",null,3,1,2,2,2,2,0,2,3,3,null,null,null,null,3121]
[219,"9001","Előadó-művészet",null,4,2,3,4,4,4,0,1,3,4,null,null,null,null,3141]
[220,"910","Könyvtári, levéltári, múzeumi, egyéb kulturális tevékenység",null,4,2,3,3,3,3,0,1,3,3,null,null,null,null,9407]
[221,"9102","Múzeumi tevékenység",null,2,2,2,4,3,4,0,1,3,3,null,null,null,null,9408]
[222,"9104","Növény-, állatkert, természetvédelmi terület működtetése",null,4,3,2,5,4,5,0,1,3,3,null,null,null,null,9494]
[223,"931","Sporttevékenység",null,4,2,4,4,3,4,0,2,3,4,null,null,null,null,6710]
[224,"9313","Testedzési szolgáltatás",null,3,2,3,4,4,4,1,5,3,4,null,null,null,null,6720]
[225,"932","Egyéb szórakoztatás, szabadidős tevékenység",null,5,4,4,5,5,4,0,0,3,4,null,null,null,null,6721]
[226,"941","Vállalkozói, szakmai érdekképviselet",null,2,2,2,2,2,4,0,0,3,4,null,null,null,null,6722]
[227,"942","Szakszervezeti tevékenység",null,2,2,2,2,2,4,0,0,3,4,null,null,null,null,6723]
[228,"949","Egyéb közösségi, társadalmi tevékenység",null,2,2,2,3,2,4,0,0,3,4,null,null,null,null,6724]
[229,"9491","Egyházi tevékenység",null,4,4,2,3,2,3,0,2,3,3,null,null,null,null,6725]
[230,"9499","M.n.s. egyéb közösségi, társadalmi tevékenység",null,3,4,2,4,2,4,0,2,3,4,null,null,null,null,6726]
[231,"951","Számítógép, kommunikációs eszköz javítása",null,3,2,2,2,2,2,2,2,4,2,null,null,null,null,6727]
[232,"952","Személyi, háztartási cikk javítása",null,3,2,2,2,2,2,2,2,4,2,null,null,null,null,6728]
[233,"952911","Ruházati és egyéb konfekcionált termékek javítása",null,2,2,1,2,1,2,1,1,4,2,null,null,null,null,6729]
[234,"960","Egyéb személyi szolgáltatás",null,2,2,2,3,4,4,0,3,3,3,null,null,null,null,6753]
[235,"9601","Textil, szőrme mosása, tisztítása",null,3,2,4,4,4,4,1,1,4,3,null,null,null,null,6757]
[236,"9602","Fodrászat, szépségápolás",null,4,2,4,3,3,3,3,4,3,3,null,null,null,null,6771]
[237,"960903","Partnerközvetítés, társkeresés",null,2,1,1,3,2,3,0,3,3,3,null,null,null,null,6791]
[238,"970","Háztartási alkalmazottat foglalkoztató magánháztartás",null,3,2,2,4,4,2,0,0,3,3,null,null,null,null,8019]
[239,"981","Háztartás termék-előállítása, szolgáltatása saját fogyasztásra",null,4,2,4,4,4,3,1,0,4,3,null,null,null,null,5008]
[240,"982","Háztartás szolgáltatása saját fogyasztásra",null,4,2,4,4,4,3,1,0,4,3,null,null,null,null,9707]
[241,"990","Területen kívüli szervezet",null,4,4,4,4,4,4,0,0,3,3,null,null,null,null,9719]
[242,"990911","Állatkozmetika, kutyaiskola",null,2,2,1,2,3,2,1,3,4,3,null,null,null,null,8411]
[243,null,null,null,null,null,null,null,null,null,null,null,null,null,null,null,null,null,8412]
[244]
[245]
[]
[]
[]
[]
[]
[]
[]
[]
[]
[]
[null,null,"tevékenyésg megnevezése","teáor","ssz"]
[null,null,"Adatfeldolgozás, web-hoszting, világháló-portál szolgáltatás","631",160]
[null,null,"Adminisztratív, kiegészítő szolgáltatás","821",193]
[null,null,"Ajándéktárgy-kiskereskedelem","477813",134]
[null,null,"Alapfokú oktatás","852",200]
[null,null,"Alapkezelés","663",168]
[null,null,"Alkotó-, művészeti, szórakoztató tevékenység","900",218]
[null,null,"Állat-egészségügyi ellátás","750",186]
[null,null,"Állatkozmetika, kutyaiskola","990911",242]
[null,null,"Állattenyésztés","014",4]
[null,null,"Általános járóbeteg-ellátás","8621",208]
[null,null,"Általános rendeltetésű gép gyártása","281",67]
[null,null,"Audio-, videoberendezés kiskereskedelme","4743",112]
[null,null,"Befejező építés","433",92]
[null,null,"Befektetési alapok és hasonlók","643",164]
[null,null,"Beton-, gipsz-, cementtermék gyártása","236",47]
[null,null,"Biztosítást, nyugdíjalapot kiegészítő tevékenység","662",167]
[null,null,"Bontás, építési terület előkészítése","431",90]
[null,null,"Bőr, szőrme kikészítése","151",31]
[null,null,"Bútor, világítási eszköz, egyéb háztartási cikk kiskereskedelme","4759",120]
[null,null,"Bútorgyártás","310",75]
[null,null,"Díszállat- és díszhal-kiskereskedelem","477816",136]
[null,null,"Dísznövény, vetőmag, műtrágya, hobbiállat-eledel kiskereskedelme","4776",132]
[null,null,"Divat-, formatervezés","741",182]
[null,null,"Dohányáru kiskereskedelem","4726",108]
[null,null,"Egyéb általános rendeltetésű gép gyártása","282",68]
[null,null,"Egyéb bentlakásos ellátás","879",215]
[null,null,"Egyéb élelmiszer gyártása","108",21]
[null,null,"Egyéb emberierőforrás-ellátás, -gazdálkodás","783",190]
[null,null,"Egyéb fémfeldolgozási termék gyártása","259",54]
[null,null,"Egyéb háztartási cikk kiskereskedelme","475",113]
[null,null,"Egyéb humán-egészségügyi ellátás","869",211]
[null,null,"Egyéb információs szolgáltatás","639",161]
[null,null,"Egyéb kiegészítő gazdasági tevékenység","829",196]
[null,null,"Egyéb közösségi, társadalmi tevékenység","949",228]
[null,null,"Egyéb m.n.s. áru kiskereskedelme","477",127]
[null,null,"Egyéb oktatás","855",203]
[null,null,"Egyéb pénzügyi közvetítés","649",165]
[null,null,"Egyéb postai, futárpostai tevékenység","532",141]
[null,null,"Egyéb sokszorosítás","182",36]
[null,null,"Egyéb speciális rendeltetésű gép gyártása","289",71]
[null,null,"Egyéb speciális szaképítés","439",93]
[null,null,"Egyéb szakosodott nagykereskedelem","467",103]
[null,null,"Egyéb szálláshely-szolgáltatás","559",146]
[null,null,"Egyéb személyi szolgáltatás","960",234]
[null,null,"Egyéb szociális ellátás bentlakás nélkül","889",217]
[null,null,"Egyéb szórakoztatás, szabadidős tevékenység","932",225]
[null,null,"Egyéb textiláru gyártása","139",27]
[null,null,"Egyéb vegyi termék gyártása","205",40]
[null,null,"Egyéb villamos berendezés gyártása","279",66]
[null,null,"Egyházi tevékenység","9491",229]
[null,null,"Ékszergyártás","321",76]
[null,null,"Elektronikai alkatrész, áramköri kártya gyártása","261",55]
[null,null,"Elektronikus fogyasztási cikk gyártása","264",58]
[null,null,"Élelmiszer, ital, dohányáru kiskereskedelme","472",107]
[null,null,"Élelmiszer, ital, dohányáru nagykereskedelme","463",100]
[null,null,"Előadó-művészet","9001",219]
[null,null,"Építészmérnöki tevékenység","711",176]
[null,null,"Építményüzemeltetés","811",191]
[null,null,"Építőanyag- és szaniteráru-kereskedelem","475203",116]
[null,null,"Épületépítési projekt szervezése","411",86]
[null,null,"Épületfa-kiskereskedelem","475205",117]
[null,null,"Épületgépészeti szerelés","432",91]
[null,null,"Erdészeti szolgáltatás","024",11]
[null,null,"Erdészeti, egyéb erdőgazdálkodási tevékenység","021",8]
[null,null,"Esküvői ruha, jelmez, egyéb ruházati termék kölcsönzése","772903",187]
[null,null,"Éttermi, cukrászdai szolgáltatás","561001",148]
[null,null,"Éttermi, mozgó vendéglátás","561",147]
[null,null,"Évelő növény termesztése","012",2]
[null,null,"Evőeszköz, szerszám, általános fémáru gyártása","257",53]
[null,null,"Fa-, parafatermék, fonottáru gyártása","162",34]
[null,null,"Fakitermelés","022",9]
[null,null,"Fekvőbeteg-ellátás","861",207]
[null,null,"Felső szintű oktatás","854",202]
[null,null,"Fém felületkezelése, megmunkálása","256",52]
[null,null,"Fémszerkezet, -épületelem gyártása","251",49]
[null,null,"Fényképészet","742",183]
[null,null,"Festék, bevonóanyag gyártása","203",38]
[null,null,"Film-, video-, televízióműsor-gyártás","591",153]
[null,null,"Filmvetítés","5914",154]
[null,null,"Fodrászat, szépségápolás","9602",236]
[null,null,"Fogorvosi járóbeteg-ellátás","8623",210]
[null,null,"Fordítás, tolmácsolás","743",184]
[null,null,"Fotó-,optikai cikk- kiskereskedelem","477808",133]
[null,null,"Fűrészárugyártás","161",33]
[null,null,"Fűtési kazán, radiátor, fémtartály gyártása","252",50]
[null,null,"Gépjárműalkatrész-kereskedelem","453",96]
[null,null,"Gépjárműjavítás, -karbantartás","452",95]
[null,null,"Gépjármű-karosszéria, pótkocsi gyártása","292",73]
[null,null,"Gépjármű-kereskedelem","451",94]
[null,null,"Gépjárműüzemanyag-kiskereskedelem","473",109]
[null,null,"Gőzkazán gyártása","253",51]
[null,null,"Gumitermék gyártása","221",42]
[null,null,"Gyógyszer-kiskereskedelem","4773",130]
[null,null,"Gyümölcs-, zöldségfeldolgozás, -tartósítás","103",16]
[null,null,"Halászat","031",12]
[null,null,"Halfeldolgozás, -tartósítás","102",15]
[null,null,"Halgazdálkodás","032",13]
[null,null,"Hangfelvétel készítése, kiadása","592",155]
[null,null,"Hangszergyártás","322",77]
[null,null,"Hangszer-kiskereskedelem","475909",121]
[null,null,"Háztartás szolgáltatása saját fogyasztásra","982",240]
[null,null,"Háztartás termék-előállítása, szolgáltatása saját fogyasztásra","981",239]
[null,null,"Háztartási alkalmazottat foglalkoztató magánháztartás","970",238]
[null,null,"Háztartási cikk nagykereskedelme","464",101]
[null,null,"Háztartási készülék gyártása","275",65]
[null,null,"Híradás-technikai berendezés gyártása","263",57]
[null,null,"Húsfeldolgozás, -tartósítás, húskészítmény gyártása","101",14]
[null,null,"Idősek, fogyatékosok bentlakásos ellátása","873",214]
[null,null,"Idősek, fogyatékosok szociális ellátása bentlakás nélkül","881",216]
[null,null,"Illatszer-kiskereskedelem","4775",131]
[null,null,"Információs, híradás-technikai termék kiskereskedelme","474",110]
[null,null,"Információ-technológiai szolgáltatás","620",159]
[null,null,"Információtechnológiai, híradás-technikai termék nagykereskedelme","465",102]
[null,null,"Ingatlanügynöki, -kezelési szolgáltatás","683",171]
[null,null,"Iparcikk jellegű bolti vegyes kiskereskedelem","4719",106]
[null,null,"Ipari gép, berendezés üzembe helyezése","332",83]
[null,null,"Ipari gép, berendezés, eszköz javítása","331",82]
[null,null,"Iskolai előkészítő oktatás","851",199]
[null,null,"Italgyártás","110",23]
[null,null,"Italszolgáltatás","563",150]
[null,null,"Járművezető-oktatás","8553",205]
[null,null,"Játékgyártás","324",79]
[null,null,"Játék-kiskereskedelem","4765",126]
[null,null,"Jogi tevékenység","691",172]
[null,null,"Kempingszolgáltatás","553",145]
[null,null,"Kerámia, agyag építőanyag gyártása","233",45]
[null,null,"Kiadói tevékenység","581",151]
[null,null,"Konferencia, kereskedelmi bemutató szervezése","823",195]
[null,null,"Költöztetés","4942",138]
[null,null,"Kőmegmunkálás","237",48]
[null,null,"Könyv-kiskereskedelem","4761",123]
[null,null,"Könyvtári, levéltári, múzeumi, egyéb kulturális tevékenység","910",220]
[null,null,"Kötött, hurkolt cikk gyártása","143",30]
[null,null,"Középfokú oktatás","853",201]
[null,null,"Közigazgatás","841",197]
[null,null,"Közműépítés","422",88]
[null,null,"Közúti gépjármű gyártása","291",72]
[null,null,"Közúti jármű alkatrészeinek gyártása","293",74]
[null,null,"Kulturális, szabadidős cikk bolti kiskereskedelme","476",122]
[null,null,"Lábbeli-, bőráru-kiskereskedelem","4772",129]
[null,null,"Lábbeligyártás","152",32]
[null,null,"Lakó- és nem lakó épület építése","412",87]
[null,null,"M.n.s. egyéb építmény építése","429",89]
[null,null,"M.n.s. egyéb feldolgozóipari tevékenység","329",81]
[null,null,"M.n.s. egyéb közösségi, társadalmi tevékenység","9499",230]
[null,null,"M.n.s. egyéb szakmai, tudományos, műszaki tevékenység","749",185]
[null,null,"Mágneses, optikai információhordozó gyártása","268",61]
[null,null,"Malomipari termék, keményítő gyártása","106",19]
[null,null,"Mentális, szenvedélybeteg bentlakásos ellátása","872",213]
[null,null,"Mezőgazdasági eszközök, kiskereskedelme","475206",118]
[null,null,"Mezőgazdasági nyersanyag, élőállat nagykereskedelme","462",99]
[null,null,"Mezőgazdasági vegyi termék gyártása","202",37]
[null,null,"Mezőgazdasági, betakarítást követő szolgáltatás","016",6]
[null,null,"Mezőgazdasági, erdészeti gép gyártása","283",69]
[null,null,"Monetáris közvetítés","641",162]
[null,null,"Motorkerékpár, -alkatrész kereskedelme, javítása","454",97]
[null,null,"Munkaerőkölcsönzés","782",189]
[null,null,"Munkaközvetítés","781",188]
[null,null,"Mutatványoskellékáru-kiskereskedelem","477814",135]
[null,null,"Múzeumi tevékenység","9102",221]
[null,null,"Műanyag termék gyártása","222",43]
[null,null,"Műszaki vizsgálat, elemzés","712",177]
[null,null,"Műszer-, óragyártás","265",59]
[null,null,"Nem bolti, piaci kiskereskedelem","479",137]
[null,null,"Nem évelő növény termesztése","011",1]
[null,null,"Nem szakosodott bolti vegyes kiskereskedelem","471",105]
[null,null,"Növény-, állatkert, természetvédelmi terület működtetése","9104",222]
[null,null,"Növényi szaporítóanyag termesztése","013",3]
[null,null,"Növényi, állati olaj gyártása","104",17]
[null,null,"Nyomdai tevékenység","181",35]
[null,null,"Oktatást kiegészítő tevékenység","856",206]
[null,null,"Optikai eszköz gyártása","267",60]
[null,null,"Orvosi eszköz gyártása","325",80]
[null,null,"Panzió szolgáltatás","551002",143]
[null,null,"Partnerközvetítés, társkeresés","960903",237]
[null,null,"Pékáru, tésztafélék gyártása","107",20]
[null,null,"Pénzügyi kiegészítő tevékenység (kivéve: biztosítás, nyugdíjalap)","661",166]
[null,null,"Piac-, közvélemény-kutatás","732",181]
[null,null,"Porcelán, kerámiatermék gyártása","234",46]
[null,null,"Postai tevékenység (egyetemes kötelezettséggel)","531",140]
[null,null,"Rádióműsor-szolgáltatás","601",156]
[null,null,"Raktározás, tárolás","521",139]
[null,null,"Reklám","731",180]
[null,null,"Rendezvényi étkeztetés és egyéb vendéglátás","562",149]
[null,null,"Ruházat gyártása (kivéve: szőrmeruházat)","141",28]
[null,null,"Ruházat kiskereskedelem","4771",128]
[null,null,"Ruházati és egyéb konfekcionált termékek javítása","952911",233]
[null,null,"Saját tulajdonú ingatlan adásvétele","681",169]
[null,null,"Saját tulajdonú, bérelt ingatlan bérbeadása, üzemeltetése","682",170]
[null,null,"Sportszergyártás","323",78]
[null,null,"Sportszer-kiskereskedelem","4764",125]
[null,null,"Sporttevékenység","931",223]
[null,null,"Szakorvosi járóbeteg-ellátás","8622",209]
[null,null,"Szakszervezeti tevékenység","942",227]
[null,null,"Szállodai szolgáltatás","551",142]
[null,null,"Számítógép, kommunikációs eszköz javítása","951",231]
[null,null,"Számítógép, periféria, szoftver kiskereskedelme","4741",111]
[null,null,"Számítógép, perifériás egység gyártása","262",56]
[null,null,"Számviteli, könyvvizsgálói, adószakértői tevékenység","692",173]
[null,null,"Személyi, háztartási cikk javítása","952",232]
[null,null,"Szennyvíz gyűjtése, kezelése","370",85]
[null,null,"Szerszámgépgyártás","284",70]
[null,null,"Szoftverkiadás","582",152]
[null,null,"Szőrmecikk gyártása","142",29]
[null,null,"Takarítás","812",192]
[null,null,"Takarmány gyártása","109",22]
[null,null,"Takaró, szőnyeg, fal-, padlóburkoló kiskereskedelme","4753",119]
[null,null,"Táncoktatás","855203",204]
[null,null,"Társadalmi közszolgáltatás","842",198]
[null,null,"Társadalomtudományi, humán kutatás, fejlesztés","722",179]
[null,null,"Tejfeldolgozás","105",18]
[null,null,"Telefoninformáció","822",194]
[null,null,"Televízióműsor összeállítása, szolgáltatása","602",157]
[null,null,"Természetgyógyászati ellátás","869005",212]
[null,null,"Természettudományi, műszaki kutatás, fejlesztés","721",178]
[null,null,"Területen kívüli szervezet","990",241]
[null,null,"Testedzési szolgáltatás","9313",224]
[null,null,"Textil, szőrme mosása, tisztítása","9601",235]
[null,null,"Textilkikészítés","133",26]
[null,null,"Textil-kiskereskedelem","4751",114]
[null,null,"Textilszálak fonása","131",24]
[null,null,"Textilszövés","132",25]
[null,null,"Tisztítószer, testápolási cikk gyártása","204",39]
[null,null,"Újság-, papíráru-kiskereskedelem","4762",124]
[null,null,"Üdülési, egyéb átmeneti szálláshely-szolgáltatás","552",144]
[null,null,"Ügynöki nagykereskedelem","461",98]
[null,null,"Üveg, üvegtermék gyártása","231",44]
[null,null,"Üzletvezetés","701",174]
[null,null,"Üzletviteli tanácsadás","702",175]
[null,null,"Vadgazdálkodás, vadgazdálkodási szolgáltatás","017",7]
[null,null,"Vadon termő egyéb erdei termék gyűjtése","023",10]
[null,null,"Vagyonkezelés (holding)","642",163]
[null,null,"Vállalkozói, szakmai érdekképviselet","941",226]
[null,null,"Vasáru-, festék-, üveg-kiskereskedelem","4752",115]
[null,null,"Vegyes gazdálkodás","015",5]
[null,null,"Vegyes termékkörű nagykereskedelem","469",104]
[null,null,"Vegyi szál gyártása","206",41]
[null,null,"Vezeték, kábel, szerelvény gyártása","273",63]
[null,null,"Vezetékes távközlés","611",158]
[null,null,"Villamos motor, áramfejlesztő, áramelosztó, -szabályozó készülék gyártása","271",62]
[null,null,"Villamos világítóeszköz gyártása","274",64]
[null,null,"Víztermelés, -kezelés, -ellátás","360",84]
[]
[]
[]
[]
[]
[]
[]
[]
[]
[]
[]
[]
[]
[]
[]
[]
[]
[]
[]
[]
[]
[]
[]
[]
[]
[]
[]
[]
[]
[]
[]
[]
[]
[]
[]
[]
[]
[]
[]
[]
[]
[]
[]
[]
[]
[]
[]
[]
[]
[]
[]
[]
[]
[]
[]
[]
[]
[]
[]
[]
[]
[]
[]
[]
[]
[]
[]
[]
[]
[]
[]
[]
[]
[]
[]
[]
[]
[]
[]
[]
[]
[]
[]
[]
[]
[]
[]
[]
[]
[]
[]
[]
[]
[]
[]
[]
[]
[]
[]
[]
[]
[]
[]
[]
[]
[]
[]
[]
[]
[]
[]
[]
[]
[]
[]
[]
[]
[]
[]
[]
[]
[]
[]
[]
[]
[]
[]
[]
[]
[]
[]
[]
[]
[]
[]
[]
[]
[]
[]
[]
[]
[]
[]
[]
[]
[]
[]
[]
[]
[]
[]
[]
[]
[]
[]
[]
[]
[]
[]
[]
[]
[]
[]
[]
[]
[]
[]
[]
[]
[]
[]
[]
[]
[]
[]
[]
[]
[]
[]
[]
[]
[]
[]
[]
[]
[]
[]
[]
[]
[]
[]
[]
[]
[]
[]
[]
[]
[]
[]
[]
[]
[]
[]
[]
[]
[]
[]
[]
[]
[]
[]
[]
[]
[]
[]
[]
[]
[]
[]
[]
[]
[]
[]
[]
[]
[]
[]
[]
[]
[]
[]
[]
[]
[]
[]
[]
[]
[]
[]
[]
[]
[]
[]
[]
[]
[]
[]
[]
[]
[]
[]
[]
[]
[]
[]
[]
[]
[]
[]
[]
[]
[]
[]
[]
[]
[]
[]
[]
[]
[]
[]
[]
[]
[]
[]
[]
[]
[]
[]
[]
[]
[]
[]
[]
[]
[]
[]
[null,null,null,null,null,null,null,null,null,null,null,null,null,null,null,null,null,null,null,null,null,null,null,null,null,null,null,2]

{"sheet":"1.telephely","index":1,"n_rows":67,"n_cols":8,"rows_kept":67,"cut":false,"hidden":false,"merged":[[5,3,5,4],[19,7,19,10],[20,3,21,3],[20,4,21,4],[0,0,2,6],[3,3,3,5],[4,3,4,4],[8,0,8,1],[8,3,8,4],[8,5,8,6],[10,7,11,10],[12,7,16,10],[17,3,18,3],[17,7,17,10],[18,7,18,10],[64,1,64,2],[20,5,21,5],[20,7,20,10],[24,8,24,10],[54,0,54,1],[58,1,58,2],[63,1,63,2],[22,7,22,10]]}
["KVB-13 díjkalkuláció"]
[]
[]
["Telephely megnevezése",null,null,"Telephely és kockázatviselés helye"]
["Tevékenység megnevezése",null,null,"Telephely irányítószám"]
["Kódja",null,null,"Település címe",null,null,null,{"$f":"VLOOKUP(Tarifa!O3,Tarifa!A3:L247,2)","v":"011"}]
[]
[]
["Alapadatok",null,null,"Felelősségbiztosítási limitek",null,"Felelősségbiztosítási záradék limitek"]
["Éves árbevétel (e Ft)",0,null,"Általános és épülethasználói felelősségbiztosítás",null,"Tanuló baleseti és felelősségbiztosítás","5 millió Ft"]
["Alkalmazottak száma (fő)",0,null,"Munkáltatói felelősségbiztosítás",null,"Szálloda üzemeltetői, szállásadói felelősségbiztosítás"]
["Éves forgalom (e Ft)",0,null,"Termékfelelősség biztosítás",null,"Gépjárműjavítók felelősségbiztosítása"]
["Éves bérleti díj (e Ft)",0,null,"Bérlői felelősségbiztosítás",null,"Gépjármű eredetiségvizsgálatot végzők felelősségbiztosítása","5 millió Ft"]
["Éves bérbeadásból származó forgalom (e Ft)",0,null,"Szolgáltatói felelősségbiztosítás",null,"Szolgáltatás tárgyában okozott károk biztosítása","5 millió Ft"]
[null,null,null,"Bérbeadói felelősségbiztosítás"]
["Tárgyi eszközk értékelésének módja",null,null,"Környezetszennyezési felelősségbiztosítás"]
[]
[null,"Biztosított vagyontárgyak biztosítási összege (e Ft)","Díj ","Betöréses lopás és rablás biztosítás"]
["Épület, építmény",0]
["Egyéb tárgyi eszközök",0,null,null,false]
["Saját készletek",0,null,null,false]
["Idegen készletek",0]
["Készpénz",0,null,null,false,"Díjkategória besorolás"]
["Összesen",{"$f":"IF(OR(B19>0,B20>0),SUM(B19:B23),0)","v":0},{"$f":"IF(B24+'2.telephely'!B21+'3.telephely'!B21+'4.telephely'!B21+'5.telephely'!B21>500000,\"Hibás ajánlat!\",B24*Tarifa!S9)","v":0},null,null,{"$f":"Tarifa!S8","v":3}]
[null,null,null,null,"Vidéki díjengedmény"]
["Betöréses lopás és rablás biztosítás (e Ft)",null,{"$f":"IF(C24=0,0,((IF(E20=TRUE,B20,0))+(IF(E21=TRUE,SUM(B21:B22),0))+(IF(E23=TRUE,B23,0)))*Tarifa!S16*Tarifa!S14)","v":0},null,{"$f":"IF(Tarifa!S13=\"Vidék\",\"Igen\",\"-\")","v":"-"},{"$f":"Tarifa!S15","v":1}]
[]
["Irodai és kereskedelmi elektronikus berendezések, eszközök biztosítása (e Ft)",0,{"$f":"IF(B28>10000,0,(IF(C24=0,0,IF(E28=TRUE,B28*Tarifa!AB20,0))))","v":0},null,false]
[]
["Üzemszünet biztosítás ",{"$f":"B10","v":0},{"$f":"IF(C24=0,0,IF(E30=TRUE,B30*Tarifa!T22,0))","v":0},null,false,{"$f":"Tarifa!T21","v":2}]
[]
["Szállítmány biztosítás ",0,{"$f":"IF(B32>2000,0,(IF(C24=0,0,IF(E32=TRUE,B32*Tarifa!AB21,0))))","v":0},null,false]
[]
["Vakolat károk biztosítása ",{"$f":"B19","v":0},{"$f":"IF(C24=0,0,IF(E34=TRUE,B34*Tarifa!AE20,0))","v":0},null,false]
[]
["Tetőbeázási károk biztosítása ",{"$f":"B19","v":0},{"$f":"IF(C24=0,0,IF(E36=TRUE,B36*Tarifa!AE21,0))","v":0},null,false]
[]
["Vandalizmus károk biztosítása (e Ft)",0,{"$f":"IF(B38>(B24*0.1),0,(IF(C24=0,0,IF(E38=TRUE,B38*Tarifa!AH20,0))))","v":0},null,false]
[]
["Különleges üvegek üvegtörés biztosítása (e Ft)",0,{"$f":"IF(C24=0,0,IF(E40=TRUE,B40*Tarifa!AH21,0))","v":0},null,false]
[]
["Általános és\népülethasználói\nfelelősségbiztosítás (fő)",{"$f":"B11","v":0},{"$f":"IF(C24=0,0,IF(E42=TRUE,B42*Tarifa!S29,0))","v":0},null,false,{"$f":"Tarifa!S27","v":2}]
["Tanuló baleseti és felelősségbiztosítás (fő)",0,{"$f":"IF(C24=0,0,IF(C42>0,IF(E43=TRUE,Tarifa!AE44,0),0))","v":0},null,false,{"$f":"Tarifa!AA39","v":2},{"$f":"Tarifa!AG39","v":3}]
["Munkáltatói\nfelelősségbiztosítás",{"$f":"B11","v":0},{"$f":"IF(C24=0,0,IF(C42>0,IF(E44=TRUE,B44*Tarifa!S40,0),0))","v":0},null,false,{"$f":"Tarifa!S38","v":3}]
["Termékfelelősség\nbiztosítás ",{"$f":"B12","v":0},{"$f":"IF(C24=0,0,IF(C42>0,IF(E45=TRUE,((B45*Tarifa!S51)/1000),0),0))","v":0},null,false,{"$f":"Tarifa!S49","v":1}]
["Bérlői\nfelelősségbiztosítás ",{"$f":"B13","v":0},{"$f":"IF(C24=0,0,IF(C42>0,IF(E46=TRUE,((B46*Tarifa!S63)/1000),0),0))","v":0},null,false,{"$f":"Tarifa!S61","v":2}]
["Szolgáltatói\nfelelősségbiztosítás ",{"$f":"B12","v":0},{"$f":"IF(C24=0,0,IF(C42>0,IF(E47=TRUE,((B47*Tarifa!S75)/1000),0),0))","v":0},null,false,{"$f":"Tarifa!S73","v":1}]
["Szálloda üzemeltetői, szállásadói felelősségbiztosítása",null,{"$f":"IF(E48=FALSE,0,C47)","v":0},null,false]
["Gépjárműjavítók felelősségbiztosítása",{"$f":"B12","v":0},{"$f":"IF(C47=0,0,IF(E49=FALSE,0,Tarifa!AA55))","v":0},null,false]
["Gépjármű-eredetiségvizsgálatot végzők felelősségbiztosítása",null,{"$f":"IF(C47=0,0,IF(E50=FALSE,0,Tarifa!AB51))","v":0},null,false]
["Szolgáltatás tárgyában okozott károk biztosítása",null,{"$f":"IF(E51=FALSE,0,C47)","v":0},null,false]
["Bérbeadói felelősségbiztosítás",{"$f":"B14","v":0},{"$f":"IF(C24=0,0,IF(C42>0,IF(E52=TRUE,((B52*Tarifa!S87)/1000),0),0))","v":0},null,false,{"$f":"Tarifa!S85","v":2}]
["Környezetszennyezési felelősségbiztosítás",{"$f":"B12","v":0},{"$f":"IF(C24=0,0,IF(C42>0,IF(E53=TRUE,((B12*Tarifa!S99)/1000),0),0))","v":0},null,false,{"$f":"Tarifa!S97","v":2}]
[]
["Éves díj 1. telephelyre ",null,{"$f":"IF(Tarifa!AO7>2000000,\"Hibás ajánlat!\",IFERROR(C24+C26+C28+C30+C32+C34+C36+C38+C40+C42+C43+C44+C45+C46+C47+C48+C49+C50+C51+C52+C53,\"Hibás ajánlat!\"))","v":0}]
[]
["Volumen engedmény",{"$f":"VLOOKUP(1,Tarifa!AA31:AE36,5,FALSE)","v":"Nincs"}]
["Csomag engedmény",{"$f":"VLOOKUP(1,Tarifa!AE16:AI18,5,FALSE)","v":"Nincs"}]
["Lojalitás engedmény"]
["Díjeltérítési szorzó szerinti engedmény",null,1]
["Központi díjeltérítési szorzó szerinti engedmény",null,1]
[]
["Általános adatok"]
["Díjfizetés gyakorisága"]
["Díjfizetés módja"]
[]
["Fizetendő éves biztosítási díj ",{"$f":"IF(OR(Tarifa!AO6>500000,Tarifa!AO7>2000000),\"Hibás ajánlat! Forduljon a kockázatvállaláshoz!\",IF(AND(Tarifa!AC8=\"havi\",ROUND((C55+'2.telephely'!C52+'3.telephely'!C52+'4.telephely'!C52+'5.telephely'!C52)*Tarifa!Z8*Tarifa!AP12*Tarifa!AB12,0)<24000),24000,IF(AND(Tarifa!AC8<>\"havi\",ROUND((C55+'2.telephely'!C52+'3.telephely'!C52+'4.telephely'!C52+'5.telephely'!C52)*Tarifa!Z8*Tarifa!AP12*Tarifa!AB12,0)<12000),12000,ROUND((C55+'2.telephely'!C52+'3.telephely'!C52+'4.telephely'!C52+'5.telephely'!C52)*Tarifa!Z8*Tarifa!AP12*Tarifa!AB12,0))))","v":12000}]

{"sheet":"2.telephely","index":2,"n_rows":52,"n_cols":8,"rows_kept":52,"cut":false,"hidden":false,"merged":[[51,0,51,1],[0,3,0,5],[1,3,1,4],[5,0,5,1],[5,3,5,4],[5,5,5,6],[14,3,15,3],[14,4,15,4],[17,3,18,3],[50,0,50,1],[2,3,2,4]]}
["Telephely megnevezése",null,null,"Telephely és kockázatviselés helye"]
["Tevékenység megnevezése",null,null,"Telephely irányítószám"]
["Kódja",null,null,"Település címe",null,null,null,{"$f":"VLOOKUP(Tarifa!O4,Tarifa!A3:L247,2)","v":"011"}]
[]
[]
["Alapadatok",null,null,"Felelősségbiztosítási limitek",null,"Felelősségbiztosítási záradék limitek"]
["Éves árbevétel (e Ft)",0,null,"Általános és épülethasználói felelősségbiztosítás",null,"Tanuló baleseti és felelősségbiztosítás","5 millió Ft"]
["Alkalmazottak száma (fő)",0,null,"Munkáltatói felelősségbiztosítás",null,"Szálloda üzemeltetői, szállásadói felelősségbiztosítás"]
["Éves forgalom (e Ft)",0,null,"Termékfelelősség biztosítás",null,"Gépjárműjavítók felelősségbiztosítása"]
["Éves bérleti díj (e Ft)",0,null,"Bérlői felelősségbiztosítás",null,"Gépjármű eredetiségvizsgálatot végzők felelősségbiztosítása","5 millió Ft"]
["Éves bérbeadásból származó forgalom (e Ft)",0,null,"Szolgáltatói felelősségbiztosítás",null,"Szolgáltatás tárgyában okozott károk biztosítása","5 millió Ft"]
[null,null,null,"Bérbeadói felelősségbiztosítás"]
["Tárgyi eszközk értékelésének módja",null,null,"Környezetszennyezési felelősségbiztosítás"]
[]
[null,"Biztosítási összeg (e Ft)","Díj ","Betöréses lopás és rablás biztosítás"]
["Épület, építmény",0]
["Egyéb tárgyi eszközök",0,null,null,false]
["Saját készletek",0,null,null,false]
["Idegen készletek",0]
["Készpénz",0,null,null,false,"Díjkategória besorolás"]
["Összesen",{"$f":"IF(OR(B16>0,B17>0),SUM(B16:B20),0)","v":0},{"$f":"IF('1.telephely'!B24+'2.telephely'!B21+'3.telephely'!B21+'4.telephely'!B21+'5.telephely'!B21>500000,\"Hibás ajánlat!\",B21*Tarifa!T9)","v":0},null,null,{"$f":"Tarifa!T8","v":3}]
[null,null,null,null,"Vidéki díjengedmény"]
["Betöréses lopás és rablás biztosítás (e Ft)",null,{"$f":"IF(C21=0,0,((IF(E17=TRUE,B17,0))+(IF(E18=TRUE,SUM(B18:B19),0))+(IF(E20=TRUE,B20,0)))*Tarifa!T16*Tarifa!T14)","v":0},null,{"$f":"IF(Tarifa!T13=\"Vidék\",\"Igen\",\"-\")","v":"-"},{"$f":"Tarifa!T15","v":1}]
[]
["Irodai és kereskedelmi elektronikus berendezések, eszközök biztosítása (e Ft)",0,{"$f":"IF(B25>10000,0,(IF(C21=0,0,IF(E25=TRUE,B25*Tarifa!AB20,0))))","v":0},null,false]
[]
["Üzemszünet biztosítás (e Ft)",{"$f":"B7","v":0},{"$f":"IF(C21=0,0,IF(E27=TRUE,B27*Tarifa!U22,0))","v":0},null,false,{"$f":"Tarifa!U21","v":2}]
[]
["Szállítmány biztosítás (e Ft)",0,{"$f":"IF(B29>2000,0,(IF(C21=0,0,IF(E29=TRUE,B29*Tarifa!AB21,0))))","v":0},null,false]
[]
["Vakolat károk biztosítása (e Ft)",{"$f":"B16","v":0},{"$f":"IF(C21=0,0,IF(E31=TRUE,B31*Tarifa!AE20,0))","v":0},null,false]
[]
["Tetőbeázási károk biztosítása (e Ft)",{"$f":"B16","v":0},{"$f":"IF(C21=0,0,IF(E33=TRUE,B33*Tarifa!AE21,0))","v":0},null,false]
[]
["Vandalizmus károk biztosítása (e Ft)",0,{"$f":"IF(B35>(B21*0.1),0,(IF(C21=0,0,IF(E35=TRUE,B35*Tarifa!AH20,0))))","v":0},null,false]
[]
["Különleges üvegek üvegtörés biztosítása (e Ft)",0,{"$f":"IF(C21=0,0,IF(E37=TRUE,B37*Tarifa!AH21,0))","v":0},null,false]
[]
["Általános és\népülethasználói\nfelelősségbiztosítás (fő)",{"$f":"B8","v":0},{"$f":"IF(C21=0,0,IF(E39=TRUE,B39*Tarifa!T29,0))","v":0},null,false,{"$f":"Tarifa!T27","v":2}]
["Tanuló baleseti és felelősségbiztosítás (fő)",null,{"$f":"IF(C21=0,0,IF(C39>0,IF(E40=TRUE,Tarifa!AE45,0),0))","v":0},null,false,{"$f":"Tarifa!AB39","v":2},{"$f":"Tarifa!AH39","v":3}]
["Munkáltatói\nfelelősségbiztosítás",{"$f":"B8","v":0},{"$f":"IF(C21=0,0,IF(C39>0,IF(E41=TRUE,B41*Tarifa!T40,0),0))","v":0},null,false,{"$f":"Tarifa!T38","v":3}]
["Termékfelelősség\nbiztosítás ",{"$f":"B9","v":0},{"$f":"IF(C21=0,0,IF(C39>0,IF(E42=TRUE,((B42*Tarifa!T51)/1000),0),0))","v":0},null,false,{"$f":"Tarifa!T49","v":1}]
["Bérlői\nfelelősségbiztosítás ",{"$f":"B10","v":0},{"$f":"IF(C21=0,0,IF(C39>0,IF(E43=TRUE,((B43*Tarifa!T63)/1000),0),0))","v":0},null,false,{"$f":"Tarifa!T61","v":2}]
["Szolgáltatói\nfelelősségbiztosítás ",{"$f":"B9","v":0},{"$f":"IF(C21=0,0,IF(C39>0,IF(E44=TRUE,((B44*Tarifa!T75)/1000),0),0))","v":0},null,false,{"$f":"Tarifa!T73","v":1}]
["Szálloda üzemeltetői, szállásadói felelősségbiztosítása",null,{"$f":"IF(E45=FALSE,0,C44)","v":0},null,false]
["Gépjárműjavítók felelősségbiztosítása",{"$f":"B9","v":0},{"$f":"IF(C44=0,0,IF(E46=FALSE,0,Tarifa!AB55))","v":0},null,false]
["Gépjármű-eredetiségvizsgálatot végzők felelősségbiztosítása",null,{"$f":"IF(C44=0,0,IF(E47=FALSE,0,Tarifa!AB51))","v":0},null,false]
["Szolgáltatás tárgyában okozott károk biztosítása",null,{"$f":"IF(E48=FALSE,0,C44)","v":0},null,false]
["Bérbeadói felelősségbiztosítás",{"$f":"B11","v":0},{"$f":"IF(C21=0,0,IF(C39>0,IF(E49=TRUE,((B49*Tarifa!T87)/1000),0),0))","v":0},null,false,{"$f":"Tarifa!T85","v":2}]
["Környezetszennyezési felelősségbiztosítás",{"$f":"B9","v":0},{"$f":"IF(C21=0,0,IF(C39>0,IF(E50=TRUE,((B9*Tarifa!T99)/1000),0),0))","v":0},null,false,{"$f":"Tarifa!T97","v":2}]
[]
["Éves díj 2. telephelyre ",null,{"$f":"IF(Tarifa!AO7>2000000,\"Hibás ajánlat!\",IFERROR(C21+C23+C25+C27+C29+C31+C33+C35+C37+C39+C40+C41+C42+C43+C44+C45+C46+C47+C48+C49+C50,\"Hibás ajánlat!\"))","v":0}]

{"sheet":"3.telephely","index":3,"n_rows":52,"n_cols":8,"rows_kept":52,"cut":false,"hidden":false,"merged":[[51,0,51,1],[0,3,0,5],[1,3,1,4],[5,0,5,1],[5,3,5,4],[5,5,5,6],[14,3,15,3],[14,4,15,4],[17,2,18,2],[17,3,18,3],[2,3,2,4]]}
["Telephely megnevezése",null,null,"Telephely és kockázatviselés helye"]
["Tevékenység megnevezése",null,null,"Telephely irányítószám"]
["Kódja",null,null,"Település címe",null,null,null,{"$f":"VLOOKUP(Tarifa!O5,Tarifa!A3:L247,2)","v":"011"}]
[]
[]
["Alapadatok",null,null,"Felelősségbiztosítási limitek",null,"Felelősségbiztosítási záradék limitek"]
["Éves árbevétel (e Ft)",0,null,"Általános és épülethasználói felelősségbiztosítás",null,"Tanuló baleseti és felelősségbiztosítás","5 millió Ft"]
["Alkalmazottak száma",0,null,"Munkáltatói felelősségbiztosítás",null,"Szálloda üzemeltetői, szállásadói felelősségbiztosítás"]
["Éves forgalom (e Ft)",0,null,"Termékfelelősség biztosítás",null,"Gépjárműjavítók felelősségbiztosítása"]
["Éves bérleti díj (e Ft)",0,null,"Bérlői felelősségbiztosítás",null,"Gépjármű eredetiségvizsgálatot végzők felelősségbiztosítása","5 millió Ft"]
["Éves bérbeadásból származó forgalom (e Ft)",0,null,"Szolgáltatói felelősségbiztosítás",null,"Szolgáltatás tárgyában okozott károk biztosítása","5 millió Ft"]
[null,null,null,"Bérbeadói felelősségbiztosítás"]
["Tárgyi eszközk értékelésének módja",null,null,"Környezetszennyezési felelősségbiztosítás"]
[]
[null,"Biztosítási összeg (e Ft)","Díj ","Betöréses lopás és rablás biztosítás"]
["Épület, építmény",0]
["Egyéb tárgyi eszközök",0,null,null,false]
["Saját készletek",0,null,null,false]
["Idegen készletek",0]
["Készpénz",0,null,null,false,"Díjkategória besorolás"]
["Összesen",{"$f":"IF(OR(B16>0,B17>0),SUM(B16:B20),0)","v":0},{"$f":"IF('1.telephely'!B24+'2.telephely'!B21+'3.telephely'!B21+'4.telephely'!B21+'5.telephely'!B21>500000,\"Hibás ajánlat!\",B21*Tarifa!U9)","v":0},null,null,{"$f":"Tarifa!U8","v":3}]
[null,null,null,null,"Vidéki díjengedmény"]
["Betöréses lopás és rablás biztosítás (e Ft)",null,{"$f":"IF(C21=0,0,((IF(E17=TRUE,B17,0))+(IF(E18=TRUE,SUM(B18:B19),0))+(IF(E20=TRUE,B20,0)))*Tarifa!U16*Tarifa!U14)","v":0},null,{"$f":"IF(Tarifa!U13=\"Vidék\",\"Igen\",\"-\")","v":"-"},{"$f":"Tarifa!U15","v":1}]
[]
["Irodai és kereskedelmi elektronikus berendezések, eszközök biztosítása (e Ft)",0,{"$f":"IF(B25>10000,0,(IF(C21=0,0,IF(E25=TRUE,B25*Tarifa!AB20,0))))","v":0},null,false]
[]
["Üzemszünet biztosítás (e Ft)",{"$f":"B7","v":0},{"$f":"IF(C21=0,0,IF(E27=TRUE,B27*Tarifa!V22,0))","v":0},null,false,{"$f":"Tarifa!V21","v":2}]
[]
["Szállítmány biztosítás (e Ft)",0,{"$f":"IF(B29>2000,0,(IF(C21=0,0,IF(E29=TRUE,B29*Tarifa!AB21,0))))","v":0},null,false]
[]
["Vakolat károk biztosítása (e Ft)",{"$f":"B16","v":0},{"$f":"IF(C21=0,0,IF(E31=TRUE,B31*Tarifa!AE20,0))","v":0},null,false]
[]
["Tetőbeázási károk biztosítása (e Ft)",{"$f":"B16","v":0},{"$f":"IF(C21=0,0,IF(E33=TRUE,B33*Tarifa!AE21,0))","v":0},null,false]
[]
["Vandalizmus károk biztosítása (e Ft)",0,{"$f":"IF(B35>(B21*0.1),0,(IF(C21=0,0,IF(E35=TRUE,B35*Tarifa!AH20,0))))","v":0},null,false]
[]
["Különleges üvegek üvegtörés biztosítása (e Ft)",0,{"$f":"IF(C21=0,0,IF(E37=TRUE,B37*Tarifa!AH21,0))","v":0},null,false]
[]
["Általános és\népülethasználói\nfelelősségbiztosítás (fő)",{"$f":"B8","v":0},{"$f":"IF(C21=0,0,IF(E39=TRUE,B39*Tarifa!U29,0))","v":0},null,false,{"$f":"Tarifa!U27","v":2}]
["Tanuló baleseti és felelősségbiztosítás (fő)",0,{"$f":"IF(C21=0,0,IF(C39>0,IF(E40=TRUE,Tarifa!AE46,0),0))","v":0},null,false,{"$f":"Tarifa!AC39","v":2},{"$f":"Tarifa!AI39","v":3}]
["Munkáltatói\nfelelősségbiztosítás",{"$f":"B8","v":0},{"$f":"IF(C21=0,0,IF(C39>0,IF(E41=TRUE,B41*Tarifa!U40,0),0))","v":0},null,false,{"$f":"Tarifa!U38","v":3}]
["Termékfelelősség\nbiztosítás ",{"$f":"B9","v":0},{"$f":"IF(C21=0,0,IF(C39>0,IF(E42=TRUE,((B42*Tarifa!U51)/1000),0),0))","v":0},null,false,{"$f":"Tarifa!U49","v":1}]
["Bérlői\nfelelősségbiztosítás ",{"$f":"B10","v":0},{"$f":"IF(C21=0,0,IF(C39>0,IF(E43=TRUE,((B43*Tarifa!U63)/1000),0),0))","v":0},null,false,{"$f":"Tarifa!U61","v":2}]
["Szolgáltatói\nfelelősségbiztosítás ",{"$f":"B9","v":0},{"$f":"IF(C21=0,0,IF(C39>0,IF(E44=TRUE,((B44*Tarifa!U75)/1000),0),0))","v":0},null,false,{"$f":"Tarifa!U73","v":1}]
["Szálloda üzemeltetői, szállásadói felelősségbiztosítása",null,{"$f":"IF(E45=FALSE,0,C44)","v":0},null,false]
["Gépjárműjavítók felelősségbiztosítása",{"$f":"B9","v":0},{"$f":"IF(C44=0,0,IF(E46=FALSE,0,Tarifa!AC55))","v":0},null,false]
["Gépjármű-eredetiségvizsgálatot végzők felelősségbiztosítása",null,{"$f":"IF(C44=0,0,IF(E47=FALSE,0,Tarifa!AB51))","v":0},null,false]
["Szolgáltatás tárgyában okozott károk biztosítása",null,{"$f":"IF(E48=FALSE,0,C44)","v":0},null,false]
["Bérbeadói felelősségbiztosítás",{"$f":"B11","v":0},{"$f":"IF(C21=0,0,IF(C39>0,IF(E49=TRUE,((B49*Tarifa!U87)/1000),0),0))","v":0},null,false,{"$f":"Tarifa!U85","v":2}]
["Környezetszennyezési felelősségbiztosítás",{"$f":"B9","v":0},{"$f":"IF(C21=0,0,IF(C39>0,IF(E50=TRUE,((B9*Tarifa!U99)/1000),0),0))","v":0},null,false,{"$f":"Tarifa!U97","v":2}]
[]
["Éves díj 3. telephelyre ",null,{"$f":"IF(Tarifa!AO7>2000000,\"Hibás ajánlat!\",IFERROR(C21+C23+C25+C27+C29+C31+C33+C35+C37+C39+C40+C41+C42+C43+C44+C45+C46+C47+C48+C49+C50,\"Hibás ajánlat!\"))","v":0}]

{"sheet":"4.telephely","index":4,"n_rows":52,"n_cols":8,"rows_kept":52,"cut":false,"hidden":false,"merged":[[0,3,0,5],[1,3,1,4],[5,0,5,1],[5,3,5,4],[5,5,5,6],[2,3,2,4],[51,0,51,1],[14,3,15,3],[17,3,18,3],[17,4,18,4],[17,5,18,5]]}
["Telephely megnevezése",null,null,"Telephely és kockázatviselés helye"]
["Tevékenység megnevezése",null,null,"Telephely irányítószám"]
["Kódja",null,null,"Település címe",null,null,null,{"$f":"VLOOKUP(Tarifa!O6,Tarifa!A3:L247,2)","v":"011"}]
[]
[]
["Alapadatok",null,null,"Felelősségbiztosítási limitek",null,"Felelősségbiztosítási záradék limitek"]
["Éves árbevétel (e Ft)",0,null,"Általános és épülethasználói felelősségbiztosítás",null,"Tanuló baleseti és felelősségbiztosítás","5 millió Ft"]
["Alkalmazottak száma (fő)",0,null,"Munkáltatói felelősségbiztosítás",null,"Szálloda üzemeltetői, szállásadói felelősségbiztosítás"]
["Éves forgalom (e Ft)",0,null,"Termékfelelősség biztosítás",null,"Gépjárműjavítók felelősségbiztosítása"]
["Éves bérleti díj (e Ft)",0,null,"Bérlői felelősségbiztosítás",null,"Gépjármű eredetiségvizsgálatot végzők felelősségbiztosítása","5 millió Ft"]
["Éves bérbeadásból származó forgalom (e Ft)",0,null,"Szolgáltatói felelősségbiztosítás",null,"Szolgáltatás tárgyában okozott károk biztosítása","5 millió Ft"]
[null,null,null,"Bérbeadói felelősségbiztosítás"]
["Tárgyi eszközk értékelésének módja",null,null,"Környezetszennyezési felelősségbiztosítás"]
[]
[null,"Biztosított vagyontárgyak biztosítási összege (e Ft)","Díj ","Betöréses lopás és rablás biztosítás"]
["Épület, építmény",0]
["Egyéb tárgyi eszközök",0,null,null,false]
["Saját készletek",0,null,null,false]
["Idegen készletek",0]
["Készpénz",0,null,null,false,"Díjkategória besorolás"]
["Összesen",{"$f":"IF(OR(B16>0,B17>0),SUM(B16:B20),0)","v":0},{"$f":"IF('1.telephely'!B24+'2.telephely'!B21+'3.telephely'!B21+'4.telephely'!B21+'5.telephely'!B21>500000,\"Hibás ajánlat!\",B21*Tarifa!V9)","v":0},null,null,{"$f":"Tarifa!V8","v":3}]
[null,null,null,null,"Vidéki díjengedmény"]
["Betöréses lopás és rablás biztosítás (e Ft)",null,{"$f":"IF(C21=0,0,((IF(E17=TRUE,B17,0))+(IF(E18=TRUE,SUM(B18:B19),0))+(IF(E20=TRUE,B20,0)))*Tarifa!V16*Tarifa!V14)","v":0},null,{"$f":"IF(Tarifa!V13=\"Vidék\",\"Igen\",\"-\")","v":"-"},{"$f":"Tarifa!V15","v":1}]
[]
["Irodai és kereskedelmi elektronikus berendezések, eszközök biztosítása (e Ft)",0,{"$f":"IF(B25>10000,0,(IF(C21=0,0,IF(E25=TRUE,B25*Tarifa!AB20,0))))","v":0},null,false]
[]
["Üzemszünet biztosítás (e Ft)",{"$f":"B7","v":0},{"$f":"IF(C21=0,0,IF(E27=TRUE,B27*Tarifa!W22,0))","v":0},null,false,{"$f":"Tarifa!W21","v":2}]
[]
["Szállítmány biztosítás (e Ft)",0,{"$f":"IF(B29>2000,0,(IF(C21=0,0,IF(E29=TRUE,B29*Tarifa!AB21,0))))","v":0},null,false]
[]
["Vakolat károk biztosítása (e Ft)",{"$f":"B16","v":0},{"$f":"IF(C21=0,0,IF(E31=TRUE,B31*Tarifa!AE20,0))","v":0},null,false]
[]
["Tetőbeázási károk biztosítása (e Ft)",{"$f":"B16","v":0},{"$f":"IF(C21=0,0,IF(E33=TRUE,B33*Tarifa!AE21,0))","v":0},null,false]
[]
["Vandalizmus károk biztosítása (e Ft)",0,{"$f":"IF(B35>(B21*0.1),0,(IF(C21=0,0,IF(E35=TRUE,B35*Tarifa!AH20,0))))","v":0},null,false]
[]
["Különleges üvegek üvegtörés biztosítása (e Ft)",0,{"$f":"IF(C21=0,0,IF(E37=TRUE,B37*Tarifa!AH21,0))","v":0},null,false]
[]
["Általános és\népülethasználói\nfelelősségbiztosítás (fő)",{"$f":"B8","v":0},{"$f":"IF(C21=0,0,IF(E39=TRUE,B39*Tarifa!V29,0))","v":0},null,false,{"$f":"Tarifa!V27","v":2}]
["Tanuló baleseti és felelősségbiztosítás (fő)",0,{"$f":"IF(C21=0,0,IF(C39>0,IF(E40=TRUE,Tarifa!AE47,0),0))","v":0},null,false,{"$f":"Tarifa!AD39","v":2},{"$f":"Tarifa!AJ39","v":3}]
["Munkáltatói\nfelelősségbiztosítás",{"$f":"B8","v":0},{"$f":"IF(C21=0,0,IF(C39>0,IF(E41=TRUE,B41*Tarifa!V40,0),0))","v":0},null,false,{"$f":"Tarifa!V38","v":3}]
["Termékfelelősség\nbiztosítás ",{"$f":"B9","v":0},{"$f":"IF(C21=0,0,IF(C39>0,IF(E42=TRUE,((B42*Tarifa!V51)/1000),0),0))","v":0},null,false,{"$f":"Tarifa!V49","v":1}]
["Bérlői\nfelelősségbiztosítás ",{"$f":"B10","v":0},{"$f":"IF(C21=0,0,IF(C39>0,IF(E43=TRUE,((B43*Tarifa!V63)/1000),0),0))","v":0},null,false,{"$f":"Tarifa!V61","v":2}]
["Szolgáltatói\nfelelősségbiztosítás ",{"$f":"B9","v":0},{"$f":"IF(C21=0,0,IF(C39>0,IF(E44=TRUE,((B44*Tarifa!V75)/1000),0),0))","v":0},null,false,{"$f":"Tarifa!V73","v":1}]
["Szálloda üzemeltetői, szállásadói felelősségbiztosítása",null,{"$f":"IF(E45=FALSE,0,C44)","v":0},null,false]
["Gépjárműjavítók felelősségbiztosítása",{"$f":"B9","v":0},{"$f":"IF(C44=0,0,IF(E46=FALSE,0,Tarifa!AD55))","v":0},null,false]
["Gépjármű-eredetiségvizsgálatot végzők felelősségbiztosítása",null,{"$f":"IF(C44=0,0,IF(E47=FALSE,0,Tarifa!AB51))","v":0},null,false]
["Szolgáltatás tárgyában okozott károk biztosítása",null,{"$f":"IF(E48=FALSE,0,C44)","v":0},null,false]
["Bérbeadói felelősségbiztosítás",{"$f":"B11","v":0},{"$f":"IF(C21=0,0,IF(C39>0,IF(E49=TRUE,((B49*Tarifa!V87)/1000),0),0))","v":0},null,false,{"$f":"Tarifa!V85","v":2}]
["Környezetszennyezési felelősségbiztosítás",{"$f":"B9","v":0},{"$f":"IF(C21=0,0,IF(C39>0,IF(E50=TRUE,((B9*Tarifa!V99)/1000),0),0))","v":0},null,false,{"$f":"Tarifa!V97","v":2}]
[]
["Éves díj 4. telephelyre ",null,{"$f":"IF(Tarifa!AO7>2000000,\"Hibás ajánlat!\",IFERROR(C21+C23+C25+C27+C29+C31+C33+C35+C37+C39+C40+C41+C42+C43+C44+C45+C46+C47+C48+C49+C50,\"Hibás ajánlat!\"))","v":0}]

{"sheet":"5.telephely","index":5,"n_rows":52,"n_cols":8,"rows_kept":52,"cut":false,"hidden":false,"merged":[[51,0,51,1],[0,3,0,5],[1,3,1,4],[5,0,5,1],[5,3,5,4],[5,5,5,6],[14,3,15,3],[17,3,18,3],[17,4,18,4],[17,5,18,5],[2,3,2,4]]}
["Telephely megnevezése",null,null,"Telephely és kockázatviselés helye"]
["Tevékenység megnevezése",null,null,"Telephely irányítószám"]
["Kódja",null,null,"Település címe",null,null,null,{"$f":"VLOOKUP(Tarifa!O7,Tarifa!A3:L247,2)","v":"011"}]
[]
[]
["Alapadatok",null,null,"Felelősségbiztosítási limitek",null,"Felelősségbiztosítási záradék limitek"]
["Éves árbevétel (e Ft)",0,null,"Általános és épülethasználói felelősségbiztosítás",null,"Tanuló baleseti és felelősségbiztosítás","5 millió Ft"]
["Alkalmazottak száma (fő)",0,null,"Munkáltatói felelősségbiztosítás",null,"Szálloda üzemeltetői, szállásadói felelősségbiztosítás"]
["Éves forgalom (e Ft)",0,null,"Termékfelelősség biztosítás",null,"Gépjárműjavítók felelősségbiztosítása"]
["Éves bérleti díj (e Ft)",0,null,"Bérlői felelősségbiztosítás",null,"Gépjármű eredetiségvizsgálatot végzők felelősségbiztosítása","5 millió Ft"]
["Éves bérbeadásból származó forgalom (e Ft)",0,null,"Szolgáltatói felelősségbiztosítás",null,"Szolgáltatás tárgyában okozott károk biztosítása","5 millió Ft"]
[null,null,null,"Bérbeadói felelősségbiztosítás"]
["Tárgyi eszközk értékelésének módja",null,null,"Környezetszennyezési felelősségbiztosítás"]
[]
[null,"Biztosított vagyontárgyak biztosítási összege (e Ft)","Díj ","Betöréses lopás és rablás biztosítás"]
["Épület, építmény",0]
["Egyéb tárgyi eszközök",0,null,null,false]
["Saját készletek",0,null,null,false]
["Idegen készletek",0]
["Készpénz",0,null,null,false,"Díjkategória besorolás"]
["Összesen",{"$f":"IF(OR(B16>0,B17>0),SUM(B16:B20),0)","v":0},{"$f":"IF('1.telephely'!B24+'2.telephely'!B21+'3.telephely'!B21+'4.telephely'!B21+'5.telephely'!B21>500000,\"Hibás ajánlat!\",B21*Tarifa!W9)","v":0},null,null,{"$f":"Tarifa!W8","v":3}]
[null,null,null,null,"Vidéki díjengedmény"]
["Betöréses lopás és rablás biztosítás (e Ft)",null,{"$f":"IF(C21=0,0,((IF(E17=TRUE,B17,0))+(IF(E18=TRUE,SUM(B18:B19),0))+(IF(E20=TRUE,B20,0)))*Tarifa!W16*Tarifa!W14)","v":0},null,{"$f":"IF(Tarifa!W13=\"Vidék\",\"Igen\",\"-\")","v":"-"},{"$f":"Tarifa!W15","v":1}]
[]
["Irodai és kereskedelmi elektronikus berendezések, eszközök biztosítása (e Ft)",0,{"$f":"IF(B25>10000,0,(IF(C21=0,0,IF(E25=TRUE,B25*Tarifa!AB20,0))))","v":0},null,false]
[]
["Üzemszünet biztosítás (e Ft)",{"$f":"B7","v":0},{"$f":"IF(C21=0,0,IF(E27=TRUE,B27*Tarifa!X22,0))","v":0},null,false,{"$f":"Tarifa!X21","v":2}]
[]
["Szállítmány biztosítás (e Ft)",0,{"$f":"IF(B29>2000,0,(IF(C21=0,0,IF(E29=TRUE,B29*Tarifa!AB21,0))))","v":0},null,false]
[]
["Vakolat károk biztosítása (e Ft)",{"$f":"B16","v":0},{"$f":"IF(C21=0,0,IF(E31=TRUE,B31*Tarifa!AE20,0))","v":0},null,false]
[]
["Tetőbeázási károk biztosítása (e Ft)",{"$f":"B16","v":0},{"$f":"IF(C21=0,0,IF(E33=TRUE,B33*Tarifa!AE21,0))","v":0},null,false]
[]
["Vandalizmus károk biztosítása (e Ft)",0,{"$f":"IF(B35>(B21*0.1),0,(IF(C21=0,0,IF(E35=TRUE,B35*Tarifa!AH20,0))))","v":0},null,false]
[]
["Különleges üvegek üvegtörés biztosítása (e Ft)",0,{"$f":"IF(C21=0,0,IF(E37=TRUE,B37*Tarifa!AH21,0))","v":0},null,false]
[]
["Általános és\népülethasználói\nfelelősségbiztosítás (fő)",{"$f":"B8","v":0},{"$f":"IF(C21=0,0,IF(E39=TRUE,B39*Tarifa!W29,0))","v":0},null,false,{"$f":"Tarifa!W27","v":2}]
["Tanuló baleseti és felelősségbiztosítás (fő)",0,{"$f":"IF(C21=0,0,IF(C39>0,IF(E40=TRUE,Tarifa!AE48,0),0))","v":0},null,false,{"$f":"Tarifa!AE39","v":2},{"$f":"Tarifa!AK39","v":3}]
["Munkáltatói\nfelelősségbiztosítás",{"$f":"B8","v":0},{"$f":"IF(C21=0,0,IF(C39>0,IF(E41=TRUE,B41*Tarifa!W40,0),0))","v":0},null,false,{"$f":"Tarifa!W38","v":3}]
["Termékfelelősség\nbiztosítás ",{"$f":"B9","v":0},{"$f":"IF(C21=0,0,IF(C39>0,IF(E42=TRUE,((B42*Tarifa!W51)/1000),0),0))","v":0},null,false,{"$f":"Tarifa!W49","v":1}]
["Bérlői\nfelelősségbiztosítás ",{"$f":"B10","v":0},{"$f":"IF(C21=0,0,IF(C39>0,IF(E43=TRUE,((B43*Tarifa!V63)/1000),0),0))","v":0},null,false,{"$f":"Tarifa!W61","v":2}]
["Szolgáltatói\nfelelősségbiztosítás ",{"$f":"B9","v":0},{"$f":"IF(C21=0,0,IF(C39>0,IF(E44=TRUE,((B44*Tarifa!W75)/1000),0),0))","v":0},null,false,{"$f":"Tarifa!W73","v":1}]
["Szálloda üzemeltetői, szállásadói felelősségbiztosítása",null,{"$f":"IF(E45=FALSE,0,C44)","v":0},null,false]
["Gépjárműjavítók felelősségbiztosítása",{"$f":"B9","v":0},{"$f":"IF(C44=0,0,IF(E46=FALSE,0,Tarifa!AE55))","v":0},null,false]
["Gépjármű-eredetiségvizsgálatot végzők felelősségbiztosítása",null,{"$f":"IF(C44=0,0,IF(E47=FALSE,0,Tarifa!AB51))","v":0},null,false]
["Szolgáltatás tárgyában okozott károk biztosítása",null,{"$f":"IF(E48=FALSE,0,C44)","v":0},null,false]
["Bérbeadói felelősségbiztosítás",{"$f":"B11","v":0},{"$f":"IF(C21=0,0,IF(C39>0,IF(E49=TRUE,((B49*Tarifa!W87)/1000),0),0))","v":0},null,false,{"$f":"Tarifa!W85","v":2}]
["Környezetszennyezési felelősségbiztosítás",{"$f":"B9","v":0},{"$f":"IF(C21=0,0,IF(C39>0,IF(E50=TRUE,((B9*Tarifa!W99)/1000),0),0))","v":0},null,false,{"$f":"Tarifa!W97","v":2}]
[]
["Éves díj 5. telephelyre ",null,{"$f":"IF(Tarifa!AO7>2000000,\"Hibás ajánlat!\",IFERROR(C21+C23+C25+C27+C29+C31+C33+C35+C37+C39+C40+C41+C42+C43+C44+C45+C46+C47+C48+C49+C50,\"Hibás ajánlat!\"))","v":0}]

{"sheet":"Adatfelvétel","index":6,"n_rows":74,"n_cols":34,"rows_kept":74,"cut":false,"hidden":false,"merged":[[15,14,15,31],[34,8,34,13],[35,8,35,13],[36,8,36,20],[10,16,10,23],[33,8,33,20],[16,14,16,31],[17,14,17,18],[18,14,18,29],[19,14,19,29],[20,14,20,29],[23,8,23,11],[11,16,11,21],[24,8,24,20],[25,8,25,20],[30,8,30,11],[59,34,59,37],[64,8,64,20],[31,8,31,20],[32,8,32,20],[69,8,69,20],[70,8,70,20],[71,8,71,20],[72,8,72,20],[73,9,73,20],[37,1,37,7],[37,8,37,20],[56,11,57,31],[59,16,59,23],[68,8,68,20],[65,8,65,20],[67,8,67,11],[8,16,8,23],[9,16,9,30],[4,16,4,23],[3,16,3,23],[5,16,5,23],[6,16,6,23],[7,16,7,23]]}
[]
[null,"Adatfelvétel"]
[]
[null,"Biztosításközvetítő azonosítója"]
[null,"Biztosításközvetítő nyilvántartási száma"]
[null,"Biztosításközvetítő neve"]
[null,"Biztosításközvetítő képviselője (cég esetén)"]
[null,"Biztosításközvetítő telefonszáma"]
[null,"Jogi forma"]
[null,"Állandó lakóhely/székhely"]
[null,"Ajánlat felvételének helye"]
[null,"Dátuma",null,null,null,null,null,null,null,null,null,null,null,null,null,null,{"$f":"TODAY()","v":"2021-04-21"},null,null,null,null,null,{"$f":"IF(Q12>Tarifa!AN3,\"Lejárt kalkulátor, kérem töltse le a legfrissebb verziót!\",\" \")","v":" "}]
[]
[null,"Szerződő azonosításához szükséges adatok"]
[]
[null,"Név ( szervezet megnevezése )"]
[null,"Születéskori név ( leánykori név )"]
[null,"Születés dátuma ( éééé.hh.nn)"]
[null,"Születés helye "]
[null,"Anya neve"]
[null,"Szervezet adószáma"]
[]
[null,"Lakóhely / szervezet székhelyének címe"]
[null,null,"Irányítószám"]
[null,null,"Helység"]
[null,null,"Út/utca/tér/stb"]
[]
[null,"Kapcsolat tartásához szükséges adatok"]
[]
[null,"Levelezési cím ( ha eltér a lakhely/székhely címétől )"]
[null,null,"Irányítószám"]
[null,null,"Helység"]
[null,null,"Út/utca/tér/stb"]
[null,"Kapcsolattartó neve"]
[null,"Telefonszám"]
[null,"Mobil szám"]
[null,"E-mail"]
[null,"Fax"]
[]
[null,"Ügyfélkapcsolattartó kijelöléséhez szükséges adatok"]
[]
[null,"Éves árbevétel 200 millió Ft felett",null,null,null,null,null,null,null,null,null,null,null,null,null,null,null,null,null,null,null,null,null,null,null,null,null,null,null,null,null,null,null,false]
[null,"Állandó alkalmazottak száma 10 fő felett",null,null,null,null,null,null,null,null,null,null,null,null,null,null,null,null,null,null,null,null,null,null,null,null,null,null,null,null,null,null,null,false]
[]
[null,"Csak mezőgazdasági ügyfelek esetén"]
[]
[null,"Szántó/erdő terület 50 ha felett",null,null,null,null,null,null,null,null,null,null,null,null,null,null,null,null,null,null,null,null,null,null,null,null,null,null,null,null,null,null,null,false]
[null,"Kertészeti kultúra 5 ha felett",null,null,null,null,null,null,null,null,null,null,null,null,null,null,null,null,null,null,null,null,null,null,null,null,null,null,null,null,null,null,null,false]
[null,"Számosállatainak száma 30 felett",null,null,null,null,null,null,null,null,null,null,null,null,null,null,null,null,null,null,null,null,null,null,null,null,null,null,null,null,null,null,null,false]
[]
[null,"Kockázati besoroláshoz szükséges adatok a 2014. évi LXXXVIII. törvény alapján"]
[]
[null,"Mérleg főösszege 6,2 millió euró feletti?",null,null,null,null,null,null,null,null,null,null,null,null,null,null,null,null,null,null,null,null,null,null,null,null,null,null,null,null,null,null,null,false]
[null,"Árbevétel (nettó) 12,8 millió euró feletti?",null,null,null,null,null,null,null,null,null,null,null,null,null,null,null,null,null,null,null,null,null,null,null,null,null,null,null,null,null,null,null,false]
[null,"Átlagos alkalmazotti létszám eléri vagy meghaladja a 250 főt?",null,null,null,null,null,null,null,null,null,null,null,null,null,null,null,null,null,null,null,null,null,null,null,null,null,null,null,null,null,null,null,false]
[]
[null,"Kockázatviselés kezdete",null,null,null,null,null,null,null,null,null,{"$f":"IF(Q60<TODAY()+1,\"A kockázatviselés kezdete nem lehet a holnapi nap 0:00-nál korábbi!\",\" \")","v":"A kockázatviselés kezdete nem lehet a holnapi nap 0:00-nál korábbi!"}]
[]
[]
[null,"Kockázatviselés kezdete ( éééé.hh.nn )"]
[]
[]
[null,"Zálogjogosult adatai"]
[]
[null,"Neve"]
[null,"Adószáma"]
[null,"Címe"]
[null,null,"Irányítószám"]
[null,null,"Helység"]
[null,null,"Út/utca/tér/stb"]
[null,"Hitel összege"]
[null,"Hitel lejárata"]
[null,"Hitelszám"]
[null,"Kárkifizetési korlátozás"]

{"sheet":"Díjkalkuláció nyomtatása","index":7,"n_rows":297,"n_cols":9,"rows_kept":297,"cut":false,"hidden":false,"merged":[[276,1,276,4],[291,1,291,4],[57,3,57,4],[206,6,206,7],[19,6,19,7],[142,6,142,7],[87,1,87,4],[212,1,212,4],[270,6,270,7],[25,1,25,4],[148,1,148,4],[102,1,102,4],[227,1,227,4],[40,1,40,4],[163,1,163,4],[81,6,81,7]]}
[]
[null,"Díjkalkuláció a K&H vállalkozói biztosításhoz "]
[]
[null,"vállalkozói biztosítás kalkulációs adatai"]
[]
[null,"tevékenység megnevezése",null,null,null,{"$f":"Tarifa!Q3","v":"Nem évelő növény termesztése"}]
[null,"tevékenység kódja",null,null,null,{"$f":"'1.telephely'!H6","v":"011"}]
[null,"telephely irányítószáma",null,null,null,{"$f":"'1.telephely'!F5","v":0}]
[]
[null,"telephely éves árbevétele (e Ft)",null,null,null,{"$f":"'1.telephely'!B10","v":0}]
[null,"éves forgalom (e Ft)",null,null,null,{"$f":"'1.telephely'!B12","v":0}]
[null,"alkalmazottak száma (fő)",null,null,null,{"$f":"'1.telephely'!B11","v":0}]
[null,"éves bérleti díj (e Ft)",null,null,null,{"$f":"'1.telephely'!B13","v":0}]
[null,"bérbeadásból származó forgalom (e Ft)",null,null,null,{"$f":"'1.telephely'!B14","v":0}]
[]
[null,"alapbiztosítás keretében biztosított vagyontárgyak"]
[null,"épület, építmény (e Ft)",null,null,{"$f":"'1.telephely'!B19","v":0}]
[null,"egyéb tárgyi eszközök (e Ft)",null,null,{"$f":"'1.telephely'!B20","v":0}]
[null,"készletek (e Ft)",null,null,{"$f":"'1.telephely'!B21+'1.telephely'!B22","v":0}]
[null,"készpénz (e Ft)",null,null,{"$f":"'1.telephely'!B23","v":0},null,"biztosítási összeg vagy kártérítési limit",null,"biztosítási díj"]
[null,"alapbiztosítás"]
[null,"tűz és elemi károk",null,null,null,null,{"$f":"IF('1.telephely'!C24>0,'1.telephely'!B24,\"Nem biztosított\")","v":"Nem biztosított"},null,{"$f":"'1.telephely'!C24","v":0}]
[]
[null,"kiegészítő biztosítások"]
[null,"betöréses lopás és rablás biztosítás ",null,null,null,null,{"$f":"IF('1.telephely'!C26=0,\"Nem biztosított\",((IF('1.telephely'!E20=TRUE,'1.telephely'!B20,0))+(IF('1.telephely'!E21=TRUE,SUM('1.telephely'!B21:'1.telephely'!B22),0))+(IF('1.telephely'!E23=TRUE,'1.telephely'!B23,0))))","v":"Nem biztosított"},null,{"$f":"'1.telephely'!C26","v":0}]
[null,"irodai és kereskedelmi elektronikus berendezések, eszközök ",null,null,null,null,{"$f":"IF('1.telephely'!C28>0,'1.telephely'!B28,\"Nem biztosított\")","v":"Nem biztosított"},null,{"$f":"'1.telephely'!C28","v":0}]
[null,"üzemszünet biztosítás ",null,null,null,null,{"$f":"IF('1.telephely'!C30>0,\"Szerződési feltételek szerint\",\"Nem biztosított\")","v":"Nem biztosított"},null,{"$f":"'1.telephely'!C30","v":0}]
[null,"szállítmány biztosítás ",null,null,null,null,{"$f":"IF('1.telephely'!C32>0,'1.telephely'!B32,\"Nem biztosított\")","v":"Nem biztosított"},null,{"$f":"'1.telephely'!C32","v":0}]
[null,"vakolat károk biztosítása ",null,null,null,null,{"$f":"IF('1.telephely'!C34>0,\"Szerződési feltételek szerint\",\"Nem biztosított\")","v":"Nem biztosított"},null,{"$f":"'1.telephely'!C34","v":0}]
[null,"tetőbeázási károk biztosítása",null,null,null,null,{"$f":"IF('1.telephely'!C36>0,\"Szerződési feltételek szerint\",\"Nem biztosított\")","v":"Nem biztosított"},null,{"$f":"'1.telephely'!C36","v":0}]
[null,"vandalizmus károk biztosítása ",null,null,null,null,{"$f":"IF('1.telephely'!C38>0,'1.telephely'!B38,\"Nem biztosított\")","v":"Nem biztosított"},null,{"$f":"'1.telephely'!C38","v":0}]
[null,"különleges üvegek üvegtörés biztosítása ",null,null,null,null,{"$f":"IF('1.telephely'!C40>0,'1.telephely'!B40,\"Nem biztosított\")","v":"Nem biztosított"},null,{"$f":"'1.telephely'!C40","v":0}]
[null,"általános és\népülethasználói\nfelelősségbiztosítás ",null,null,null,null,{"$f":"IF('1.telephely'!C42>0,Tarifa!S26,\"Nem biztosított\")","v":"Nem biztosított"},null,{"$f":"'1.telephely'!C42","v":0}]
[null,"tanuló baleseti és felelősségbiztosítás ",null,null,null,null,{"$f":"IF('1.telephely'!C43>0,\"5 millió Ft\",\"Nem biztosított\")","v":"Nem biztosított"},null,{"$f":"'1.telephely'!C43","v":0}]
[null,"munkáltatói\nfelelősségbiztosítás ",null,null,null,null,{"$f":"IF('1.telephely'!C44>0,Tarifa!S37,\"Nem biztosított\")","v":"Nem biztosított"},null,{"$f":"'1.telephely'!C44","v":0}]
[null,"termékfelelősség\nbiztosítás ",null,null,null,null,{"$f":"IF('1.telephely'!C45>0,Tarifa!S48,\"Nem biztosított\")","v":"Nem biztosított"},null,{"$f":"'1.telephely'!C45","v":0}]
[null,"bérlői\nfelelősségbiztosítás",null,null,null,null,{"$f":"IF('1.telephely'!C46>0,Tarifa!S60,\"Nem biztosított\")","v":"Nem biztosított"},null,{"$f":"'1.telephely'!C46","v":0}]
[null,"szolgáltatói\nfelelősségbiztosítás",null,null,null,null,{"$f":"IF('1.telephely'!C47>0,Tarifa!S72,\"Nem biztosított\")","v":"Nem biztosított"},null,{"$f":"'1.telephely'!C47","v":0}]
[null,"szálloda üzemeltetői, szállásadói felelősségbiztosítása",null,null,null,null,{"$f":"IF('1.telephely'!C48>0,Tarifa!AA62,\"Nem biztosított\")","v":"Nem biztosított"},null,{"$f":"'1.telephely'!C48","v":0}]
[null,"gépjárműjavítók felelősségbiztosítása",null,null,null,null,{"$f":"IF('1.telephely'!C49>0,Tarifa!AA53,\"Nem biztosított\")","v":"Nem biztosított"},null,{"$f":"'1.telephely'!C49","v":0}]
[null,"gépjármű-eredetiségvizsgálatot végzők felelősségbiztosítása",null,null,null,null,{"$f":"IF('1.telephely'!C50>0,\"5 millió Ft\",\"Nem biztosított\")","v":"Nem biztosított"},null,{"$f":"'1.telephely'!C50","v":0}]
[null,"szolgáltatás tárgyában okozott károk biztosítása",null,null,null,null,{"$f":"IF('1.telephely'!C51>0,\"5 millió Ft\",\"Nem biztosított\")","v":"Nem biztosított"},null,{"$f":"'1.telephely'!C51","v":0}]
[null,"bérbeadói felelősségbiztosítás",null,null,null,null,{"$f":"IF('1.telephely'!C52>0,Tarifa!S84,\"Nem biztosított\")","v":"Nem biztosított"},null,{"$f":"'1.telephely'!C52","v":0}]
[null,"környezetszennyezési felelősségbiztosítás",null,null,null,null,{"$f":"IF('1.telephely'!C53>0,Tarifa!S96,\"Nem biztosított\")","v":"Nem biztosított"},null,{"$f":"'1.telephely'!C53","v":0}]
[]
[null,"éves díj 1. telephelyre:",null,null,null,null,null,null,{"$f":"'1.telephely'!C55","v":0}]
[]
[null,"kedvezmények",null,null,null,"általános adatok"]
[null,"volumen engedmény",null,null,{"$f":"'1.telephely'!B57","v":"Nincs"},"díjfizetés gyakorisága",null,{"$f":"Tarifa!AC8","v":"negyedéves"}]
[null,"csomag engedmény",null,null,{"$f":"'1.telephely'!B58","v":"Nincs"},"díjfizetés módja",null,{"$f":"Tarifa!AE8","v":"postai utalás"}]
[null,"lojalitás engedmény",null,null,{"$f":"Tarifa!AD15","v":"Nincs"}]
[null,"díjfizetés engedmény",null,null,{"$f":"Tarifa!AA8","v":0.02}]
[null,"díjeltérítési szorzó engedmény",null,null,{"$f":"Tarifa!AC11","v":0}]
[]
[null,"Fizetendő éves biztosítási díj",null,null,null,{"$f":"'1.telephely'!B67","v":12000}]
[]
[]
[null,null,null,{"$f":"TODAY()","v":"2021-04-21"}]
[]
[null,"Jelen kalkuláció nem minosül hivatalos ajánlattételnek, az kizárólag tájékoztató jellegű!"]
[]
[]
[]
[null,"Díjkalkuláció a K&H vállalkozói biztosításhoz (2. telephely)"]
[]
[null,"vállalkozói biztosítás kalkulációs adatai"]
[]
[null,"tevékenység megnevezése",null,null,null,{"$f":"Tarifa!$Q$4","v":"Nem évelő növény termesztése"}]
[null,"tevékenység kódja",null,null,null,{"$f":"'2.telephely'!$H$3","v":"011"}]
[null,"telephely irányítószáma",null,null,null,{"$f":"'2.telephely'!$F$2","v":0}]
[]
[null,"telephely éves árbevétele (e Ft)",null,null,null,{"$f":"'2.telephely'!$B$7","v":0}]
[null,"éves forgalom (e Ft)",null,null,null,{"$f":"'2.telephely'!$B$9","v":0}]
[null,"alkalmazottak száma (fő)",null,null,null,{"$f":"'2.telephely'!$B$8","v":0}]
[null,"éves bérleti díj (e Ft)",null,null,null,{"$f":"'2.telephely'!$B$10","v":0}]
[null,"bérbeadásból származó forgalom (e Ft)",null,null,null,{"$f":"'2.telephely'!$B$11","v":0}]
[]
[null,"alapbiztosítás keretében biztosított vagyontárgyak"]
[null,"épület, építmény (e Ft)",null,null,{"$f":"'2.telephely'!$B$16","v":0}]
[null,"egyéb tárgyi eszközök (e Ft)",null,null,{"$f":"'2.telephely'!$B$17","v":0}]
[null,"készletek (e Ft)",null,null,{"$f":"'2.telephely'!$B$18","v":0}]
[null,"készpénz (e Ft)",null,null,{"$f":"'2.telephely'!$B$19","v":0},null,"biztosítási összeg vagy kártérítési limit",null,"biztosítási díj"]
[null,"alapbiztosítás"]
[null,"tűz és elemi károk",null,null,null,null,{"$f":"IF('2.telephely'!$C$21>0,'2.telephely'!$B$21,\"Nem biztosított\")","v":"Nem biztosított"},null,{"$f":"'2.telephely'!$C$21","v":0}]
[]
[null,"kiegészítő biztosítások"]
[null,"betöréses lopás és rablás biztosítás ",null,null,null,null,{"$f":"IF('2.telephely'!C23=0,\"Nem biztosított\",((IF('2.telephely'!$E$17=TRUE,'2.telephely'!$B$17,0))+(IF('2.telephely'!$E$18=TRUE,SUM('2.telephely'!$B$18:'2.telephely'!$B$19),0))+(IF('2.telephely'!$E$20=TRUE,'2.telephely'!$B$20,0))))","v":"Nem biztosított"},null,{"$f":"'2.telephely'!$C$23","v":0}]
[null,"irodai és kereskedelmi elektronikus berendezések, eszközök ",null,null,null,null,{"$f":"IF('2.telephely'!$C$25>0,'2.telephely'!$C$23,\"Nem biztosított\")","v":"Nem biztosított"},null,{"$f":"'2.telephely'!$C$25","v":0}]
[null,"üzemszünet biztosítás ",null,null,null,null,{"$f":"IF('2.telephely'!$C$27>0,\"Szerződési feltételek szerint\",\"Nem biztosított\")","v":"Nem biztosított"},null,{"$f":"'2.telephely'!$C$27","v":0}]
[null,"szállítmány biztosítás ",null,null,null,null,{"$f":"IF('2.telephely'!$C$29>0,'2.telephely'!$B$29,\"Nem biztosított\")","v":"Nem biztosított"},null,{"$f":"'2.telephely'!$C$29","v":0}]
[null,"vakolat károk biztosítása ",null,null,null,null,{"$f":"IF('2.telephely'!$C$31>0,\"Szerződési feltételek szerint\",\"Nem biztosított\")","v":"Nem biztosított"},null,{"$f":"'2.telephely'!$C$31","v":0}]
[null,"tetőbeázási károk biztosítása",null,null,null,null,{"$f":"IF('2.telephely'!$C$33>0,\"Szerződési feltételek szerint\",\"Nem biztosított\")","v":"Nem biztosított"},null,{"$f":"'2.telephely'!$C$33","v":0}]
[null,"vandalizmus károk biztosítása ",null,null,null,null,{"$f":"IF('2.telephely'!$C$35>0,'2.telephely'!$B$35,\"Nem biztosított\")","v":"Nem biztosított"},null,{"$f":"'2.telephely'!$C$35","v":0}]
[null,"különleges üvegek üvegtörés biztosítása ",null,null,null,null,{"$f":"IF('2.telephely'!$C$37>0,'2.telephely'!B37,\"Nem biztosított\")","v":"Nem biztosított"},null,{"$f":"'2.telephely'!$C$37","v":0}]
[null,"általános és\népülethasználói\nfelelősségbiztosítás ",null,null,null,null,{"$f":"IF('2.telephely'!$C$39>0,Tarifa!J89,\"Nem biztosított\")","v":"Nem biztosított"},null,{"$f":"'2.telephely'!$C$39","v":0}]
[null,"tanuló baleseti és felelősségbiztosítás ",null,null,null,null,{"$f":"IF('2.telephely'!$C$40>0,\"5 millió Ft\",\"Nem biztosított\")","v":"Nem biztosított"},null,{"$f":"'2.telephely'!$C$40","v":0}]
[null,"munkáltatói\nfelelősségbiztosítás ",null,null,null,null,{"$f":"IF('2.telephely'!$C$41>0,Tarifa!$T$37,\"Nem biztosított\")","v":"Nem biztosított"},null,{"$f":"'2.telephely'!$C$41","v":0}]
[null,"termékfelelősség\nbiztosítás ",null,null,null,null,{"$f":"IF('2.telephely'!$C$42>0,Tarifa!$T$48,\"Nem biztosított\")","v":"Nem biztosított"},null,{"$f":"'2.telephely'!$C$42","v":0}]
[null,"bérlői\nfelelősségbiztosítás",null,null,null,null,{"$f":"IF('2.telephely'!$C$43>0,Tarifa!$T$60,\"Nem biztosított\")","v":"Nem biztosított"},null,{"$f":"'2.telephely'!$C$43","v":0}]
[null,"szolgáltatói\nfelelősségbiztosítás",null,null,null,null,{"$f":"IF('2.telephely'!$C$44>0,Tarifa!$T$72,\"Nem biztosított\")","v":"Nem biztosított"},null,{"$f":"'2.telephely'!$C$44","v":0}]
[null,"szálloda üzemeltetői, szállásadói felelősségbiztosítása",null,null,null,null,{"$f":"IF('2.telephely'!$C$45>0,Tarifa!$AB$62,\"Nem biztosított\")","v":"Nem biztosított"},null,{"$f":"'2.telephely'!$C$45","v":0}]
[null,"gépjárműjavítók felelősségbiztosítása",null,null,null,null,{"$f":"IF('2.telephely'!$C$46>0,Tarifa!$AB$53,\"Nem biztosított\")","v":"Nem biztosított"},null,{"$f":"'2.telephely'!$C$46","v":0}]
[null,"gépjármű-eredetiségvizsgálatot végzők felelősségbiztosítása",null,null,null,null,{"$f":"IF('2.telephely'!$C$47>0,\"5 millió Ft\",\"Nem biztosított\")","v":"Nem biztosított"},null,{"$f":"'2.telephely'!$C$47","v":0}]
[null,"szolgáltatás tárgyában okozott károk biztosítása",null,null,null,null,{"$f":"IF('2.telephely'!$C$48>0,\"5 millió Ft\",\"Nem biztosított\")","v":"Nem biztosított"},null,{"$f":"'2.telephely'!$C$48","v":0}]
[null,"bérbeadói felelősségbiztosítás",null,null,null,null,{"$f":"IF('2.telephely'!$C$49>0,Tarifa!$T$84,\"Nem biztosított\")","v":"Nem biztosított"},null,{"$f":"'2.telephely'!$C$49","v":0}]
[null,"környezetszennyezési felelősségbiztosítás",null,null,null,null,{"$f":"IF('2.telephely'!$C$50>0,Tarifa!$T$96,\"Nem biztosított\")","v":"Nem biztosított"},null,{"$f":"'2.telephely'!$C$50","v":0}]
[]
[null,"éves díj 2. telephelyre:",null,null,null,null,null,null,{"$f":"'2.telephely'!$C$52","v":0}]
[]
[]
[]
[]
[]
[]
[]
[]
[]
[]
[]
[]
[]
[]
[]
[]
[null,"Díjkalkuláció a K&H vállalkozói biztosításhoz (3. telephely)"]
[]
[null,"vállalkozói biztosítás kalkulációs adatai"]
[]
[null,"tevékenység megnevezése",null,null,null,{"$f":"Tarifa!Q5","v":"Nem évelő növény termesztése"}]
[null,"tevékenység kódja",null,null,null,{"$f":"'3.telephely'!$H$3","v":"011"}]
[null,"telephely irányítószáma",null,null,null,{"$f":"'3.telephely'!$F$2","v":0}]
[]
[null,"telephely éves árbevétele (e Ft)",null,null,null,{"$f":"'3.telephely'!$B$7","v":0}]
[null,"éves forgalom (e Ft)",null,null,null,{"$f":"'3.telephely'!$B$9","v":0}]
[null,"alkalmazottak száma (fő)",null,null,null,{"$f":"'3.telephely'!$B$8","v":0}]
[null,"éves bérleti díj (e Ft)",null,null,null,{"$f":"'3.telephely'!$B$10","v":0}]
[null,"bérbeadásból származó forgalom (e Ft)",null,null,null,{"$f":"'3.telephely'!$B$11","v":0}]
[]
[null,"alapbiztosítás keretében biztosított vagyontárgyak"]
[null,"épület, építmény (e Ft)",null,null,{"$f":"'3.telephely'!$B$16","v":0}]
[null,"egyéb tárgyi eszközök (e Ft)",null,null,{"$f":"'3.telephely'!$B$17","v":0}]
[null,"készletek (e Ft)",null,null,{"$f":"'3.telephely'!$B$18","v":0}]
[null,"készpénz (e Ft)",null,null,{"$f":"'3.telephely'!$B$19","v":0},null,"biztosítási összeg vagy kártérítési limit",null,"biztosítási díj"]
[null,"alapbiztosítás"]
[null,"tűz és elemi károk",null,null,null,null,{"$f":"IF('3.telephely'!C21>0,'3.telephely'!$B$21,\"Nem biztosított\")","v":"Nem biztosított"},null,{"$f":"'3.telephely'!$C$21","v":0}]
[]
[null,"kiegészítő biztosítások"]
[null,"betöréses lopás és rablás biztosítás ",null,null,null,null,{"$f":"IF('3.telephely'!C23=0,\"Nem biztosított\",((IF('3.telephely'!$E$17=TRUE,'3.telephely'!$B$17,0))+(IF('3.telephely'!$E$18=TRUE,SUM('3.telephely'!$B$18:'3.telephely'!$B$19),0))+(IF('3.telephely'!$E$20=TRUE,'3.telephely'!$B$20,0))))","v":"Nem biztosított"},null,{"$f":"'3.telephely'!$C$23","v":0}]
[null,"irodai és kereskedelmi elektronikus berendezések, eszközök ",null,null,null,null,{"$f":"IF('3.telephely'!C25>0,'3.telephely'!$B$25,\"Nem biztosított\")","v":"Nem biztosított"},null,{"$f":"'3.telephely'!$C$25","v":0}]
[null,"üzemszünet biztosítás ",null,null,null,null,{"$f":"IF('3.telephely'!$C$27>0,\"Szerződési feltételek szerint\",\"Nem biztosított\")","v":"Nem biztosított"},null,{"$f":"'3.telephely'!$C$27","v":0}]
[null,"szállítmány biztosítás ",null,null,null,null,{"$f":"IF('3.telephely'!C29>0,'3.telephely'!$B$29,\"Nem biztosított\")","v":"Nem biztosított"},null,{"$f":"'3.telephely'!$C$29","v":0}]
[null,"vakolat károk biztosítása ",null,null,null,null,{"$f":"IF('3.telephely'!$C$31>0,\"Szerződési feltételek szerint\",\"Nem biztosított\")","v":"Nem biztosított"},null,{"$f":"'3.telephely'!$C$31","v":0}]
[null,"tetőbeázási károk biztosítása",null,null,null,null,{"$f":"IF('3.telephely'!$C$33>0,\"Szerződési feltételek szerint\",\"Nem biztosított\")","v":"Nem biztosított"},null,{"$f":"'3.telephely'!$C$33","v":0}]
[null,"vandalizmus károk biztosítása ",null,null,null,null,{"$f":"IF('3.telephely'!C35>0,'3.telephely'!$B$35,\"Nem biztosított\")","v":"Nem biztosított"},null,{"$f":"'3.telephely'!$C$35","v":0}]
[null,"különleges üvegek üvegtörés biztosítása ",null,null,null,null,{"$f":"IF('3.telephely'!C37>0,'3.telephely'!$B$37,\"Nem biztosított\")","v":"Nem biztosított"},null,{"$f":"'3.telephely'!$C$37","v":0}]
[null,"általános és\népülethasználói\nfelelősségbiztosítás ",null,null,null,null,{"$f":"IF('3.telephely'!$C$39>0,Tarifa!U26,\"Nem biztosított\")","v":"Nem biztosított"},null,{"$f":"'3.telephely'!$C$39","v":0}]
[null,"tanuló baleseti és felelősségbiztosítás ",null,null,null,null,{"$f":"IF('3.telephely'!$C$40>0,\"5 millió Ft\",\"Nem biztosított\")","v":"Nem biztosított"},null,{"$f":"'3.telephely'!$C$40","v":0}]
[null,"munkáltatói\nfelelősségbiztosítás ",null,null,null,null,{"$f":"IF('3.telephely'!$C$41>0,Tarifa!U37,\"Nem biztosított\")","v":"Nem biztosított"},null,{"$f":"'3.telephely'!$C$41","v":0}]
[null,"termékfelelősség\nbiztosítás ",null,null,null,null,{"$f":"IF('3.telephely'!$C$42>0,Tarifa!U48,\"Nem biztosított\")","v":"Nem biztosított"},null,{"$f":"'3.telephely'!$C$42","v":0}]
[null,"bérlői\nfelelősségbiztosítás",null,null,null,null,{"$f":"IF('3.telephely'!$C$43>0,Tarifa!U60,\"Nem biztosított\")","v":"Nem biztosított"},null,{"$f":"'3.telephely'!$C$43","v":0}]
[null,"szolgáltatói\nfelelősségbiztosítás",null,null,null,null,{"$f":"IF('3.telephely'!$C$44>0,Tarifa!U72,\"Nem biztosított\")","v":"Nem biztosított"},null,{"$f":"'3.telephely'!$C$44","v":0}]
[null,"szálloda üzemeltetői, szállásadói felelősségbiztosítása",null,null,null,null,{"$f":"IF('3.telephely'!$C$45>0,Tarifa!AC62,\"Nem biztosított\")","v":"Nem biztosított"},null,{"$f":"'3.telephely'!$C$45","v":0}]
[null,"gépjárműjavítók felelősségbiztosítása",null,null,null,null,{"$f":"IF('3.telephely'!$C$46>0,Tarifa!AC53,\"Nem biztosított\")","v":"Nem biztosított"},null,{"$f":"'3.telephely'!$C$46","v":0}]
[null,"gépjármű-eredetiségvizsgálatot végzők felelősségbiztosítása",null,null,null,null,{"$f":"IF('3.telephely'!$C$47>0,\"5 millió Ft\",\"Nem biztosított\")","v":"Nem biztosított"},null,{"$f":"'3.telephely'!$C$47","v":0}]
[null,"szolgáltatás tárgyában okozott károk biztosítása",null,null,null,null,{"$f":"IF('3.telephely'!$C$48>0,\"5 millió Ft\",\"Nem biztosított\")","v":"Nem biztosított"},null,{"$f":"'3.telephely'!$C$48","v":0}]
[null,"bérbeadói felelősségbiztosítás",null,null,null,null,{"$f":"IF('3.telephely'!$C$49>0,Tarifa!U84,\"Nem biztosított\")","v":"Nem biztosított"},null,{"$f":"'3.telephely'!$C$49","v":0}]
[null,"környezetszennyezési felelősségbiztosítás",null,null,null,null,{"$f":"IF('3.telephely'!$C$50>0,Tarifa!U96,\"Nem biztosított\")","v":"Nem biztosított"},null,{"$f":"'3.telephely'!$C$50","v":0}]
[]
[null,"éves díj 3. telephelyre:",null,null,null,null,null,null,{"$f":"'3.telephely'!$C$52","v":0}]
[]
[]
[]
[]
[]
[]
[]
[]
[]
[]
[]
[]
[]
[]
[]
[]
[]
[]
[]
[null,"Díjkalkuláció a K&H vállalkozói biztosításhoz (4.telephely)"]
[]
[null,"vállalkozói biztosítás kalkulációs adatai"]
[]
[null,"tevékenység megnevezése",null,null,null,{"$f":"Tarifa!Q6","v":"Nem évelő növény termesztése"}]
[null,"tevékenység kódja",null,null,null,{"$f":"'4.telephely'!$H$3","v":"011"}]
[null,"telephely irányítószáma",null,null,null,{"$f":"'4.telephely'!$F$2","v":0}]
[]
[null,"telephely éves árbevétele (e Ft)",null,null,null,{"$f":"'4.telephely'!$B$7","v":0}]
[null,"éves forgalom (e Ft)",null,null,null,{"$f":"'4.telephely'!$B$9","v":0}]
[null,"alkalmazottak száma (fő)",null,null,null,{"$f":"'4.telephely'!$B$8","v":0}]
[null,"éves bérleti díj (e Ft)",null,null,null,{"$f":"'4.telephely'!$B$10","v":0}]
[null,"bérbeadásból származó forgalom (e Ft)",null,null,null,{"$f":"'4.telephely'!$B$11","v":0}]
[]
[null,"alapbiztosítás keretében biztosított vagyontárgyak"]
[null,"épület, építmény (e Ft)",null,null,{"$f":"'4.telephely'!$B$16","v":0}]
[null,"egyéb tárgyi eszközök (e Ft)",null,null,{"$f":"'4.telephely'!$B$17","v":0}]
[null,"készletek (e Ft)",null,null,{"$f":"'4.telephely'!$B$18","v":0}]
[null,"készpénz (e Ft)",null,null,{"$f":"'4.telephely'!$B$19","v":0},null,"biztosítási összeg vagy kártérítési limit",null,"biztosítási díj"]
[null,"alapbiztosítás"]
[null,"tűz és elemi károk",null,null,null,null,{"$f":"IF('4.telephely'!C21>0,'4.telephely'!$B$21,\"Nem biztosított\")","v":"Nem biztosított"},null,{"$f":"'4.telephely'!$C$21","v":0}]
[]
[null,"kiegészítő biztosítások"]
[null,"betöréses lopás és rablás biztosítás ",null,null,null,null,{"$f":"IF('4.telephely'!C23=0,\"Nem biztosított\",((IF('4.telephely'!$E$17=TRUE,'4.telephely'!$B$17,0))+(IF('4.telephely'!$E$18=TRUE,SUM('4.telephely'!$B$18:'4.telephely'!$B$19),0))+(IF('4.telephely'!$E$20=TRUE,'4.telephely'!$B$20,0))))","v":"Nem biztosított"},null,{"$f":"'4.telephely'!$C$23","v":0}]
[null,"irodai és kereskedelmi elektronikus berendezések, eszközök ",null,null,null,null,{"$f":"IF('4.telephely'!C25>0,'4.telephely'!$B$25,\"Nem biztosított\")","v":"Nem biztosított"},null,{"$f":"'4.telephely'!$C$25","v":0}]
[null,"üzemszünet biztosítás ",null,null,null,null,{"$f":"IF('4.telephely'!$C$27>0,\"Szerződési feltételek szerint\",\"Nem biztosított\")","v":"Nem biztosított"},null,{"$f":"'4.telephely'!$C$27","v":0}]
[null,"szállítmány biztosítás ",null,null,null,null,{"$f":"IF('4.telephely'!C29>0,'4.telephely'!$B$29,\"Nem biztosított\")","v":"Nem biztosított"},null,{"$f":"'4.telephely'!$C$29","v":0}]
[null,"vakolat károk biztosítása ",null,null,null,null,{"$f":"IF('4.telephely'!$C$31>0,\"Szerződési feltételek szerint\",\"Nem biztosított\")","v":"Nem biztosított"},null,{"$f":"'4.telephely'!$C$31","v":0}]
[null,"tetőbeázási károk biztosítása",null,null,null,null,{"$f":"IF('4.telephely'!$C$33>0,\"Szerződési feltételek szerint\",\"Nem biztosított\")","v":"Nem biztosított"},null,{"$f":"'4.telephely'!$C$33","v":0}]
[null,"vandalizmus károk biztosítása ",null,null,null,null,{"$f":"IF('4.telephely'!C35>0,'4.telephely'!$B$35,\"Nem biztosított\")","v":"Nem biztosított"},null,{"$f":"'4.telephely'!$C$35","v":0}]
[null,"különleges üvegek üvegtörés biztosítása ",null,null,null,null,{"$f":"IF('4.telephely'!C37>0,'4.telephely'!$B$37,\"Nem biztosított\")","v":"Nem biztosított"},null,{"$f":"'4.telephely'!$C$37","v":0}]
[null,"általános és\népülethasználói\nfelelősségbiztosítás ",null,null,null,null,{"$f":"IF('4.telephely'!$C$39>0,Tarifa!V26,\"Nem biztosított\")","v":"Nem biztosított"},null,{"$f":"'4.telephely'!$C$39","v":0}]
[null,"tanuló baleseti és felelősségbiztosítás ",null,null,null,null,{"$f":"IF('4.telephely'!$C$40>0,\"5 millió Ft\",\"Nem biztosított\")","v":"Nem biztosított"},null,{"$f":"'4.telephely'!$C$40","v":0}]
[null,"munkáltatói\nfelelősségbiztosítás ",null,null,null,null,{"$f":"IF('4.telephely'!$C$41>0,Tarifa!V37,\"Nem biztosított\")","v":"Nem biztosított"},null,{"$f":"'4.telephely'!$C$41","v":0}]
[null,"termékfelelősség\nbiztosítás ",null,null,null,null,{"$f":"IF('4.telephely'!$C$42>0,Tarifa!V48,\"Nem biztosított\")","v":"Nem biztosított"},null,{"$f":"'4.telephely'!$C$42","v":0}]
[null,"bérlői\nfelelősségbiztosítás",null,null,null,null,{"$f":"IF('4.telephely'!$C$43>0,Tarifa!V60,\"Nem biztosított\")","v":"Nem biztosított"},null,{"$f":"'4.telephely'!$C$43","v":0}]
[null,"szolgáltatói\nfelelősségbiztosítás",null,null,null,null,{"$f":"IF('4.telephely'!$C$44>0,Tarifa!V72,\"Nem biztosított\")","v":"Nem biztosított"},null,{"$f":"'4.telephely'!$C$44","v":0}]
[null,"szálloda üzemeltetői, szállásadói felelősségbiztosítása",null,null,null,null,{"$f":"IF('4.telephely'!$C$45>0,Tarifa!AD62,\"Nem biztosított\")","v":"Nem biztosított"},null,{"$f":"'4.telephely'!$C$45","v":0}]
[null,"gépjárműjavítók felelősségbiztosítása",null,null,null,null,{"$f":"IF('4.telephely'!$C$46>0,Tarifa!AD53,\"Nem biztosított\")","v":"Nem biztosított"},null,{"$f":"'4.telephely'!$C$46","v":0}]
[null,"gépjármű-eredetiségvizsgálatot végzők felelősségbiztosítása",null,null,null,null,{"$f":"IF('4.telephely'!$C$47>0,\"5 millió Ft\",\"Nem biztosított\")","v":"Nem biztosított"},null,{"$f":"'4.telephely'!$C$47","v":0}]
[null,"szolgáltatás tárgyában okozott károk biztosítása",null,null,null,null,{"$f":"IF('4.telephely'!$C$48>0,\"5 millió Ft\",\"Nem biztosított\")","v":"Nem biztosított"},null,{"$f":"'4.telephely'!$C$48","v":0}]
[null,"bérbeadói felelősségbiztosítás",null,null,null,null,{"$f":"IF('4.telephely'!$C$49>0,Tarifa!V84,\"Nem biztosított\")","v":"Nem biztosított"},null,{"$f":"'4.telephely'!$C$49","v":0}]
[null,"környezetszennyezési felelősségbiztosítás",null,null,null,null,{"$f":"IF('4.telephely'!$C$50>0,Tarifa!V96,\"Nem biztosított\")","v":"Nem biztosított"},null,{"$f":"'4.telephely'!$C$50","v":0}]
[]
[null,"éves díj 4. telephelyre:",null,null,null,null,null,null,{"$f":"'4.telephely'!$C$52","v":0}]
[]
[]
[]
[]
[]
[]
[]
[]
[]
[]
[]
[]
[]
[]
[]
[]
[]
[]
[]
[null,"Díjkalkuláció a K&H vállalkozói biztosításhoz (5.telephely)"]
[]
[null,"vállalkozói biztosítás kalkulációs adatai"]
[]
[null,"tevékenység megnevezése",null,null,null,{"$f":"Tarifa!Q7","v":"Nem évelő növény termesztése"}]
[null,"tevékenység kódja",null,null,null,{"$f":"'5.telephely'!$H$3","v":"011"}]
[null,"telephely irányítószáma",null,null,null,{"$f":"'5.telephely'!$F$2","v":0}]
[]
[null,"telephely éves árbevétele (e Ft)",null,null,null,{"$f":"'5.telephely'!$B$7","v":0}]
[null,"éves forgalom (e Ft)",null,null,null,{"$f":"'5.telephely'!$B$9","v":0}]
[null,"alkalmazottak száma (fő)",null,null,null,{"$f":"'5.telephely'!$B$8","v":0}]
[null,"éves bérleti díj (e Ft)",null,null,null,{"$f":"'5.telephely'!$B$10","v":0}]
[null,"bérbeadásból származó forgalom (e Ft)",null,null,null,{"$f":"'5.telephely'!$B$11","v":0}]
[]
[null,"alapbiztosítás keretében biztosított vagyontárgyak"]
[null,"épület, építmény (e Ft)",null,null,{"$f":"'5.telephely'!$B$16","v":0}]
[null,"egyéb tárgyi eszközök (e Ft)",null,null,{"$f":"'5.telephely'!$B$17","v":0}]
[null,"készletek (e Ft)",null,null,{"$f":"'5.telephely'!$B$18","v":0}]
[null,"készpénz (e Ft)",null,null,{"$f":"'5.telephely'!$B$19","v":0},null,"biztosítási összeg vagy kártérítési limit",null,"biztosítási díj"]
[null,"alapbiztosítás"]
[null,"tűz és elemi károk",null,null,null,null,{"$f":"IF('5.telephely'!C21>0,'5.telephely'!$B$21,\"Nem biztosított\")","v":"Nem biztosított"},null,{"$f":"'5.telephely'!$C$21","v":0}]
[]
[null,"kiegészítő biztosítások"]
[null,"betöréses lopás és rablás biztosítás ",null,null,null,null,{"$f":"IF('5.telephely'!C23=0,\"Nem biztosított\",((IF('5.telephely'!$E$17=TRUE,'5.telephely'!$B$17,0))+(IF('5.telephely'!$E$18=TRUE,SUM('5.telephely'!$B$18:'5.telephely'!$B$19),0))+(IF('5.telephely'!$E$20=TRUE,'5.telephely'!$B$20,0))))","v":"Nem biztosított"},null,{"$f":"'5.telephely'!$C$23","v":0}]
[null,"irodai és kereskedelmi elektronikus berendezések, eszközök ",null,null,null,null,{"$f":"IF('5.telephely'!C25>0,'5.telephely'!$B$25,\"Nem biztosított\")","v":"Nem biztosított"},null,{"$f":"'5.telephely'!$C$25","v":0}]
[null,"üzemszünet biztosítás ",null,null,null,null,{"$f":"IF('5.telephely'!$C$27>0,\"Szerződési feltételek szerint\",\"Nem biztosított\")","v":"Nem biztosított"},null,{"$f":"'5.telephely'!$C$27","v":0}]
[null,"szállítmány biztosítás ",null,null,null,null,{"$f":"IF('5.telephely'!C29>0,'5.telephely'!$B$29,\"Nem biztosított\")","v":"Nem biztosított"},null,{"$f":"'5.telephely'!$C$29","v":0}]
[null,"vakolat károk biztosítása ",null,null,null,null,{"$f":"IF('5.telephely'!$C$31>0,\"Szerződési feltételek szerint\",\"Nem biztosított\")","v":"Nem biztosított"},null,{"$f":"'5.telephely'!$C$31","v":0}]
[null,"tetőbeázási károk biztosítása",null,null,null,null,{"$f":"IF('5.telephely'!$C$33>0,\"Szerződési feltételek szerint\",\"Nem biztosított\")","v":"Nem biztosított"},null,{"$f":"'5.telephely'!$C$33","v":0}]
[null,"vandalizmus károk biztosítása ",null,null,null,null,{"$f":"IF('5.telephely'!C35>0,'5.telephely'!$B$35,\"Nem biztosított\")","v":"Nem biztosított"},null,{"$f":"'5.telephely'!$C$35","v":0}]
[null,"különleges üvegek üvegtörés biztosítása ",null,null,null,null,{"$f":"IF('5.telephely'!C37>0,'5.telephely'!$B$37,\"Nem biztosított\")","v":"Nem biztosított"},null,{"$f":"'5.telephely'!$C$37","v":0}]
[null,"általános és\népülethasználói\nfelelősségbiztosítás ",null,null,null,null,{"$f":"IF('5.telephely'!$C$39>0,Tarifa!W26,\"Nem biztosított\")","v":"Nem biztosított"},null,{"$f":"'5.telephely'!$C$39","v":0}]
[null,"tanuló baleseti és felelősségbiztosítás ",null,null,null,null,{"$f":"IF('5.telephely'!$C$40>0,\"5 millió Ft\",\"Nem biztosított\")","v":"Nem biztosított"},null,{"$f":"'5.telephely'!$C$40","v":0}]
[null,"munkáltatói\nfelelősségbiztosítás ",null,null,null,null,{"$f":"IF('5.telephely'!$C$41>0,Tarifa!W37,\"Nem biztosított\")","v":"Nem biztosított"},null,{"$f":"'5.telephely'!$C$41","v":0}]
[null,"termékfelelősség\nbiztosítás ",null,null,null,null,{"$f":"IF('5.telephely'!$C$42>0,Tarifa!W48,\"Nem biztosított\")","v":"Nem biztosított"},null,{"$f":"'5.telephely'!$C$42","v":0}]
[null,"bérlői\nfelelősségbiztosítás",null,null,null,null,{"$f":"IF('5.telephely'!$C$43>0,Tarifa!W60,\"Nem biztosított\")","v":"Nem biztosított"},null,{"$f":"'5.telephely'!$C$43","v":0}]
[null,"szolgáltatói\nfelelősségbiztosítás",null,null,null,null,{"$f":"IF('5.telephely'!$C$44>0,Tarifa!W72,\"Nem biztosított\")","v":"Nem biztosított"},null,{"$f":"'5.telephely'!$C$44","v":0}]
[null,"szálloda üzemeltetői, szállásadói felelősségbiztosítása",null,null,null,null,{"$f":"IF('5.telephely'!$C$45>0,Tarifa!AE62,\"Nem biztosított\")","v":"Nem biztosított"},null,{"$f":"'5.telephely'!$C$45","v":0}]
[null,"gépjárműjavítók felelősségbiztosítása",null,null,null,null,{"$f":"IF('5.telephely'!$C$46>0,Tarifa!AE53,\"Nem biztosított\")","v":"Nem biztosított"},null,{"$f":"'5.telephely'!$C$46","v":0}]
[null,"gépjármű-eredetiségvizsgálatot végzők felelősségbiztosítása",null,null,null,null,{"$f":"IF('5.telephely'!$C$47>0,\"5 millió Ft\",\"Nem biztosított\")","v":"Nem biztosított"},null,{"$f":"'5.telephely'!$C$47","v":0}]
[null,"szolgáltatás tárgyában okozott károk biztosítása",null,null,null,null,{"$f":"IF('5.telephely'!$C$48>0,\"5 millió Ft\",\"Nem biztosított\")","v":"Nem biztosított"},null,{"$f":"'5.telephely'!$C$48","v":0}]
[null,"bérbeadói felelősségbiztosítás",null,null,null,null,{"$f":"IF('5.telephely'!$C$49>0,Tarifa!W84,\"Nem biztosított\")","v":"Nem biztosított"},null,{"$f":"'5.telephely'!$C$49","v":0}]
[null,"környezetszennyezési felelősségbiztosítás",null,null,null,null,{"$f":"IF('5.telephely'!$C$50>0,Tarifa!W96,\"Nem biztosított\")","v":"Nem biztosított"},null,{"$f":"'5.telephely'!$C$50","v":0}]
[]
[null,"éves díj 5. telephelyre:",null,null,null,null,null,null,{"$f":"'5.telephely'!$C$52","v":0}]

{"sheet":"Előzetes díjkalk.+adatközlő","index":8,"n_rows":389,"n_cols":11,"rows_kept":389,"cut":false,"hidden":false,"merged":[[339,6,339,7],[273,6,273,7],[207,2,207,3],[255,2,255,3],[71,5,71,6],[123,2,123,3],[134,5,134,6],[141,6,141,7],[78,2,78,3],[225,3,225,4],[78,6,78,7],[132,5,132,9],[72,9,72,10],[71,8,71,9],[134,8,134,9],[200,8,200,9],[9,7,9,10],[26,1,26,4],[27,0,27,1],[26,8,26,10],[56,0,56,1],[56,2,56,3],[29,0,29,3],[36,0,36,10],[69,5,69,9],[30,0,30,10],[38,7,40,10],[45,0,54,10],[333,9,333,10],[332,8,332,9],[332,5,332,6],[44,0,44,10],[200,5,200,6],[207,6,207,7],[266,5,266,6],[267,9,267,10],[35,3,35,6],[5,4,5,10],[376,0,376,1],[387,2,387,3],[28,0,28,1],[244,0,244,1],[310,0,310,1],[38,3,38,4],[39,3,39,4],[40,3,40,4],[115,0,115,1],[178,0,178,1],[321,2,321,3],[7,4,7,5],[6,4,6,5],[23,0,24,10],[29,5,29,10]]}
["előzetes díjkalkuláció K&H vállalkozói biztosítás megkötésére",null,null,null,null,null,null,null,null,"K&H Biztosító Zrt."]
[null,null,null,null,null,null,null,null,null,"1095 Budapest, Lechner Ödön fasor 9."]
["biztosításközvetítő neve:",null,null,{"$f":"Adatfelvétel!Q6","v":0}]
["biztosításközvetítő K&H-s nyilvántartási száma:",null,null,null,{"$f":"Adatfelvétel!Q4","v":0},null,null,"telefonszám:",{"$f":"Adatfelvétel!Q8","v":0}]
["Szerzodo (Biztosított) adatai („ügyfél adatlap biztosítási szerzodés megkötéséhez” nyomtatvány adattartalmával egyenértékű adatok)"]
["név (szervezet rövid neve):",null,null,null,{"$f":"Adatfelvétel!O16","v":0}]
["születéskori név (leánykori név):",null,null,null,{"$f":"Adatfelvétel!O17","v":0}]
["anyja neve:",null,null,null,{"$f":"Adatfelvétel!O20","v":0}]
["születési dátum:",null,null,{"$f":"IF(Adatfelvétel!O18=0,\" \",Adatfelvétel!O18)","v":" "},"születés helye:",{"$f":"Adatfelvétel!O19","v":0},null,"szervezet adószáma:",null,{"$f":"Adatfelvétel!O21","v":0}]
["lakóhely / szervezet székhelyének címe:",null,null,null,{"$f":"Adatfelvétel!I24","v":0},{"$f":"Adatfelvétel!I25","v":0},null,{"$f":"Adatfelvétel!I26","v":0}]
["kapcsolattartáshoz szükséges adatok"]
["ha a levelezési cím nem a lakóhely / szervezet székhelye, akkor más levelezési cím:"]
["kapcsolattartó neve:",null,null,{"$f":"Adatfelvétel!I34","v":0}]
["telefonszám:",null,null,{"$f":"Adatfelvétel!I35","v":0},null,null,"mobil telefonszám:",null,{"$f":"Adatfelvétel!I36","v":0}]
["e-mail cím:",null,null,{"$f":"Adatfelvétel!I37","v":0},null,null,"fax:",{"$f":"Adatfelvétel!I38","v":0}]
["ügyfélkapcsolattartó kijelöléséhez szükséges adatok:"]
["Éves árbevétel 200 millió forint felett?",null,null,null,{"$f":"IF(Adatfelvétel!AH42=TRUE,\"igen\",\"nem\")","v":"nem"},null,null,"Állandó alkalmazottak száma 10 fő felett?",null,null,{"$f":"IF(Adatfelvétel!AH43=TRUE,\"igen\",\"nem\")","v":"nem"}]
["csak mezogazdasági ügyfelek esetén:"]
["Szántó/erdo terület 50 ha felett?",null,null,null,{"$f":"IF(Adatfelvétel!AH47=TRUE,\"igen\",\"nem\")","v":"nem"},null,null,"Kertészeti kultúra 5 ha felett?",null,null,{"$f":"IF(Adatfelvétel!AH48=TRUE,\"igen\",\"nem\")","v":"nem"}]
["Számosállatainak száma 30 felett?",null,null,null,{"$f":"IF(Adatfelvétel!AH49=TRUE,\"igen\",\"nem\")","v":"nem"}]
["kockázati besoroláshoz szükséges adatok a 2014. évi LXXXVIII. törvény alapján"]
["Mérleg főösszege 6,2 millió euró feletti?",null,null,null,null,{"$f":"IF(Adatfelvétel!AH53=TRUE,\"igen\",\"nem\")","v":"nem"},null,"Árbevétel (nettó) 12,8 millió euró feletti?",null,null,{"$f":"IF(Adatfelvétel!AH54=TRUE,\"igen\",\"nem\")","v":"nem"}]
["Átlagos alkalmazotti létszám eléri vagy meghaladja a 250 főt?",null,null,null,null,{"$f":"IF(Adatfelvétel!AH55=TRUE,\"igen\",\"nem\")","v":"nem"}]
["Felhívjuk szíves figyelmét, hogy - eltérő rendelkezés hiányában - a jelen ajánlaton közölt Szerződő (Biztosított) adatait a többi, társaságunknál hatályos szerződés vonatkozásában is figyelembe vesszük, illetve alkalmazzuk."]
[]
["zálogjogosult adatai"]
["neve",{"$f":"Adatfelvétel!I65","v":0},null,null,null,"címe",{"$f":"Adatfelvétel!I68","v":0},{"$f":"Adatfelvétel!I69","v":0},{"$f":"Adatfelvétel!I70","v":0}]
["zálogjogosult adószáma",null,null,{"$f":"Adatfelvétel!I66","v":0},null,"hitelszám",null,{"$f":"Adatfelvétel!I73","v":0}]
["hitel összege",null,null,{"$f":"Adatfelvétel!I71","v":0},null,"hitel lejárata",null,{"$f":"IF(Adatfelvétel!I72=0,\" \",Adatfelvétel!I72)","v":" "}]
["Kárkifizetési korlátozás: Kijelentem, hogy ",null,null,null,{"$f":"Adatfelvétel!J74","v":0},"forintot meghaladó kár esetén a Biztosító szolgáltatására a "]
["kárkifizetéskor fennálló hitelösszeg és járulékainak erejéig a kötvényen (fedezetet igazoló dokumentumon) megjelölt kölcsönnyújtó hitelintézet javára zálogjog kerül bejegyzésre. Hozzájárulok ahhoz, hogy a hitelre vonatkozó adataimat a hitelintézet a Biztosítónak átadja, illetve a Biztosító a hitelhez kapcsolódó biztosításomra teljes köréről a vonatkozó adatok hitelintézetet tájékoztassa."]
["biztosítási szerzodés általános adatai"]
["kockázatviselés kezdete :",null,null,{"$f":"Adatfelvétel!Q60","v":"00:00:00"},",de legkorábban az ajánlat aláírását követő nap 0:00 órája."]
["A biztosítás tartama határozatlan. Az évforduló minden évben a kockázatviselés kezdete hónapjának 1. napja."]
["díjfizetés gyakorisága:",null,null,{"$f":"Tarifa!AC8","v":"negyedéves"},null,null,null,"díjfizetés módja:",null,{"$f":"Tarifa!AE8","v":"postai utalás"}]
["Fizetendő éves biztosítási díj:",null,null,{"$f":"'1.telephely'!B67","v":12000},null,null,null,"Ft"]
["Felhívjuk szíves figyelmét, hogy a biztosítási szerződésre vonatkozó, továbbá az egyes biztosítási eseményekhez kapcsolódó önrészesedés mértékét a vonatkozó szerződési feltételek tartalmazzák."]
["kedvezmények"]
[{"$f":"IF(Tarifa!AF31<1,\"volumen engedmény\",\" \")","v":" "},null,{"$f":"IF(Tarifa!AF31=1,\" \",Tarifa!AF32)","v":" "},{"$f":"IF(Tarifa!AA15<1,\"lojalitás engedmény\",\" \")","v":" "},null,{"$f":"IF(Tarifa!AA15=1,\" \",Tarifa!AD15)","v":" "},null,{"$f":"IF(Tarifa!AO12<0.5,\"Az összesített kedvezmény mértéke maximálisan 50% lehet, a díjfizetési engedményen és a központi díjeltérítési szorzón kívül.\",\" \")","v":" "}]
[{"$f":"IF(Tarifa!AE15<1,\"csomag engedmény\",\" \")","v":" "},null,{"$f":"IF(Tarifa!AE15=1,\" \",Tarifa!AG15)","v":" "},{"$f":"IF(Tarifa!Z8<1,\"díjfizetési engedmény\",\" \")","v":"díjfizetési engedmény"},null,{"$f":"IF(Tarifa!Z8=1,\" \",Tarifa!AA8)","v":0.02}]
[{"$f":"IF(Tarifa!AB11<1,\"díjeltérítési szorzó\",\" \")","v":" "},null,{"$f":"IF(Tarifa!AB11=1,\" \",Tarifa!AC11)","v":" "},{"$f":"IF(Tarifa!AB12<1,\"központi díjeltérítési szorzó\",\" \")","v":" "},null,{"$f":"IF(Tarifa!AB12=1,\" \",Tarifa!AC12)","v":" "}]
["a helyszíni kockázatelbírálást végzo személy"]
["[ ] biztosításközvetítő [ ] egyéb képviselő:"]
[null,null,null,null,null,null,null,null,"a helyszíni Kockázatelbíráló aláírása"]
[{"$f":"CONCATENATE(\"A Biztosító felhívja a szerződő illetve biztosított figyelmét arra, hogy ha a szerződő a biztosítási összeget a vagyoncsoport, vagyontárgy értékénél alacsonyabb összegben határozta meg, \",\"a Biztosító az esetleges kár rendezése során a kárt csak olyan arányban köteles megtéríteni, ahogy a biztosítási összeg a vagyoncsoport, vagyontárgy értékéhez aránylik.\")","v":"A Biztosító felhívja a szerződő illetve biztosított figyelmét arra, hogy ha a szerződő a biztosítási összeget a vagyoncsoport, vagyontárgy értékénél alacsonyabb összegben határozta meg, a Biztosító az esetleges kár rendezése során a kárt csak olyan arányban köteles megtéríteni, ahogy a biztosítási összeg a vagyoncsoport, vagyontárgy értékéhez aránylik."}]
["Alulírott szerződő kötelezettséget vállalok arra, hogy a szerződés részét képező szerződési feltételek alapján megállapított, a kötvényben (fedezetet igazoló dokumentumban) előírt díjat a jelen megállapodás szerint megfizetem. A felek az első díj tekintetében a kötvényben (fedezetet igazoló dokumentumban) és a díjesedékességi értesítőben foglalt díjesedékességi határidőig halasztásban állapodnak meg. Tudomásul veszem, hogy a szerződésre a K&H vállalkozói biztosítás (KVB-13) szerződési feltételei vonatkoznak, amelyet az ügyfél-tájékoztatóval együtt az ajánlat aláírása előtt átvettem, és annak tartalmát megértettem. Felhatalmazom a Biztosítót arra, hogy az igényelt biztosítással összefüggő adatokat számítógépen tárolja, és az illetékes viszontbiztosítónak átadja. Kívánságomra megadják annak a címét és adatait, akinek adataimat továbbították. Vállalom, hogy a szerződést érintő adatokban bekövetkező változásokat a Biztosítónak 8 napon belül bejelentem. A \"nyilatkozat nem-életbiztosítási szerződés megkötéséhez\" nyomtatvány a szerződés részét képezi. Nem jön létre a szerződés, ha az ajánlatot a Biztosító annak átadását követően számított 15 napon belül visszautasítja. A Biztosító akkor is jogosult az ajánlat visszautasítására, ha a 15 napos kockázatelbírálási határidő alatt biztosítási esemény következik be. Az arról való tájékoztatást, hogy a K&H Biztosító Zrt. biztosításközvetítői a K&H Biztosító Zrt. nevében biztosítási díj átvételére nem jogosultak, megkaptam."]
[]
[]
[]
[]
[]
[]
[]
[]
[]
[]
["Az előzetes díjkalkuláció ",null,{"$f":"Tarifa!AN3","v":"2021-10-31"},null,"-ig érvényes."]
[]
["Előzetes díjkalkuláció kiállításának dátuma",null,null,null,{"$f":"Adatfelvétel!Q12","v":"2021-04-21"}]
[]
["Kelt:",null,null,null,null,null,null,null,"Szerződő (szervezet képviseletére jogosult) /"]
[null,null,null,null,null,null,null,null,"Biztosított aláírása"]
[]
[null,null,null,null,null,null,null,null,null,"1-10805-00"]
[]
["telephelyi adatközlő és díjszámítás K&H vállalkozói biztosításhoz",null,null,null,null,null,null,null,null,"K&H Biztosító Zrt."]
[null,null,"adatközlő sorszáma",null,{"$f":"IF(AND('1.telephely'!C55>0,'2.telephely'!C52=0,'3.telephely'!C52=0,'4.telephely'!C52=0,'5.telephely'!C52=0),\"1/1\",IF(AND('1.telephely'!C55>0,'2.telephely'!C52>0,'3.telephely'!C52=0,'4.telephely'!C52=0,'5.telephely'!C52=0),\"1/2\",IF(AND('1.telephely'!C55>0,'2.telephely'!C52>0,'3.telephely'!C52>0,'4.telephely'!C52=0,'5.telephely'!C52=0),\"1/3\",IF(AND('1.telephely'!C55>0,'2.telephely'!C52>0,'3.telephely'!C52>0,'4.telephely'!C52>0,'5.telephely'!C52=0),\"1/4\",IF(AND('1.telephely'!C55>0,'2.telephely'!C52>0,'3.telephely'!C52>0,'4.telephely'!C52>0,'5.telephely'!C52>0),\"1/5\",0)))))","v":0},null,null,null,null,"1095 Budapest, Lechner Ödön fasor 9."]
[]
["telephely megnevezése:",null,{"$f":"'1.telephely'!B4","v":0}]
["telephely és kockázatviselés helye: ",null,null,null,{"$f":"'1.telephely'!F5","v":0},{"$f":"'1.telephely'!F6","v":0}]
["tevékenység kódja és megnevezése:",null,null,null,{"$f":"Tarifa!P3","v":"011"},{"$f":"Tarifa!Q3","v":"Nem évelő növény termesztése"}]
["tárgyi eszközök értékelésének módja:",null,null,null,{"$f":"IF(Tarifa!AB75=1,\"Új értéken\",\"Valós értéken\")","v":"Valós értéken"},"éves árbevétel: ",null,{"$f":"'1.telephely'!B10","v":0},"alkalmazottak száma:",null,{"$f":"'1.telephely'!B11","v":0}]
["alapbiztosítás - tűz és elemi károk, biztosított épületek üvegkárai"]
["biztosított vagyontárgyak, biztosítási összeg",null,null,null,null,null,"Kockázati osztály:",null,{"$f":"'1.telephely'!F24","v":3}]
["épület, építmény:",null,null,{"$f":"'1.telephely'!B19","v":0},"saját készletek:",{"$f":"'1.telephely'!B21","v":0},"idegen készletek:",null,{"$f":"'1.telephely'!B22","v":0},"készpénz:",{"$f":"'1.telephely'!B23","v":0}]
["egyéb tárgyi eszközök:",null,null,{"$f":"'1.telephely'!B20","v":0},"összesen",{"$f":"'1.telephely'!B24","v":0},null,null,null,"díj:",{"$f":"'1.telephely'!C24","v":0}]
["kiegészítő biztosítások"]
["Betöréses lopás és rablás biztosítás",null,null,null,"Vidéki kedvezmény:",null,{"$f":"'1.telephely'!E26","v":"-"},null,"Kockázati osztály:",null,{"$f":"'1.telephely'!F26","v":1}]
["egyéb tárgyi eszközök:",null,{"$f":"IF('1.telephely'!E20=FALSE,\" \",'1.telephely'!B20)","v":" "},null,"készletek (saját + idegen):",null,{"$f":"IF('1.telephely'!E21=FALSE,\" \",SUM('1.telephely'!B21,'1.telephely'!B22))","v":" "},null,"készpénz:",{"$f":"IF('1.telephely'!E23=FALSE,\" \",'1.telephely'!B23)","v":" "}]
[null,null,null,null,null,null,null,null,null,"díj:",{"$f":"IF('1.telephely'!C26>0,'1.telephely'!C26,\"Nem biztosított\")","v":"Nem biztosított"}]
["Irodai és kereskedelmi elektronikus berendezések, eszközök biztosítása"]
["biztosítási összeg:",null,null,{"$f":"IF('1.telephely'!E28=FALSE,\" \",'1.telephely'!B28)","v":" "},null,null,null,null,null,"díj:",{"$f":"IF('1.telephely'!C28>0,'1.telephely'!C28,\"Nem biztosított\")","v":"Nem biztosított"}]
["Üzemszünet biztosítás ",null,null,null,null,null,"Kockázati osztály:",null,{"$f":"'1.telephely'!F30","v":2}]
["éves árbevétel: ",null,null,{"$f":"'1.telephely'!B10","v":0},null,null,null,null,null,"díj:",{"$f":"IF('1.telephely'!C30>0,'1.telephely'!C30,\"Nem biztosított\")","v":"Nem biztosított"}]
["Szállítmány biztosítás "]
["biztosítási összeg:",null,null,{"$f":"IF('1.telephely'!E32=FALSE,\" \",'1.telephely'!B32)","v":" "},null,null,null,null,null,"díj:",{"$f":"IF('1.telephely'!C32>0,'1.telephely'!C32,\"Nem biztosított\")","v":"Nem biztosított"}]
["Vakolat károk biztosítása "]
["biztosítási összeg:",null,null,{"$f":"IF('1.telephely'!E34=FALSE,\" \",'1.telephely'!B19)","v":" "},null,null,null,null,null,"díj:",{"$f":"IF('1.telephely'!C34>0,'1.telephely'!C34,\"Nem biztosított\")","v":"Nem biztosított"}]
["Tetőbeázási károk biztosítása "]
["biztosítási összeg:",null,null,{"$f":"IF('1.telephely'!E36=FALSE,\" \",'1.telephely'!B19)","v":" "},null,null,null,null,null,"díj:",{"$f":"IF('1.telephely'!C36>0,'1.telephely'!C36,\"Nem biztosított\")","v":"Nem biztosított"}]
["Vandalizmus károk biztosítása"]
["biztosítási összeg:",null,null,{"$f":"IF('1.telephely'!E38=FALSE,\" \",'1.telephely'!B38)","v":" "},null,null,null,null,null,"díj:",{"$f":"IF('1.telephely'!C38>0,'1.telephely'!C38,\"Nem biztosított\")","v":"Nem biztosított"}]
["Különleges üvegek üvegtörés biztosítása"]
["biztosítási összeg:",null,null,{"$f":"IF('1.telephely'!E40=FALSE,\" \",'1.telephely'!B40)","v":" "},null,null,null,null,null,"díj:",{"$f":"IF('1.telephely'!C40>0,'1.telephely'!C40,\"Nem biztosított\")","v":"Nem biztosított"}]
["Általános és épülethasználói felelősségbiztosítás",null,null,null,null,null,"Kockázati osztály:",null,{"$f":"'1.telephely'!F42","v":2}]
["alkalmazottak száma (fő):",null,{"$f":"'1.telephely'!B11","v":0},null,"Kártérítési limit:",null,{"$f":"IF('1.telephely'!E42=FALSE,\" \",Tarifa!S26)","v":" "},null,null,"díj:",{"$f":"IF('1.telephely'!C42>0,'1.telephely'!C42,\"Nem biztosított\")","v":"Nem biztosított"}]
["Tanuló baleseti és felelősségbiztosítás",null,null,null,"Kockázati osztály (általános):",null,{"$f":"'1.telephely'!F43","v":2},"Kockázati osztály (munkáltatói):",null,null,{"$f":"'1.telephely'!G43","v":3}]
["tanulók létszáma (fő):",null,{"$f":"'1.telephely'!B43","v":0},null,"Kártérítési limit:",null,{"$f":"IF('1.telephely'!E43=FALSE,\" \",\"5 millió Ft\")","v":" "},null,null,"díj:",{"$f":"IF('1.telephely'!C43>0,'1.telephely'!C43,\"Nem biztosított\")","v":"Nem biztosított"}]
["Munkáltatói felelősségbiztosítás",null,null,null,null,null,"Kockázati osztály:",null,{"$f":"'1.telephely'!F44","v":3}]
["alkalmazottak száma (fő):",null,{"$f":"'1.telephely'!B11","v":0},null,"Kártérítési limit:",null,{"$f":"IF('1.telephely'!E44=FALSE,\" \",Tarifa!S37)","v":" "},null,null,"díj:",{"$f":"IF('1.telephely'!C44>0,'1.telephely'!C44,\"Nem biztosított\")","v":"Nem biztosított"}]
["Termékfelelősség biztosítás ",null,null,null,null,null,"Kockázati osztály:",null,{"$f":"'1.telephely'!F45","v":1}]
["éves forgalom:",null,null,{"$f":"'1.telephely'!B12","v":0},"Kártérítési limit:",null,{"$f":"IF('1.telephely'!E45=FALSE,\" \",Tarifa!S48)","v":" "},null,null,"díj:",{"$f":"IF('1.telephely'!C45>0,'1.telephely'!C45,\"Nem biztosított\")","v":"Nem biztosított"}]
["Bérlői felelősségbiztosítás ",null,null,null,null,null,"Kockázati osztály:",null,{"$f":"'1.telephely'!F46","v":2}]
["éves bérleti díj:",null,null,{"$f":"'1.telephely'!B13","v":0},"Kártérítési limit:",null,{"$f":"IF('1.telephely'!E46=FALSE,\" \",Tarifa!S60)","v":" "},null,null,"díj:",{"$f":"IF('1.telephely'!C46>0,'1.telephely'!C46,\"Nem biztosított\")","v":"Nem biztosított"}]
["Szolgáltatói felelősségbiztosítás ",null,null,null,null,null,"Kockázati osztály:",null,{"$f":"'1.telephely'!F47","v":1}]
["éves forgalom:",null,null,{"$f":"'1.telephely'!B12","v":0},"Kártérítési limit:",null,{"$f":"IF('1.telephely'!E47=FALSE,\" \",Tarifa!S72)","v":" "},null,null,"díj:",{"$f":"IF('1.telephely'!C47>0,'1.telephely'!C47,\"Nem biztosított\")","v":"Nem biztosított"}]
["Szálloda üzemeltetői, szállásadói felelősségbiztosítása"]
[null,null,null,null,"Kártérítési limit:",null,{"$f":"IF('1.telephely'!E48=FALSE,\" \",Tarifa!AA62)","v":" "},null,null,"díj:",{"$f":"IF('1.telephely'!C48>0,'1.telephely'!C48,\"Nem biztosított\")","v":"Nem biztosított"}]
["Gépjárműjavítók felelősségbiztosítása"]
["éves forgalom:",null,null,{"$f":"'1.telephely'!B12","v":0},"Kártérítési limit:",null,{"$f":"IF('1.telephely'!E49=FALSE,\" \",Tarifa!AA53)","v":" "},null,null,"díj:",{"$f":"IF('1.telephely'!C49>0,'1.telephely'!C49,\"Nem biztosított\")","v":"Nem biztosított"}]
["Gépjármű-eredetiségvizsgálatot végzők felelősségbiztosítása"]
[null,null,null,null,"Kártérítési limit:",null,{"$f":"IF('1.telephely'!E50=FALSE,\" \",\"5 millió Ft\")","v":" "},null,null,"díj:",{"$f":"IF('1.telephely'!C50>0,'1.telephely'!C50,\"Nem biztosított\")","v":"Nem biztosított"}]
["Szolgáltatás tárgyában okozott károk biztosítása"]
[null,null,null,null,"Kártérítési limit:",null,{"$f":"IF('1.telephely'!E51=FALSE,\" \",\"5 millió Ft\")","v":" "},null,null,"díj:",{"$f":"IF('1.telephely'!C51>0,'1.telephely'!C51,\"Nem biztosított\")","v":"Nem biztosított"}]
["Bérbeadói felelősségbiztosítás"]
["bérbeadásból származó forgalom:",null,null,{"$f":"'1.telephely'!B14","v":0},"Kártérítési limit:",null,{"$f":"IF('1.telephely'!E52=FALSE,\" \",Tarifa!S84)","v":" "},null,null,"díj:",{"$f":"IF('1.telephely'!C52>0,'1.telephely'!C52,\"Nem biztosított\")","v":"Nem biztosított"}]
["Környezetszennyezési felelősségbiztosítás"]
["éves forgalom:",null,null,{"$f":"'1.telephely'!B12","v":0},"Kártérítési limit:",null,{"$f":"IF('1.telephely'!E53=FALSE,\" \",Tarifa!S96)","v":" "},null,null,"díj:",{"$f":"IF('1.telephely'!C53>0,'1.telephely'!C53,\"Nem biztosított\")","v":"Nem biztosított"}]
[]
[null,null,null,null,null,"éves biztosítási díj a 1. telephelyre:",null,null,null,null,{"$f":"'1.telephely'!C55","v":0}]
[]
[]
[]
["Kelt:",null,null,null,null,null,null,"Szerződő (szervezet képviseletére jogosult) /"]
[null,null,null,null,null,null,null,"Biztosított aláírása"]
[]
[]
[]
["telephelyi adatközlő és díjszámítás K&H vállalkozói biztosításhoz",null,null,null,null,null,null,null,null,"K&H Biztosító Zrt."]
[null,null,"adatközlő sorszáma",null,{"$f":"IF(AND('1.telephely'!C55>0,'2.telephely'!C52>0,'3.telephely'!C52=0,'4.telephely'!C52=0,'5.telephely'!C52=0),\"2/2\",IF(AND('1.telephely'!C55>0,'2.telephely'!C52>0,'3.telephely'!C52>0,'4.telephely'!C52=0,'5.telephely'!C52=0),\"2/3\",IF(AND('1.telephely'!C55>0,'2.telephely'!C52>0,'3.telephely'!C52>0,'4.telephely'!C52>0,'5.telephely'!C52=0),\"2/4\",IF(AND('1.telephely'!C55>0,'2.telephely'!C52>0,'3.telephely'!C52>0,'4.telephely'!C52>0,'5.telephely'!C52>0),\"2/5\",0))))","v":0},null,null,null,null,"1095 Budapest, Lechner Ödön fasor 9."]
[]
["telephely megnevezése:",null,{"$f":"'2.telephely'!$B$1","v":0}]
["telephely és kockázatviselés helye: ",null,null,null,{"$f":"'2.telephely'!$F$2","v":0},{"$f":"'2.telephely'!F3","v":0}]
["tevékenység kódja és megnevezése:",null,null,null,{"$f":"Tarifa!P4","v":"011"},{"$f":"Tarifa!Q4","v":"Nem évelő növény termesztése"}]
["tárgyi eszközök értékelésének módja:",null,null,null,{"$f":"IF(Tarifa!AB76=1,\"Új értéken\",\"Valós értéken\")","v":"Új értéken"},"éves árbevétel: ",null,{"$f":"'2.telephely'!$B$7","v":0},"alkalmazottak száma:",null,{"$f":"'2.telephely'!$B$8","v":0}]
["alapbiztosítás - tűz és elemi károk, biztosított épületek üvegkárai"]
["biztosított vagyontárgyak, biztosítási összeg",null,null,null,null,null,"Kockázati osztály:",null,{"$f":"'2.telephely'!$F$21","v":3}]
["épület, építmény:",null,null,{"$f":"'2.telephely'!$B$16","v":0},"saját készletek:",{"$f":"'2.telephely'!$B$18","v":0},"idegen készletek:",null,{"$f":"'2.telephely'!$B$19","v":0},"készpénz:",{"$f":"'2.telephely'!$B$20","v":0}]
["egyéb tárgyi eszközök:",null,null,{"$f":"'2.telephely'!$B$17","v":0},"összesen",{"$f":"'2.telephely'!$B$21","v":0},null,null,null,"díj:",{"$f":"'2.telephely'!$C$21","v":0}]
["kiegészítő biztosítások"]
["Betöréses lopás és rablás biztosítás",null,null,null,"Vidéki kedvezmény:",null,{"$f":"'2.telephely'!E23","v":"-"},null,"Kockázati osztály:",null,{"$f":"'2.telephely'!$F$23","v":1}]
["egyéb tárgyi eszközök:",null,null,{"$f":"IF('2.telephely'!$E$17=FALSE,\" \",'2.telephely'!$B$17)","v":" "},"készletek (saját + idegen):",null,{"$f":"IF('2.telephely'!$E$18=FALSE,\" \",'2.telephely'!$B$18+'2.telephely'!$B$19)","v":" "},null,"készpénz:",{"$f":"IF('2.telephely'!E20=FALSE,\" \",'2.telephely'!$B$20)","v":" "}]
[null,null,null,null,null,null,null,null,null,"díj:",{"$f":"IF('2.telephely'!$C$23>0,'2.telephely'!$C$23,\"Nem biztosított\")","v":"Nem biztosított"}]
["Irodai és kereskedelmi elektronikus berendezések, eszközök biztosítása"]
["biztosítási összeg:",null,null,{"$f":"IF('2.telephely'!$E$25=FALSE,\" \",'2.telephely'!$B$25)","v":" "},null,null,null,null,null,"díj:",{"$f":"IF('2.telephely'!$C$25>0,'2.telephely'!$C$25,\"Nem biztosított\")","v":"Nem biztosított"}]
["Üzemszünet biztosítás ",null,null,null,null,null,"Kockázati osztály:",null,{"$f":"'2.telephely'!$F$27","v":2}]
["éves árbevétel: ",null,null,{"$f":"'2.telephely'!$B$7","v":0},null,null,null,null,null,"díj:",{"$f":"IF('2.telephely'!$C$27>0,'2.telephely'!$C$27,\"Nem biztosított\")","v":"Nem biztosított"}]
["Szállítmány biztosítás "]
["biztosítási összeg:",null,null,{"$f":"IF('2.telephely'!$E$29=FALSE,\" \",'2.telephely'!$B$29)","v":" "},null,null,null,null,null,"díj:",{"$f":"IF('2.telephely'!$C$29>0,'2.telephely'!$C$29,\"Nem biztosított\")","v":"Nem biztosított"}]
["Vakolat károk biztosítása "]
["biztosítási összeg:",null,null,{"$f":"IF('2.telephely'!$E$31=FALSE,\" \",'2.telephely'!$B$16)","v":" "},null,null,null,null,null,"díj:",{"$f":"IF('2.telephely'!$C$31>0,'2.telephely'!$C$31,\"Nem biztosított\")","v":"Nem biztosított"}]
["Tetőbeázási károk biztosítása "]
["biztosítási összeg:",null,null,{"$f":"IF('2.telephely'!$E$33=FALSE,\" \",'2.telephely'!$B$16)","v":" "},null,null,null,null,null,"díj:",{"$f":"IF('2.telephely'!$C$33>0,'2.telephely'!$C$33,\"Nem biztosított\")","v":"Nem biztosított"}]
["Vandalizmus károk biztosítása"]
["biztosítási összeg:",null,null,{"$f":"IF('2.telephely'!$E$35=FALSE,\" \",'2.telephely'!$B$35)","v":" "},null,null,null,null,null,"díj:",{"$f":"IF('2.telephely'!$C$35>0,'2.telephely'!$C$35,\"Nembiztosított\")","v":"Nembiztosított"}]
["Különleges üvegek üvegtörés biztosítása"]
["biztosítási összeg:",null,null,{"$f":"IF('2.telephely'!$E$37=FALSE,\" \",'2.telephely'!$B$37)","v":" "},null,null,null,null,null,"díj:",{"$f":"IF('2.telephely'!$C$37>0,'2.telephely'!$C$37,\"Nem biztosított\")","v":"Nem biztosított"}]
["Általános és épülethasználói felelősségbiztosítás",null,null,null,null,null,"Kockázati osztály:",null,{"$f":"'2.telephely'!$F$39","v":2}]
["alkalmazottak száma (fő):",null,{"$f":"'2.telephely'!$B$8","v":0},null,"Kártérítési limit:",null,{"$f":"IF('2.telephely'!$E$39=FALSE,\" \",Tarifa!T26)","v":" "},null,null,"díj:",{"$f":"IF('2.telephely'!$C$39>0,'2.telephely'!$C$39,\"Nem biztosított\")","v":"Nem biztosított"}]
["Tanuló baleseti és felelősségbiztosítás",null,null,null,"Kockázati osztály (általános):",null,{"$f":"'2.telephely'!$F$40","v":2},"Kockázati osztály (munkáltatói):",null,null,{"$f":"'2.telephely'!$G$40","v":3}]
["tanulók létszáma (fő):",null,{"$f":"'2.telephely'!$B$40","v":0},null,"Kártérítési limit:",null,{"$f":"IF('2.telephely'!$E$40=FALSE,\" \",\"5 millió Ft\")","v":" "},null,null,"díj:",{"$f":"IF('2.telephely'!$C$40>0,'2.telephely'!$C$40,\"Nem biztosított\")","v":"Nem biztosított"}]
["Munkáltatói felelősségbiztosítás",null,null,null,null,null,"Kockázati osztály:",null,{"$f":"'2.telephely'!$F$41","v":3}]
["alkalmazottak száma (fő):",null,{"$f":"'2.telephely'!$B$8","v":0},null,"Kártérítési limit:",null,{"$f":"IF('2.telephely'!$E$41=FALSE,\" \",Tarifa!T37)","v":" "},null,null,"díj:",{"$f":"IF('2.telephely'!$C$41>0,'2.telephely'!$C$41,\"Nem biztosított\")","v":"Nem biztosított"}]
["Termékfelelősség biztosítás ",null,null,null,null,null,"Kockázati osztály:",null,{"$f":"'2.telephely'!$F$42","v":1}]
["éves forgalom:",null,null,{"$f":"'2.telephely'!$B$9","v":0},"Kártérítési limit:",null,{"$f":"IF('2.telephely'!$E$42=FALSE,\" \",Tarifa!T48)","v":" "},null,null,"díj:",{"$f":"IF('2.telephely'!$C$42>0,'2.telephely'!$C$42,\"Nem biztosított\")","v":"Nem biztosított"}]
["Bérlői felelősségbiztosítás ",null,null,null,null,null,"Kockázati osztály:",null,{"$f":"'2.telephely'!$F$43","v":2}]
["éves bérleti díj:",null,null,{"$f":"'2.telephely'!$B$10","v":0},"Kártérítési limit:",null,{"$f":"IF('2.telephely'!$E$43=FALSE,\" \",Tarifa!T60)","v":" "},null,null,"díj:",{"$f":"IF('2.telephely'!$C$43>0,'2.telephely'!$C$43,\"Nem biztosított\")","v":"Nem biztosított"}]
["Szolgáltatói felelősségbiztosítás ",null,null,null,null,null,"Kockázati osztály:",null,{"$f":"'2.telephely'!$F$44","v":1}]
["éves forgalom:",null,null,{"$f":"'2.telephely'!$B$9","v":0},"Kártérítési limit:",null,{"$f":"IF('2.telephely'!$E$44=FALSE,\" \",Tarifa!T72)","v":" "},null,null,"díj:",{"$f":"IF('2.telephely'!$C$44>0,'2.telephely'!$C$44,\"Nem biztosított\")","v":"Nem biztosított"}]
["Szálloda üzemeltetői, szállásadói felelősségbiztosítása"]
[null,null,null,null,"Kártérítési limit:",null,{"$f":"IF('2.telephely'!$E$45=FALSE,\" \",Tarifa!AB62)","v":" "},null,null,"díj:",{"$f":"IF('2.telephely'!$C$45>0,'2.telephely'!$C$45,\"Nem biztosított\")","v":"Nem biztosított"}]
["Gépjárműjavítók felelősségbiztosítása"]
["éves forgalom:",null,null,{"$f":"'2.telephely'!$B$9","v":0},"Kártérítési limit:",null,{"$f":"IF('2.telephely'!$E$46=FALSE,\" \",Tarifa!AB53)","v":" "},null,null,"díj:",{"$f":"IF('2.telephely'!$C$46>0,'2.telephely'!$C$46,\"Nem biztosított\")","v":"Nem biztosított"}]
["Gépjármű-eredetiségvizsgálatot végzők felelősségbiztosítása"]
[null,null,null,null,"Kártérítési limit:",null,{"$f":"IF('2.telephely'!$E$47=FALSE,\" \",\"5 millió Ft\")","v":" "},null,null,"díj:",{"$f":"IF('2.telephely'!$C$47>0,'2.telephely'!$C$47,\"Nem biztosított\")","v":"Nem biztosított"}]
["Szolgáltatás tárgyában okozott károk biztosítása"]
[null,null,null,null,"Kártérítési limit:",null,{"$f":"IF('2.telephely'!$E$48=FALSE,\" \",\"5 millió Ft\")","v":" "},null,null,"díj:",{"$f":"IF('2.telephely'!$C$48>0,'2.telephely'!$C$48,\"Nem biztosított\")","v":"Nem biztosított"}]
["Bérbeadói felelősségbiztosítás"]
["bérbeadásból származó forgalom:",null,null,{"$f":"'2.telephely'!$B$11","v":0},"Kártérítési limit:",null,{"$f":"IF('2.telephely'!$E$49=FALSE,\" \",Tarifa!T84)","v":" "},null,null,"díj:",{"$f":"IF('2.telephely'!$C$49>0,'2.telephely'!$C$49,\"Nem biztosított\")","v":"Nem biztosított"}]
["Környezetszennyezési felelősségbiztosítás"]
["éves forgalom:",null,null,{"$f":"'2.telephely'!$B$9","v":0},"Kártérítési limit:",null,{"$f":"IF('2.telephely'!$E$50=FALSE,\" \",Tarifa!T96)","v":" "},null,null,"díj:",{"$f":"IF('2.telephely'!$C$50>0,'2.telephely'!$C$50,\"Nem biztosított\")","v":"Nem biztosított"}]
[]
[]
[]
[null,null,null,null,null,"éves biztosítási díj a 2. telephelyre:",null,null,null,null,{"$f":"'2.telephely'!$C$52","v":0}]
[]
[]
[]
[]
["Kelt:",null,null,null,null,null,null,"Szerződő (szervezet képviseletére jogosult) /"]
[null,null,null,null,null,null,null,"Biztosított aláírása"]
[]
[]
[]
["telephelyi adatközlő és díjszámítás K&H vállalkozói biztosításhoz",null,null,null,null,null,null,null,null,"K&H Biztosító Zrt."]
[null,null,"adatközlő sorszáma",null,{"$f":"IF(AND('1.telephely'!C55>0,'2.telephely'!C52>0,'3.telephely'!C52>0,'4.telephely'!C52=0,'5.telephely'!C52=0),\"3/3\",IF(AND('1.telephely'!C55>0,'2.telephely'!C52>0,'3.telephely'!C52>0,'4.telephely'!C52>0,'5.telephely'!C52=0),\"3/4\",IF(AND('1.telephely'!C55>0,'2.telephely'!C52>0,'3.telephely'!C52>0,'4.telephely'!C52>0,'5.telephely'!C52>0),\"3/5\",0)))","v":0},null,null,null,null,"1095 Budapest, Lechner Ödön fasor 9."]
[]
["telephely megnevezése:",null,{"$f":"'3.telephely'!$B$1","v":0}]
["telephely és kockázatviselés helye: ",null,null,null,{"$f":"'3.telephely'!$F$2","v":0},{"$f":"'3.telephely'!$E$3:$F$3","v":0}]
["tevékenység kódja és megnevezése:",null,null,null,{"$f":"Tarifa!P5","v":"011"},{"$f":"Tarifa!Q5","v":"Nem évelő növény termesztése"}]
["tárgyi eszközök értékelésének módja:",null,null,null,{"$f":"IF(Tarifa!AB77=1,\"Új értéken\",\"Valós értéken\")","v":"Valós értéken"},"éves árbevétel: ",null,{"$f":"'3.telephely'!$B$7","v":0},"alkalmazottak száma:",null,{"$f":"'3.telephely'!$B$8","v":0}]
["alapbiztosítás - tűz és elemi károk, biztosított épületek üvegkárai"]
["biztosított vagyontárgyak, biztosítási összeg",null,null,null,null,null,"Kockázati osztály:",null,{"$f":"'3.telephely'!$F$21","v":3}]
["épület, építmény:",null,null,{"$f":"'3.telephely'!$B$16","v":0},"saját készletek:",{"$f":"'3.telephely'!$B$18","v":0},"idegen készletek:",null,{"$f":"'3.telephely'!$B$19","v":0},"készpénz:",{"$f":"'3.telephely'!$B$20","v":0}]
["egyéb tárgyi eszközök:",null,null,{"$f":"'3.telephely'!$B$17","v":0},"összesen",{"$f":"'3.telephely'!$B$21","v":0},null,null,"díj:",{"$f":"'3.telephely'!$C$21","v":0}]
["kiegészítő biztosítások"]
["Betöréses lopás és rablás biztosítás",null,null,null,"Vidéki kedvezmény:",null,{"$f":"'3.telephely'!$E$23","v":"-"},null,"Kockázati osztály:",null,{"$f":"'3.telephely'!$F$23","v":1}]
["egyéb tárgyi eszközök:",null,{"$f":"IF('3.telephely'!$E$17=FALSE,\" \",'3.telephely'!$B$17)","v":" "},null,"készletek (saját + idegen):",null,{"$f":"IF('3.telephely'!$E$18=FALSE,\" \",'3.telephely'!$B$18+'3.telephely'!$B$19)","v":" "},null,"készpénz:",{"$f":"IF('3.telephely'!E20=FALSE,\" \",'3.telephely'!$B$20)","v":" "}]
[null,null,null,null,null,null,null,null,null,"díj:",{"$f":"IF('3.telephely'!$C$23>0,'3.telephely'!$C$23,\"Nem biztosított\")","v":"Nem biztosított"}]
["Irodai és kereskedelmi elektronikus berendezések, eszközök biztosítása"]
["biztosítási összeg:",null,null,{"$f":"IF('3.telephely'!$E$25=FALSE,\" \",'3.telephely'!$B$25)","v":" "},null,null,null,null,null,"díj:",{"$f":"IF('3.telephely'!$C$25>0,'3.telephely'!$C$25,\"Nem biztosított\")","v":"Nem biztosított"}]
["Üzemszünet biztosítás ",null,null,null,null,null,"Kockázati osztály:",null,{"$f":"'3.telephely'!$F$27","v":2}]
["éves árbevétel: ",null,null,{"$f":"'3.telephely'!$B$7","v":0},null,null,null,null,null,"díj:",{"$f":"IF('3.telephely'!$C$27>0,'3.telephely'!$C$27,\"Nem biztosított\")","v":"Nem biztosított"}]
["Szállítmány biztosítás "]
["biztosítási összeg:",null,null,{"$f":"IF('3.telephely'!$E$29=FALSE,\" \",'3.telephely'!$B$29)","v":" "},null,null,null,null,null,"díj:",{"$f":"IF('3.telephely'!$C$29>0,'3.telephely'!$C$29,\"Nem biztosított\")","v":"Nem biztosított"}]
["Vakolat károk biztosítása "]
["biztosítási összeg:",null,null,{"$f":"IF('3.telephely'!$E$31=FALSE,\" \",'3.telephely'!$B$16)","v":" "},null,null,null,null,null,"díj:",{"$f":"IF('3.telephely'!$C$31>0,'3.telephely'!$C$31,\"Nem biztosított\")","v":"Nem biztosított"}]
["Tetőbeázási károk biztosítása "]
["biztosítási összeg:",null,null,{"$f":"IF('3.telephely'!$E$33=FALSE,\" \",'3.telephely'!$B$16)","v":" "},null,null,null,null,null,"díj:",{"$f":"IF('3.telephely'!$C$33>0,'3.telephely'!$C$33,\"Nem biztosított\")","v":"Nem biztosított"}]
["Vandalizmus károk biztosítása"]
["biztosítási összeg:",null,null,{"$f":"IF('3.telephely'!$E$35=FALSE,\" \",'3.telephely'!$B$35)","v":" "},null,null,null,null,null,"díj:",{"$f":"IF('3.telephely'!$C$35>0,'3.telephely'!$C$35,\"Nembiztosított\")","v":"Nembiztosított"}]
["Különleges üvegek üvegtörés biztosítása"]
["biztosítási összeg:",null,null,{"$f":"IF('3.telephely'!$E$37=FALSE,\" \",'3.telephely'!$B$37)","v":" "},null,null,null,null,null,"díj:",{"$f":"IF('3.telephely'!$C$37>0,'3.telephely'!$C$37,\"Nem biztosított\")","v":"Nem biztosított"}]
["Általános és épülethasználói felelősségbiztosítás",null,null,null,null,null,"Kockázati osztály:",null,{"$f":"'3.telephely'!$F$39","v":2}]
["alkalmazottak száma (fő):",null,{"$f":"'3.telephely'!$B$8","v":0},null,"Kártérítési limit:",null,{"$f":"IF('3.telephely'!$E$39=FALSE,\" \",Tarifa!U26)","v":" "},null,null,"díj:",{"$f":"IF('3.telephely'!$C$39>0,'3.telephely'!$C$39,\"Nem biztosított\")","v":"Nem biztosított"}]
["Tanuló baleseti és felelősségbiztosítás",null,null,"Kockázati osztály (általános):",null,null,{"$f":"'3.telephely'!$F$40","v":2},"Kockázati osztály (munkáltatói):",null,null,{"$f":"'3.telephely'!$G$40","v":3}]
["tanulók létszáma (fő):",null,{"$f":"'3.telephely'!$B$40","v":0},null,"Kártérítési limit:",null,{"$f":"IF('3.telephely'!$E$40=FALSE,\" \",\"5 millió Ft\")","v":" "},null,null,"díj:",{"$f":"IF('3.telephely'!$C$40>0,'3.telephely'!$C$40,\"Nem biztosított\")","v":"Nem biztosított"}]
["Munkáltatói felelősségbiztosítás",null,null,null,null,null,"Kockázati osztály:",null,{"$f":"'3.telephely'!$F$41","v":3}]
["alkalmazottak száma (fő):",null,{"$f":"'3.telephely'!$B$8","v":0},null,"Kártérítési limit:",null,{"$f":"IF('3.telephely'!$E$41=FALSE,\" \",Tarifa!U37)","v":" "},null,null,"díj:",{"$f":"IF('3.telephely'!$C$41>0,'3.telephely'!$C$41,\"Nem biztosított\")","v":"Nem biztosított"}]
["Termékfelelősség biztosítás ",null,null,null,null,null,"Kockázati osztály:",null,{"$f":"'3.telephely'!$F$42","v":1}]
["éves forgalom:",null,null,{"$f":"'3.telephely'!$B$9","v":0},"Kártérítési limit:",null,{"$f":"IF('3.telephely'!$E$42=FALSE,\" \",Tarifa!U48)","v":" "},null,null,"díj:",{"$f":"IF('3.telephely'!$C$42>0,'3.telephely'!$C$42,\"Nem biztosított\")","v":"Nem biztosított"}]
["Bérlői felelősségbiztosítás ",null,null,null,null,null,"Kockázati osztály:",null,{"$f":"'3.telephely'!$F$43","v":2}]
["éves bérleti díj:",null,null,{"$f":"'3.telephely'!$B$10","v":0},"Kártérítési limit:",null,{"$f":"IF('3.telephely'!$E$43=FALSE,\" \",Tarifa!U60)","v":" "},null,null,"díj:",{"$f":"IF('3.telephely'!$C$43>0,'3.telephely'!$C$43,\"Nem biztosított\")","v":"Nem biztosított"}]
["Szolgáltatói felelősségbiztosítás ",null,null,null,null,null,"Kockázati osztály:",null,{"$f":"'3.telephely'!$F$44","v":1}]
["éves forgalom:",null,null,{"$f":"'3.telephely'!$B$9","v":0},"Kártérítési limit:",null,{"$f":"IF('3.telephely'!$E$44=FALSE,\" \",Tarifa!U72)","v":" "},null,null,"díj:",{"$f":"IF('3.telephely'!$C$44>0,'3.telephely'!$C$44,\"Nem biztosított\")","v":"Nem biztosított"}]
["Szálloda üzemeltetői, szállásadói felelősségbiztosítása"]
[null,null,null,null,"Kártérítési limit:",null,{"$f":"IF('3.telephely'!$E$45=FALSE,\" \",Tarifa!AC62)","v":" "},null,null,"díj:",{"$f":"IF('3.telephely'!$C$45>0,'3.telephely'!$C$45,\"Nem biztosított\")","v":"Nem biztosított"}]
["Gépjárműjavítók felelősségbiztosítása"]
["éves forgalom:",null,null,{"$f":"'3.telephely'!$B$9","v":0},"Kártérítési limit:",null,{"$f":"IF('3.telephely'!$E$46=FALSE,\" \",Tarifa!AC53)","v":" "},null,null,"díj:",{"$f":"IF('3.telephely'!$C$46>0,'3.telephely'!$C$46,\"Nem biztosított\")","v":"Nem biztosított"}]
["Gépjármű-eredetiségvizsgálatot végzők felelősségbiztosítása"]
[null,null,null,null,"Kártérítési limit:",null,{"$f":"IF('3.telephely'!$E$48=FALSE,\" \",\"5 millió Ft\")","v":" "},null,null,"díj:",{"$f":"IF('3.telephely'!$C$47>0,'3.telephely'!$C$47,\"Nem biztosított\")","v":"Nem biztosított"}]
["Szolgáltatás tárgyában okozott károk biztosítása"]
[null,null,null,null,"Kártérítési limit:",null,{"$f":"IF('3.telephely'!$E$48=FALSE,\" \",\"5 millió Ft\")","v":" "},null,null,"díj:",{"$f":"IF('3.telephely'!$C$48>0,'3.telephely'!$C$48,\"Nem biztosított\")","v":"Nem biztosított"}]
["Bérbeadói felelősségbiztosítás"]
["bérbeadásból származó forgalom:",null,null,{"$f":"'3.telephely'!$B$11","v":0},"Kártérítési limit:",null,{"$f":"IF('3.telephely'!$E$49=FALSE,\" \",Tarifa!U84)","v":" "},null,null,"díj:",{"$f":"IF('3.telephely'!$C$49>0,'3.telephely'!$C$49,\"Nem biztosított\")","v":"Nem biztosított"}]
["Környezetszennyezési felelősségbiztosítás"]
["éves forgalom:",null,null,{"$f":"'3.telephely'!$B$9","v":0},"Kártérítési limit:",null,{"$f":"IF('3.telephely'!$E$50=FALSE,\" \",Tarifa!U96)","v":" "},null,null,"díj:",{"$f":"IF('3.telephely'!$C$50>0,'3.telephely'!$C$50,\"Nem biztosított\")","v":"Nem biztosított"}]
[]
[]
[]
[null,null,null,null,null,"éves biztosítási díj a 3. telephelyre:",null,null,null,null,{"$f":"'3.telephely'!$C$52","v":0}]
[]
[]
[]
[]
["Kelt:",null,null,null,null,null,null,"Szerződő (szervezet képviseletére jogosult) /"]
[null,null,null,null,null,null,null,"Biztosított aláírása"]
[]
[]
[]
["telephelyi adatközlő és díjszámítás K&H vállalkozói biztosításhoz",null,null,null,null,null,null,null,null,"K&H Biztosító Zrt."]
[null,null,"adatközlő sorszáma",null,{"$f":"IF(AND('1.telephely'!C55>0,'2.telephely'!C52>0,'3.telephely'!C52>0,'4.telephely'!C52>0,'5.telephely'!C52=0),\"4/4\",IF(AND('1.telephely'!C55>0,'2.telephely'!C52>0,'3.telephely'!C52>0,'4.telephely'!C52>0,'5.telephely'!C52>0),\"4/5\",0))","v":0},null,null,null,null,"1095 Budapest, Lechner Ödön fasor 9."]
[]
["telephely megnevezése:",null,{"$f":"'4.telephely'!$B$1","v":0}]
["telephely és kockázatviselés helye: ",null,null,null,{"$f":"'4.telephely'!$F$2","v":0},{"$f":"'4.telephely'!F3","v":0}]
["tevékenység kódja és megnevezése:",null,null,null,{"$f":"Tarifa!P6","v":"011"},{"$f":"Tarifa!Q6","v":"Nem évelő növény termesztése"}]
["tárgyi eszközök értékelésének módja:",null,null,null,{"$f":"IF(Tarifa!AB78=1,\"Új értéken\",\"Valós értéken\")","v":"Valós értéken"},"éves árbevétel: ",null,{"$f":"'4.telephely'!$B$7","v":0},"alkalmazottak száma:",null,{"$f":"'4.telephely'!$B$8","v":0}]
["alapbiztosítás - tűz és elemi károk, biztosított épületek üvegkárai"]
["biztosított vagyontárgyak, biztosítási összeg",null,null,null,null,null,"Kockázati osztály:",null,{"$f":"'4.telephely'!$F$21","v":3}]
["épület, építmény:",null,null,{"$f":"'4.telephely'!$B$16","v":0},"saját készletek:",{"$f":"'4.telephely'!$B$18","v":0},"idegen készletek:",null,{"$f":"'4.telephely'!$B$19","v":0},"készpénz:",{"$f":"'4.telephely'!$B$20","v":0}]
["egyéb tárgyi eszközök:",null,null,{"$f":"'4.telephely'!$B$17","v":0},"összesen",{"$f":"'4.telephely'!$B$21","v":0},null,null,null,"díj:",{"$f":"'4.telephely'!$C$21","v":0}]
["kiegészítő biztosítások"]
["Betöréses lopás és rablás biztosítás",null,null,null,"Vidéki kedvezmény:",null,{"$f":"'4.telephely'!$E$23","v":"-"},null,"Kockázati osztály:",null,{"$f":"'4.telephely'!$F$23","v":1}]
["egyéb tárgyi eszközök:",null,null,{"$f":"IF('4.telephely'!$E$17=FALSE,\" \",'4.telephely'!$B$17)","v":" "},"készletek (saját + idegen):",null,{"$f":"IF('4.telephely'!$E$18=FALSE,\" \",'4.telephely'!$B$18+'4.telephely'!$B$19)","v":" "},null,"készpénz:",{"$f":"IF('4.telephely'!E20=FALSE,\" \",'4.telephely'!$B$20)","v":" "}]
[null,null,null,null,null,null,null,null,null,"díj:",{"$f":"IF('4.telephely'!$C$23>0,'4.telephely'!$C$23,\"Nem biztosított\")","v":"Nem biztosított"}]
["Irodai és kereskedelmi elektronikus berendezések, eszközök biztosítása"]
["biztosítási összeg:",null,null,{"$f":"IF('4.telephely'!$E$25=FALSE,\" \",'4.telephely'!$B$25)","v":" "},null,null,null,null,null,"díj:",{"$f":"IF('4.telephely'!$C$25>0,'4.telephely'!$C$25,\"Nem biztosított\")","v":"Nem biztosított"}]
["Üzemszünet biztosítás ",null,null,null,null,null,"Kockázati osztály:",null,{"$f":"'4.telephely'!$F$27","v":2}]
["éves árbevétel: ",null,null,{"$f":"'4.telephely'!$B$7","v":0},null,null,null,null,null,"díj:",{"$f":"IF('4.telephely'!$C$27>0,'4.telephely'!$C$27,\"Nem biztosított\")","v":"Nem biztosított"}]
["Szállítmány biztosítás "]
["biztosítási összeg:",null,null,{"$f":"IF('4.telephely'!$E$29=FALSE,\" \",'4.telephely'!$B$29)","v":" "},null,null,null,null,null,"díj:",{"$f":"IF('4.telephely'!$C$29>0,'4.telephely'!$C$29,\"Nem biztosított\")","v":"Nem biztosított"}]
["Vakolat károk biztosítása "]
["biztosítási összeg:",null,null,{"$f":"IF('4.telephely'!$E$31=FALSE,\" \",'4.telephely'!$B$16)","v":" "},null,null,null,null,null,"díj:",{"$f":"IF('4.telephely'!$C$31>0,'4.telephely'!$C$31,\"Nem biztosított\")","v":"Nem biztosított"}]
["Tetőbeázási károk biztosítása "]
["biztosítási összeg:",null,null,{"$f":"IF('4.telephely'!$E$33=FALSE,\" \",'4.telephely'!$B$16)","v":" "},null,null,null,null,null,"díj:",{"$f":"IF('4.telephely'!$C$33>0,'4.telephely'!$C$33,\"Nem biztosított\")","v":"Nem biztosított"}]
["Vandalizmus károk biztosítása"]
["biztosítási összeg:",null,null,{"$f":"IF('4.telephely'!$E$35=FALSE,\" \",'4.telephely'!$B$35)","v":" "},null,null,null,null,null,"díj:",{"$f":"IF('4.telephely'!$C$35>0,'4.telephely'!$C$35,\"Nembiztosított\")","v":"Nembiztosított"}]
["Különleges üvegek üvegtörés biztosítása"]
["biztosítási összeg:",null,null,{"$f":"IF('4.telephely'!$E$37=FALSE,\" \",'4.telephely'!$B$37)","v":" "},null,null,null,null,null,"díj:",{"$f":"IF('4.telephely'!$C$37>0,'4.telephely'!$C$37,\"Nem biztosított\")","v":"Nem biztosított"}]
["Általános és épülethasználói felelősségbiztosítás",null,null,null,null,null,"Kockázati osztály:",null,{"$f":"'4.telephely'!$F$39","v":2}]
["alkalmazottak száma (fő):",null,{"$f":"'4.telephely'!$B$8","v":0},null,"Kártérítési limit:",null,{"$f":"IF('4.telephely'!$E$39=FALSE,\" \",Tarifa!V26)","v":" "},null,null,"díj:",{"$f":"IF('4.telephely'!$C$39>0,'4.telephely'!$C$39,\"Nem biztosított\")","v":"Nem biztosított"}]
["Tanuló baleseti és felelősségbiztosítás",null,null,null,"Kockázati osztály (általános):",null,{"$f":"'4.telephely'!$F$40","v":2},"Kockázati osztály (munkáltatói):",null,null,{"$f":"'4.telephely'!$G$40","v":3}]
["tanulók létszáma (fő):",null,{"$f":"'4.telephely'!$B$40","v":0},null,"Kártérítési limit:",null,{"$f":"IF('4.telephely'!$E$40=FALSE,\" \",\"5 millió Ft\")","v":" "},null,null,"díj:",{"$f":"IF('4.telephely'!$C$40>0,'4.telephely'!$C$40,\"Nem biztosított\")","v":"Nem biztosított"}]
["Munkáltatói felelősségbiztosítás",null,null,null,null,null,"Kockázati osztály:",null,{"$f":"'4.telephely'!$F$41","v":3}]
["alkalmazottak száma (fő):",null,{"$f":"'4.telephely'!$B$8","v":0},null,"Kártérítési limit:",null,{"$f":"IF('4.telephely'!E$41=FALSE,\" \",Tarifa!V37)","v":" "},null,null,"díj:",{"$f":"IF('4.telephely'!$C$41>0,'4.telephely'!$C$41,\"Nem biztosított\")","v":"Nem biztosított"}]
["Termékfelelősség biztosítás ",null,null,null,null,null,"Kockázati osztály:",null,{"$f":"'4.telephely'!$F$42","v":1}]
["éves forgalom:",null,null,{"$f":"'4.telephely'!$B$9","v":0},"Kártérítési limit:",null,{"$f":"IF('4.telephely'!$E$42=FALSE,\" \",Tarifa!V48)","v":" "},null,null,"díj:",{"$f":"IF('4.telephely'!$C$42>0,'4.telephely'!$C$42,\"Nem biztosított\")","v":"Nem biztosított"}]
["Bérlői felelősségbiztosítás ",null,null,null,null,null,"Kockázati osztály:",null,{"$f":"'4.telephely'!$F$43","v":2}]
["éves bérleti díj:",null,null,{"$f":"'4.telephely'!$B$10","v":0},"Kártérítési limit:",null,{"$f":"IF('4.telephely'!$E$43=FALSE,\" \",Tarifa!V60)","v":" "},null,null,"díj:",{"$f":"IF('4.telephely'!$C$43>0,'4.telephely'!$C$43,\"Nem biztosított\")","v":"Nem biztosított"}]
["Szolgáltatói felelősségbiztosítás ",null,null,null,null,null,"Kockázati osztály:",null,{"$f":"'4.telephely'!$F$44","v":1}]
["éves forgalom:",null,null,{"$f":"'4.telephely'!$B$9","v":0},"Kártérítési limit:",null,{"$f":"IF('4.telephely'!$E$44=FALSE,\" \",Tarifa!V72)","v":" "},null,null,"díj:",{"$f":"IF('4.telephely'!$C$44>0,'4.telephely'!$C$44,\"Nem biztosított\")","v":"Nem biztosított"}]
["Szálloda üzemeltetői, szállásadói felelősségbiztosítása"]
[null,null,null,null,"Kártérítési limit:",null,{"$f":"IF('4.telephely'!$E$45=FALSE,\" \",Tarifa!AD62)","v":" "},null,null,"díj:",{"$f":"IF('4.telephely'!$C$45>0,'4.telephely'!$C$45,\"Nem biztosított\")","v":"Nem biztosított"}]
["Gépjárműjavítók felelősségbiztosítása"]
["éves forgalom:",null,null,{"$f":"'4.telephely'!$B$9","v":0},"Kártérítési limit:",null,{"$f":"IF('4.telephely'!$E$46=FALSE,\" \",Tarifa!AD53)","v":" "},null,null,"díj:",{"$f":"IF('4.telephely'!$C$46>0,'4.telephely'!$C$46,\"Nem biztosított\")","v":"Nem biztosított"}]
["Gépjármű-eredetiségvizsgálatot végzők felelősségbiztosítása"]
[null,null,null,null,"Kártérítési limit:",null,{"$f":"IF('4.telephely'!$E$48=FALSE,\" \",\"5 millió Ft\")","v":" "},null,null,"díj:",{"$f":"IF('4.telephely'!$C$47>0,'4.telephely'!$C$47,\"Nem biztosított\")","v":"Nem biztosított"}]
["Szolgáltatás tárgyában okozott károk biztosítása"]
[null,null,null,null,"Kártérítési limit:",null,{"$f":"IF('4.telephely'!$E$48=FALSE,\" \",\"5 millió Ft\")","v":" "},null,null,"díj:",{"$f":"IF('4.telephely'!$C$48>0,'4.telephely'!$C$48,\"Nem biztosított\")","v":"Nem biztosított"}]
["Bérbeadói felelősségbiztosítás"]
["bérbeadásból származó forgalom:",null,null,{"$f":"'4.telephely'!$B$11","v":0},"Kártérítési limit:",null,{"$f":"IF('4.telephely'!$E$49=FALSE,\" \",Tarifa!V84)","v":" "},null,null,"díj:",{"$f":"IF('4.telephely'!$C$49>0,'4.telephely'!$C$49,\"Nem biztosított\")","v":"Nem biztosított"}]
["Környezetszennyezési felelősségbiztosítás"]
["éves forgalom:",null,null,{"$f":"'4.telephely'!$B$9","v":0},"Kártérítési limit:",null,{"$f":"IF('4.telephely'!$E$50=FALSE,\" \",Tarifa!V96)","v":" "},null,null,"díj:",{"$f":"IF('4.telephely'!$C$50>0,'4.telephely'!$C$50,\"Nem biztosított\")","v":"Nem biztosított"}]
[]
[]
[]
[null,null,null,null,null,"éves biztosítási díj a 4. telephelyre:",null,null,null,null,{"$f":"'4.telephely'!$C$52","v":0}]
[]
[]
[]
[]
["Kelt:",null,null,null,null,null,null,"Szerződő (szervezet képviseletére jogosult) /"]
[null,null,null,null,null,null,null,"Biztosított aláírása"]
[]
[]
[]
["telephelyi adatközlő és díjszámítás K&H vállalkozói biztosításhoz",null,null,null,null,null,null,null,null,"K&H Biztosító Zrt."]
[null,null,"adatközlő sorszáma",null,{"$f":"IF(AND('1.telephely'!C55>0,'2.telephely'!C52>0,'3.telephely'!C52>0,'4.telephely'!C52>0,'5.telephely'!C52>0),\"5/5\",0)","v":0},null,null,null,null,"1095 Budapest, Lechner Ödön fasor 9."]
[]
["telephely megnevezése:",null,{"$f":"'5.telephely'!$B$1","v":0}]
["telephely és kockázatviselés helye: ",null,null,null,{"$f":"'5.telephely'!$F$2","v":0},{"$f":"'5.telephely'!F3","v":0}]
["tevékenység kódja és megnevezése:",null,null,null,{"$f":"Tarifa!P7","v":"011"},{"$f":"Tarifa!Q7","v":"Nem évelő növény termesztése"}]
["tárgyi eszközök értékelésének módja:",null,null,null,{"$f":"IF(Tarifa!AB79=1,\"Új értéken\",\"Valós értéken\")","v":"Valós értéken"},"éves árbevétel: ",null,{"$f":"'5.telephely'!$B$7","v":0},"alkalmazottak száma:",null,{"$f":"'5.telephely'!$B$8","v":0}]
["alapbiztosítás - tűz és elemi károk, biztosított épületek üvegkárai"]
["biztosított vagyontárgyak, biztosítási összeg",null,null,null,null,null,"Kockázati osztály:",null,{"$f":"'5.telephely'!$F$21","v":3}]
["épület, építmény:",null,null,{"$f":"'5.telephely'!$B$16","v":0},"saját készletek:",{"$f":"'5.telephely'!$B$18","v":0},"idegen készletek:",null,{"$f":"'5.telephely'!$B$19","v":0},"készpénz:",{"$f":"'5.telephely'!$B$20","v":0}]
["egyéb tárgyi eszközök:",null,null,{"$f":"'5.telephely'!$B$17","v":0},"összesen",{"$f":"'5.telephely'!$B$21","v":0},null,null,"díj:",{"$f":"'5.telephely'!$C$21","v":0}]
["kiegészítő biztosítások"]
["Betöréses lopás és rablás biztosítás",null,null,null,"Vidéki kedvezmény:",null,{"$f":"'5.telephely'!$E$23","v":"-"},null,"Kockázati osztály:",null,{"$f":"'5.telephely'!$F$23","v":1}]
["egyéb tárgyi eszközök:",null,null,{"$f":"IF('5.telephely'!$E$17=FALSE,\" \",'5.telephely'!$B$17)","v":" "},"készletek (saját + idegen):",null,{"$f":"IF('5.telephely'!$E$18=FALSE,\" \",'5.telephely'!$B$18+'5.telephely'!$B$19)","v":" "},null,"készpénz:",{"$f":"IF('5.telephely'!E20=FALSE,\" \",'5.telephely'!$B$20)","v":" "}]
[null,null,null,null,null,null,null,null,null,"díj:",{"$f":"IF('5.telephely'!$C$23>0,'5.telephely'!$C$23,\"Nem biztosított\")","v":"Nem biztosított"}]
["Irodai és kereskedelmi elektronikus berendezések, eszközök biztosítása"]
["biztosítási összeg:",null,null,{"$f":"IF('5.telephely'!$E$25=FALSE,\" \",'5.telephely'!$B$25)","v":" "},null,null,null,null,null,"díj:",{"$f":"IF('5.telephely'!$C$25>0,'5.telephely'!$C$25,\"Nem biztosított\")","v":"Nem biztosított"}]
["Üzemszünet biztosítás ",null,null,null,null,null,"Kockázati osztály:",null,{"$f":"'5.telephely'!$F$27","v":2}]
["éves árbevétel: ",null,null,{"$f":"'5.telephely'!$B$7","v":0},null,null,null,null,null,"díj:",{"$f":"IF('5.telephely'!$C$27>0,'5.telephely'!$C$27,\"Nem biztosított\")","v":"Nem biztosított"}]
["Szállítmány biztosítás "]
["biztosítási összeg:",null,null,{"$f":"IF('5.telephely'!$E$29=FALSE,\" \",'5.telephely'!$B$29)","v":" "},null,null,null,null,null,"díj:",{"$f":"IF('5.telephely'!$C$29>0,'5.telephely'!$C$29,\"Nem biztosított\")","v":"Nem biztosított"}]
["Vakolat károk biztosítása "]
["biztosítási összeg:",null,null,{"$f":"IF('5.telephely'!$E$31=FALSE,\" \",'5.telephely'!$B$16)","v":" "},null,null,null,null,null,"díj:",{"$f":"IF('5.telephely'!$C$31>0,'5.telephely'!$C$31,\"Nem biztosított\")","v":"Nem biztosított"}]
["Tetőbeázási károk biztosítása "]
["biztosítási összeg:",null,null,{"$f":"IF('5.telephely'!$E$33=FALSE,\" \",'5.telephely'!$B$16)","v":" "},null,null,null,null,null,"díj:",{"$f":"IF('5.telephely'!$C$33>0,'5.telephely'!$C$33,\"Nem biztosított\")","v":"Nem biztosított"}]
["Vandalizmus károk biztosítása"]
["biztosítási összeg:",null,null,{"$f":"IF('5.telephely'!$E$35=FALSE,\" \",'5.telephely'!$B$35)","v":" "},null,null,null,null,null,"díj:",{"$f":"IF('5.telephely'!$C$35>0,'5.telephely'!$C$35,\"Nembiztosított\")","v":"Nembiztosított"}]
["Különleges üvegek üvegtörés biztosítása"]
["biztosítási összeg:",null,null,{"$f":"IF('5.telephely'!$E$37=FALSE,\" \",'5.telephely'!$B$37)","v":" "},null,null,null,null,null,"díj:",{"$f":"IF('5.telephely'!$C$37>0,'5.telephely'!$C$37,\"Nem biztosított\")","v":"Nem biztosított"}]
["Általános és épülethasználói felelősségbiztosítás",null,null,null,null,null,"Kockázati osztály:",null,{"$f":"'5.telephely'!$F$39","v":2}]
["alkalmazottak száma (fő):",null,{"$f":"'5.telephely'!$B$8","v":0},null,"Kártérítési limit:",null,{"$f":"IF('5.telephely'!$E$39=FALSE,\" \",Tarifa!W26)","v":" "},null,null,"díj:",{"$f":"IF('5.telephely'!$C$39>0,'5.telephely'!$C$39,\"Nem biztosított\")","v":"Nem biztosított"}]
["Tanuló baleseti és felelősségbiztosítás",null,null,"Kockázati osztály (általános):",null,null,{"$f":"'5.telephely'!$F$40","v":2},"Kockázati osztály (munkáltatói):",null,null,{"$f":"'5.telephely'!$G$40","v":3}]
["tanulók létszáma (fő):",null,{"$f":"'5.telephely'!$B$40","v":0},null,"Kártérítési limit:",null,{"$f":"IF('5.telephely'!$E$40=FALSE,\" \",\"5 millió Ft\")","v":" "},null,null,"díj:",{"$f":"IF('5.telephely'!$C$40>0,'5.telephely'!$C$40,\"Nem biztosított\")","v":"Nem biztosított"}]
["Munkáltatói felelősségbiztosítás",null,null,null,null,null,"Kockázati osztály:",null,{"$f":"'5.telephely'!$F$41","v":3}]
["alkalmazottak száma (fő):",null,{"$f":"'5.telephely'!$B$8","v":0},null,"Kártérítési limit:",null,{"$f":"IF('5.telephely'!E$41=FALSE,\" \",Tarifa!W37)","v":" "},null,null,"díj:",{"$f":"IF('5.telephely'!$C$41>0,'5.telephely'!$C$41,\"Nem biztosított\")","v":"Nem biztosított"}]
["Termékfelelősség biztosítás ",null,null,null,null,null,"Kockázati osztály:",null,{"$f":"'5.telephely'!$F$42","v":1}]
["éves forgalom:",null,null,{"$f":"'5.telephely'!$B$9","v":0},"Kártérítési limit:",null,{"$f":"IF('5.telephely'!$E$42=FALSE,\" \",Tarifa!W48)","v":" "},null,null,"díj:",{"$f":"IF('5.telephely'!$C$42>0,'5.telephely'!$C$42,\"Nem biztosított\")","v":"Nem biztosított"}]
["Bérlői felelősségbiztosítás ",null,null,null,null,null,"Kockázati osztály:",null,{"$f":"'5.telephely'!$F$43","v":2}]
["éves bérleti díj:",null,null,{"$f":"'5.telephely'!$B$10","v":0},"Kártérítési limit:",null,{"$f":"IF('5.telephely'!$E$43=FALSE,\" \",Tarifa!W60)","v":" "},null,null,"díj:",{"$f":"IF('5.telephely'!$C$43>0,'5.telephely'!$C$43,\"Nem biztosított\")","v":"Nem biztosított"}]
["Szolgáltatói felelősségbiztosítás ",null,null,null,null,null,"Kockázati osztály:",null,{"$f":"'5.telephely'!$F$44","v":1}]
["éves forgalom:",null,null,{"$f":"'5.telephely'!$B$9","v":0},"Kártérítési limit:",null,{"$f":"IF('5.telephely'!$E$44=FALSE,\" \",Tarifa!W72)","v":" "},null,null,"díj:",{"$f":"IF('5.telephely'!$C$44>0,'5.telephely'!$C$44,\"Nem biztosított\")","v":"Nem biztosított"}]
["Szálloda üzemeltetői, szállásadói felelősségbiztosítása"]
[null,null,null,null,"Kártérítési limit:",null,{"$f":"IF('5.telephely'!$E$45=FALSE,\" \",Tarifa!AE62)","v":" "},null,null,"díj:",{"$f":"IF('5.telephely'!$C$45>0,'5.telephely'!$C$45,\"Nem biztosított\")","v":"Nem biztosított"}]
["Gépjárműjavítók felelősségbiztosítása"]
["éves forgalom:",null,null,{"$f":"'5.telephely'!$B$9","v":0},"Kártérítési limit:",null,{"$f":"IF('5.telephely'!$E$46=FALSE,\" \",Tarifa!AE53)","v":" "},null,null,"díj:",{"$f":"IF('5.telephely'!$C$46>0,'5.telephely'!$C$46,\"Nem biztosított\")","v":"Nem biztosított"}]
["Gépjármű-eredetiségvizsgálatot végzők felelősségbiztosítása"]
[null,null,null,null,"Kártérítési limit:",null,{"$f":"IF('5.telephely'!$E$48=FALSE,\" \",\"5 millió Ft\")","v":" "},null,null,"díj:",{"$f":"IF('5.telephely'!$C$47>0,'5.telephely'!$C$47,\"Nem biztosított\")","v":"Nem biztosított"}]
["Szolgáltatás tárgyában okozott károk biztosítása"]
[null,null,null,null,"Kártérítési limit:",null,{"$f":"IF('5.telephely'!$E$48=FALSE,\" \",\"5 millió Ft\")","v":" "},null,null,"díj:",{"$f":"IF('5.telephely'!$C$48>0,'5.telephely'!$C$48,\"Nem biztosított\")","v":"Nem biztosított"}]
["Bérbeadói felelősségbiztosítás"]
["bérbeadásból származó forgalom:",null,null,{"$f":"'5.telephely'!$B$11","v":0},"Kártérítési limit:",null,{"$f":"IF('5.telephely'!$E$49=FALSE,\" \",Tarifa!W84)","v":" "},null,null,"díj:",{"$f":"IF('5.telephely'!$C$49>0,'5.telephely'!$C$49,\"Nem biztosított\")","v":"Nem biztosított"}]
["Környezetszennyezési felelősségbiztosítás"]
["éves forgalom:",null,null,{"$f":"'5.telephely'!$B$9","v":0},"Kártérítési limit:",null,{"$f":"IF('5.telephely'!$E$50=FALSE,\" \",Tarifa!W96)","v":" "},null,null,"díj:",{"$f":"IF('5.telephely'!$C$50>0,'5.telephely'!$C$50,\"Nem biztosított\")","v":"Nem biztosított"}]
[]
[]
[]
[null,null,null,null,null,"éves biztosítási díj a 5. telephelyre:",null,null,null,null,{"$f":"'5.telephely'!$C$52","v":0}]
[]
[]
[]
[]
["Kelt:",null,null,null,null,null,null,"Szerződő (szervezet képviseletére jogosult) /"]
[null,null,null,null,null,null,null,"Biztosított aláírása"]